Capital or Revenue,Directorate,Transaction Number,Date,Service Area,Expenses Type,Amount,Supplier Name
Revenue,Community Wellbeing & Social Care,5105632326,23.10.2013,Drug Misuse - Adults,Charges from Independent Providers,120.00,REDACTED PERSONAL DATA
Revenue,Community Wellbeing & Social Care,5105632236,23.10.2013,Drug Misuse - Adults,Charges from Independent Providers,120.00,REDACTED PERSONAL DATA
Revenue,Community Wellbeing & Social Care,5105632241,23.10.2013,Drug Misuse - Adults,Charges from Independent Providers,120.00,REDACTED PERSONAL DATA
Revenue,Community Wellbeing & Social Care,5105632243,23.10.2013,Drug Misuse - Adults,Charges from Independent Providers,120.00,REDACTED PERSONAL DATA
Revenue,Community Wellbeing & Social Care,5105632426,23.10.2013,Leaseholds by LA,Accommodation Costs - Leaseholder Payments,695.89,REDACTED PERSONAL DATA
Revenue,Community Wellbeing & Social Care,5105632426,23.10.2013,Leaseholds by LA,Accommodation Costs - Leaseholder Payments,695.89,REDACTED PERSONAL DATA
Revenue,Community Wellbeing & Social Care,5105632426,23.10.2013,Leaseholds by LA,Accommodation Costs - Leaseholder Payments,695.89,REDACTED PERSONAL DATA
Revenue,Community Wellbeing & Social Care,5105632426,23.10.2013,Leaseholds by LA,Accommodation Costs - Leaseholder Payments,695.89,REDACTED PERSONAL DATA
Revenue,Community Wellbeing & Social Care,5105632426,23.10.2013,Leaseholds by LA,Accommodation Costs - Leaseholder Payments,695.89,REDACTED PERSONAL DATA
Revenue,Childrens Services,5105632703,23.10.2013,Moderation,Bought in Professional Services - Curriculum (Schools),192.50,REDACTED PERSONAL DATA
Revenue,Economy & Environment,5105625648,30.10.2013,LSTF Grant,Payment to Private Contractors,180.00,REDACTED PERSONAL DATA
Revenue,Childrens Services,5105633360,25.10.2013,Thompson House Tuition Centre (PRU),Professional Services,550.00,REDACTED PERSONAL DATA
Revenue,Community Wellbeing & Social Care,5105631178,16.10.2013,Adult Social Care - Care Management Training,Training,125.00,REDACTED PERSONAL DATA
Revenue,Community Wellbeing & Social Care,5105631178,16.10.2013,Independent Sector Training,Training,125.00,REDACTED PERSONAL DATA
Capital,Resources,5105632122,25.10.2013,Capital Receipts,Capital Contractor Payments,210.00,REDACTED PERSONAL DATA
Capital,Resources,5105632122,25.10.2013,Capital Receipts,Capital Contractor Payments,200.00,REDACTED PERSONAL DATA
Capital,Resources,5105632122,25.10.2013,Capital Receipts,Capital Contractor Payments,85.00,REDACTED PERSONAL DATA
Capital,Resources,5105632122,25.10.2013,Capital Receipts,Capital Contractor Payments,100.00,REDACTED PERSONAL DATA
Capital,Resources,5105632122,25.10.2013,Capital Receipts,Capital Contractor Payments,110.00,REDACTED PERSONAL DATA
Capital,Resources,5105632122,25.10.2013,Capital Receipts,Capital Contractor Payments,100.00,REDACTED PERSONAL DATA
Capital,Resources,5105632122,25.10.2013,Capital Receipts,Capital Contractor Payments,200.00,REDACTED PERSONAL DATA
Capital,Resources,5105632122,25.10.2013,Capital Receipts,Capital Contractor Payments,45.00,REDACTED PERSONAL DATA
Capital,Resources,5105632122,25.10.2013,Capital Receipts,Capital Contractor Payments,375.00,REDACTED PERSONAL DATA
Revenue,Economy & Environment,5105632123,23.10.2013,Old Cowes Enterprise College,Security of Buildings,720.00,REDACTED PERSONAL DATA
Revenue,Economy & Environment,5105632123,23.10.2013,Old Cowes Enterprise College,Security of Buildings,375.00,REDACTED PERSONAL DATA
Revenue,Economy & Environment,5105632123,23.10.2013,Old Cowes Enterprise College,Security of Buildings,310.00,REDACTED PERSONAL DATA
Revenue,Economy & Environment,5105632123,23.10.2013,Old Cowes Enterprise College,Security of Buildings,75.00,REDACTED PERSONAL DATA
Revenue,Economy & Environment,5105632123,23.10.2013,Old Cowes Enterprise College,Security of Buildings,120.00,REDACTED PERSONAL DATA
Revenue,Economy & Environment,5105632123,23.10.2013,Old Cowes Enterprise College,Security of Buildings,120.00,REDACTED PERSONAL DATA
Revenue,Economy & Environment,5105632123,23.10.2013,Old Cowes Enterprise College,Security of Buildings,60.00,REDACTED PERSONAL DATA
Revenue,Economy & Environment,5105632123,23.10.2013,Love Lane Primary School PO31 7ET,Security of Buildings,25.00,REDACTED PERSONAL DATA
Revenue,Economy & Environment,5105632123,23.10.2013,Love Lane Primary School PO31 7ET,Security of Buildings,310.00,REDACTED PERSONAL DATA
Revenue,Childrens Services,5105633406,30.10.2013,Short Breaks,Payment to Private Contractors,60.00,REDACTED PERSONAL DATA
Revenue,Community Wellbeing & Social Care,5105628244,02.10.2013,Drug Misuse - Adults,Charges from Independent Providers,120.00,REDACTED PERSONAL DATA
Revenue,Community Wellbeing & Social Care,5105632103,23.10.2013,Drug Misuse - Adults,Payment to Private Contractors,140.00,REDACTED PERSONAL DATA
Revenue,Community Wellbeing & Social Care,5105629982,11.10.2013,Drug Misuse - Adults,Payment to Private Contractors,210.00,REDACTED PERSONAL DATA
Revenue,Community Wellbeing & Social Care,5105631399,16.10.2013,Governors  Support,Training,400.00,REDACTED PERSONAL DATA
Revenue,Childrens Services,5105633389,30.10.2013,Short Breaks,Payment to Private Contractors,80.00,REDACTED PERSONAL DATA
Revenue,Community Wellbeing & Social Care,5105628136,02.10.2013,Adelaide Resource Centre,Vehicle Maintenance Costs,40.00,*ISLANDWIDE WINDSCREENS
Revenue,Community Wellbeing & Social Care,5105632706,25.10.2013,Workforce Development - Early Years,Training,600.00,REDACTED PERSONAL DATA
Revenue,Community Wellbeing & Social Care,5105629948,11.10.2013,Drug Misuse - Adults,Payment to Private Contractors,210.00,REDACTED PERSONAL DATA
Revenue,Economy & Environment,5105632370,23.10.2013,A.O.N.B.,Consultants Fees,"1,000.00",REDACTED PERSONAL DATA
Revenue,Economy & Environment,5105633734,30.10.2013,A.O.N.B.,Consultants Fees,"1,650.00",REDACTED PERSONAL DATA
Revenue,Resources,5105629931,16.10.2013,ICT Contracts,Computer Maintenance,200.00,REDACTED PERSONAL DATA
Revenue,Economy & Environment,5105631481,16.10.2013,IW Festival of Cycling,Professional Services,200.00,REDACTED PERSONAL DATA
Revenue,Childrens Services,5105633425,30.10.2013,Thompson House Tuition Centre (PRU),Client Expenses,500.00,*LUCY MUNDY T/A ISLAND EQUUS +
Revenue,Childrens Services,5105633363,25.10.2013,Clatterford Pupil Referral Unit (PRU),Professional Services,"1,920.00",*LUCY MUNDY T/A ISLAND EQUUS +
Revenue,Childrens Services,5105633364,25.10.2013,Support for Looked After Children,Support Children,292.50,*LUCY MUNDY T/A ISLAND EQUUS +
Revenue,Childrens Services,5105633354,25.10.2013,Support for Looked After Children,Support Children,225.00,*LUCY MUNDY T/A ISLAND EQUUS +
Revenue,Childrens Services,5105633366,30.10.2013,Support for Looked After Children,Support Children,900.00,*LUCY MUNDY T/A ISLAND EQUUS +
Revenue,Childrens Services,5105631475,16.10.2013,Support for Looked After Children,Support Children,400.00,*LUCY MUNDY T/A ISLAND EQUUS +
Revenue,Childrens Services,5105631476,16.10.2013,Support for Looked After Children,Support Children,130.00,*LUCY MUNDY T/A ISLAND EQUUS +
Revenue,Childrens Services,5105633426,30.10.2013,Targeted Youth Support,Operational Equipment,150.00,*LUCY MUNDY T/A ISLAND EQUUS +
Revenue,Community Wellbeing & Social Care,5105629942,11.10.2013,Practice Teaching Training,Training,"2,492.00",REDACTED PERSONAL DATA
Revenue,Childrens Services,5105622219,09.10.2013,Duty and Assessment 2,Agency staff,416.26,*M.EL.H LIMITED
Revenue,Childrens Services,5105631851,18.10.2013,Duty and Assessment 2,Agency staff,303.75,*M.EL.H LIMITED
Revenue,Childrens Services,5105632341,23.10.2013,Duty and Assessment 2,Agency staff,939.38,*M.EL.H LIMITED
Revenue,Childrens Services,5105631422,16.10.2013,Duty and Assessment 2,Agency staff,315.00,*M.EL.H LIMITED
Revenue,Childrens Services,5105633801,31.10.2013,Referral & Assessment,Agency staff,"1,395.00",*M.EL.H LIMITED
Revenue,Childrens Services,5105631851,18.10.2013,Referral & Assessment,Agency staff,303.75,*M.EL.H LIMITED
Revenue,Childrens Services,5105632341,23.10.2013,Referral & Assessment,Agency staff,939.37,*M.EL.H LIMITED
Revenue,Childrens Services,5105631422,16.10.2013,Referral & Assessment,Agency staff,315.00,*M.EL.H LIMITED
Revenue,Childrens Services,5105622219,09.10.2013,Referral & Assessment,Agency staff,416.24,*M.EL.H LIMITED
Revenue,Childrens Services,5105632610,23.10.2013,Education Participation Team,Cleaning Contracts,8.00,REDACTED PERSONAL DATA
Revenue,Childrens Services,5105629372,09.10.2013,LSCB (Local Safeguarding Childrens Board),Consultants Fees,140.00,*ONE HOLYROOD
Revenue,Childrens Services,5105628514,04.10.2013,Safeguarding Support,Travel Expenses,70.00,*ONE HOLYROOD
Revenue,Childrens Services,5105632614,23.10.2013,Safeguarding Support,Travel Expenses,70.00,*ONE HOLYROOD
Revenue,Childrens Services,5105632613,23.10.2013,Safeguarding Support,Travel Expenses,140.00,*ONE HOLYROOD
Revenue,Childrens Services,5105632612,23.10.2013,Safeguarding Support,Travel Expenses,140.00,*ONE HOLYROOD
Revenue,Community Wellbeing & Social Care,5105632775,30.10.2013,Workforce Development - Early Years,Training,705.00,REDACTED PERSONAL DATA
Revenue,Community Wellbeing & Social Care,5105628518,04.10.2013,Drug Misuse - Adults,Payment to Private Contractors,120.00,REDACTED PERSONAL DATA
Revenue,Community Wellbeing & Social Care,5105633072,25.10.2013,Drug Misuse - Adults,Payment to Private Contractors,120.00,REDACTED PERSONAL DATA
Revenue,Community Wellbeing & Social Care,5105634025,31.10.2013,Governors  Support,Training,180.00,REDACTED PERSONAL DATA
Revenue,Childrens Services,5105631180,16.10.2013,Moderation,Bought in Professional Services - Curriculum (Schools),140.84,REDACTED PERSONAL DATA
Revenue,Community Wellbeing & Social Care,5105631210,16.10.2013,Workforce Development Schools,Training,468.50,REDACTED PERSONAL DATA
Revenue,Childrens Services,5105628036,09.10.2013,Short Breaks,Payment to Private Contractors,"1,388.00",REDACTED PERSONAL DATA
Revenue,Community Wellbeing & Social Care,5105633100,25.10.2013,Drug Misuse - Adults,Payment to Private Contractors,120.00,REDACTED PERSONAL DATA
Revenue,Economy & Environment,5105632399,23.10.2013,Cowes Week,Operational Equipment,9.95,2CL COMMUNICATIONS LTD
Revenue,Community Wellbeing & Social Care,5105632446,23.10.2013,Leaseholds by LA,Accommodation Costs - Leaseholder Payments,866.67,2K PROPERTY
Revenue,Community Wellbeing & Social Care,5105630208,11.10.2013,Adelaide Resource Centre,Catering Purchases,81.45,3663 (BFS GROUP LTD)
Revenue,Community Wellbeing & Social Care,5105630208,11.10.2013,Adelaide Resource Centre,Catering Purchases,9.68,3663 (BFS GROUP LTD)
Revenue,Community Wellbeing & Social Care,5105630206,11.10.2013,Adelaide Resource Centre,Catering Purchases,47.06,3663 (BFS GROUP LTD)
Revenue,Community Wellbeing & Social Care,5105632297,23.10.2013,Adelaide Resource Centre,Catering Purchases,-80.40,3663 (BFS GROUP LTD)
Revenue,Community Wellbeing & Social Care,5105632676,23.10.2013,Adelaide Resource Centre,Catering Purchases,336.27,3663 (BFS GROUP LTD)
Revenue,Community Wellbeing & Social Care,5105632676,23.10.2013,Adelaide Resource Centre,Catering Purchases,123.37,3663 (BFS GROUP LTD)
Revenue,Community Wellbeing & Social Care,5105631384,16.10.2013,Adelaide Resource Centre,Catering Purchases,235.05,3663 (BFS GROUP LTD)
Revenue,Community Wellbeing & Social Care,5105631385,16.10.2013,Adelaide Resource Centre,Catering Purchases,100.68,3663 (BFS GROUP LTD)
Revenue,Community Wellbeing & Social Care,5105631385,16.10.2013,Adelaide Resource Centre,Catering Purchases,9.12,3663 (BFS GROUP LTD)
Revenue,Community Wellbeing & Social Care,5105631384,16.10.2013,Adelaide Resource Centre,Catering Purchases,0.01,3663 (BFS GROUP LTD)
Revenue,Community Wellbeing & Social Care,5105630203,11.10.2013,Adelaide Resource Centre,Catering Purchases,282.16,3663 (BFS GROUP LTD)
Revenue,Community Wellbeing & Social Care,5105630204,11.10.2013,Adelaide Resource Centre,Catering Purchases,532.78,3663 (BFS GROUP LTD)
Revenue,Community Wellbeing & Social Care,5105630204,11.10.2013,Adelaide Resource Centre,Catering Purchases,15.87,3663 (BFS GROUP LTD)
Revenue,Community Wellbeing & Social Care,5105630207,23.10.2013,Adelaide Resource Centre,Catering Purchases,158.14,3663 (BFS GROUP LTD)
Revenue,Community Wellbeing & Social Care,5105630207,23.10.2013,Adelaide Resource Centre,Catering Purchases,10.29,3663 (BFS GROUP LTD)
Revenue,Community Wellbeing & Social Care,5105633452,30.10.2013,Gouldings Resource Centre,Catering Purchases,164.90,3663 (BFS GROUP LTD)
Revenue,Community Wellbeing & Social Care,5105633452,30.10.2013,Gouldings Resource Centre,Catering Purchases,61.44,3663 (BFS GROUP LTD)
Revenue,Community Wellbeing & Social Care,5105631973,18.10.2013,Gouldings Resource Centre,Catering Purchases,346.15,3663 (BFS GROUP LTD)
Revenue,Community Wellbeing & Social Care,5105631973,18.10.2013,Gouldings Resource Centre,Catering Purchases,16.27,3663 (BFS GROUP LTD)
Revenue,Community Wellbeing & Social Care,5105629883,11.10.2013,Gouldings Resource Centre,Catering Purchases,42.91,3663 (BFS GROUP LTD)
Revenue,Community Wellbeing & Social Care,5105629881,11.10.2013,Gouldings Resource Centre,Catering Purchases,469.67,3663 (BFS GROUP LTD)
Revenue,Community Wellbeing & Social Care,5105629881,11.10.2013,Gouldings Resource Centre,Catering Purchases,55.92,3663 (BFS GROUP LTD)
Revenue,Community Wellbeing & Social Care,5105628117,02.10.2013,Gouldings Resource Centre,Catering Purchases,144.51,3663 (BFS GROUP LTD)
Revenue,Community Wellbeing & Social Care,5105628117,02.10.2013,Gouldings Resource Centre,Catering Purchases,18.08,3663 (BFS GROUP LTD)
Revenue,Community Wellbeing & Social Care,5105629888,11.10.2013,Westminster House,Catering Purchases,106.12,3663 (BFS GROUP LTD)
Revenue,Community Wellbeing & Social Care,5105629886,11.10.2013,Westminster House,Catering Purchases,107.55,3663 (BFS GROUP LTD)
Revenue,Community Wellbeing & Social Care,5105629885,11.10.2013,Westminster House,Catering Purchases,153.22,3663 (BFS GROUP LTD)
Revenue,Community Wellbeing & Social Care,5105632072,23.10.2013,Westminster House,Catering Purchases,111.61,3663 (BFS GROUP LTD)
Revenue,Community Wellbeing & Social Care,5105632073,23.10.2013,Westminster House,Catering Purchases,76.53,3663 (BFS GROUP LTD)
Revenue,Community Wellbeing & Social Care,5105632074,23.10.2013,Westminster House,Catering Purchases,53.70,3663 (BFS GROUP LTD)
Revenue,Economy & Environment,5105628494,04.10.2013,Ryde Sports Centre,Catering Purchases,81.16,3663 (BFS GROUP LTD)
Revenue,Economy & Environment,5105631823,18.10.2013,Ryde Sports Centre,Catering Purchases,127.26,3663 (BFS GROUP LTD)
Revenue,Economy & Environment,5105628233,04.10.2013,Westridge Squash Courts,Operational Equipment,135.69,3663 (BFS GROUP LTD)
Revenue,Economy & Environment,5105631974,18.10.2013,Westridge Squash Courts,Operational Equipment,40.36,3663 (BFS GROUP LTD)
Revenue,Economy & Environment,5105632071,23.10.2013,Westridge Squash Courts,Operational Equipment,18.38,3663 (BFS GROUP LTD)
Revenue,Childrens Services,5105629936,16.10.2013,North & East Provision,Catering Purchases,284.84,3663 (BFS GROUP LTD)
Revenue,Childrens Services,5105629936,16.10.2013,North & East Provision,Catering Purchases,68.76,3663 (BFS GROUP LTD)
Revenue,Childrens Services,5105630329,16.10.2013,North & East Provision,Catering Purchases,115.00,3663 (BFS GROUP LTD)
Revenue,Childrens Services,5105631972,18.10.2013,Central & West Provision,Catering Purchases,360.34,3663 (BFS GROUP LTD)
Revenue,Childrens Services,5105631972,18.10.2013,Central & West Provision,Catering Purchases,11.87,3663 (BFS GROUP LTD)
Revenue,Childrens Services,5105630327,16.10.2013,Central & West Provision,Catering Purchases,8.70,3663 (BFS GROUP LTD)
Revenue,Childrens Services,5105630328,18.10.2013,Central & West Provision,Catering Purchases,-8.70,3663 (BFS GROUP LTD)
Revenue,Childrens Services,5105630201,11.10.2013,Central & West Provision,Catering Purchases,197.71,3663 (BFS GROUP LTD)
Revenue,Childrens Services,5105630201,11.10.2013,Central & West Provision,Catering Purchases,50.85,3663 (BFS GROUP LTD)
Revenue,Economy & Environment,5105633453,30.10.2013,Medina Vending Machine Stock,Order Settlement,475.94,3663 (BFS GROUP LTD)
Revenue,Economy & Environment,5105628496,04.10.2013,Medina Vending Machine Stock,Order Settlement,296.80,3663 (BFS GROUP LTD)
Revenue,Economy & Environment,5105631822,18.10.2013,Medina Vending Machine Stock,Order Settlement,350.11,3663 (BFS GROUP LTD)
Revenue,Economy & Environment,5105632400,23.10.2013,Medina Vending Machine Stock,Order Settlement,476.66,3663 (BFS GROUP LTD)
Revenue,Economy & Environment,5105631977,18.10.2013,Heights Cafe Stock,Order Settlement,222.98,3663 (BFS GROUP LTD)
Revenue,Economy & Environment,5105631977,18.10.2013,Heights Cafe Stock,Order Settlement,12.34,3663 (BFS GROUP LTD)
Revenue,Economy & Environment,5105630205,11.10.2013,Heights Cafe Stock,Order Settlement,202.17,3663 (BFS GROUP LTD)
Revenue,Economy & Environment,5105630205,11.10.2013,Heights Cafe Stock,Order Settlement,50.45,3663 (BFS GROUP LTD)
Revenue,Economy & Environment,5105631433,16.10.2013,Heights Cafe Stock,Order Settlement,180.95,3663 (BFS GROUP LTD)
Revenue,Economy & Environment,5105631433,16.10.2013,Heights Cafe Stock,Order Settlement,34.53,3663 (BFS GROUP LTD)
Revenue,Economy & Environment,5105633329,25.10.2013,Heights Cafe Stock,Order Settlement,226.28,3663 (BFS GROUP LTD)
Revenue,Economy & Environment,5105633329,25.10.2013,Heights Cafe Stock,Order Settlement,48.32,3663 (BFS GROUP LTD)
Revenue,Economy & Environment,5105628234,04.10.2013,Heights Cafe Stock,Order Settlement,319.54,3663 (BFS GROUP LTD)
Revenue,Economy & Environment,5105628234,04.10.2013,Heights Cafe Stock,Order Settlement,6.35,3663 (BFS GROUP LTD)
Revenue,Economy & Environment,5105631978,18.10.2013,Heights Vending Stock,Order Settlement,17.57,3663 (BFS GROUP LTD)
Revenue,Economy & Environment,5105631978,18.10.2013,Heights Vending Stock,Order Settlement,229.27,3663 (BFS GROUP LTD)
Revenue,Economy & Environment,5105630202,11.10.2013,Heights Vending Stock,Order Settlement,197.35,3663 (BFS GROUP LTD)
Revenue,Economy & Environment,5105631432,16.10.2013,Heights Vending Stock,Order Settlement,302.28,3663 (BFS GROUP LTD)
Revenue,Economy & Environment,5105633330,25.10.2013,Heights Vending Stock,Order Settlement,82.82,3663 (BFS GROUP LTD)
Revenue,Economy & Environment,5105628232,02.10.2013,Heights Vending Stock,Order Settlement,17.57,3663 (BFS GROUP LTD)
Revenue,Economy & Environment,5105628232,02.10.2013,Heights Vending Stock,Order Settlement,202.06,3663 (BFS GROUP LTD)
Revenue,Resources,5105632791,25.10.2013,Fraud Section,Legal Fees - Other Parties,300.00,3PB THE CHAMBERS OF IAN LAWRIE QC
Revenue,Economy & Environment,5105633455,30.10.2013,Project Manager Waste Strategy,Consultants Fees,461.25,4 PROJECTS LIMITED
Revenue,Economy & Environment,5105631802,18.10.2013,Project Manager Waste Strategy,Consultants Fees,461.25,4 PROJECTS LIMITED
Revenue,Economy & Environment,5105631414,16.10.2013,Project Manager Waste Strategy,Consultants Fees,461.25,4 PROJECTS LIMITED
Revenue,Community Wellbeing & Social Care,5105632330,23.10.2013,Adelaide Resource Centre,Cleaning Contracts,260.00,A & M APPLIANCE CARE
Revenue,Community Wellbeing & Social Care,5105628507,04.10.2013,Gouldings Resource Centre,Maintenance of Operational Equipment,156.22,A & M APPLIANCE CARE
Revenue,Community Wellbeing & Social Care,5105630249,11.10.2013,Gouldings Resource Centre,Consumable Cleaning Materials,150.00,A & M APPLIANCE CARE
Revenue,Community Wellbeing & Social Care,5105633346,25.10.2013,Gouldings Resource Centre,Consumable Cleaning Materials,186.00,A & M APPLIANCE CARE
Revenue,Community Wellbeing & Social Care,5105633764,30.10.2013,Gouldings Resource Centre,Consumable Cleaning Materials,120.00,A & M APPLIANCE CARE
Revenue,Community Wellbeing & Social Care,5105629464,09.10.2013,Workforce Development - Early Years,Training,725.00,REDACTED PERSONAL DATA
Revenue,Community Wellbeing & Social Care,5105632088,23.10.2013,Core Programmes,Training,725.00,REDACTED PERSONAL DATA
Revenue,Community Wellbeing & Social Care,5105632432,23.10.2013,Leaseholds by LA,Accommodation Costs - Leaseholder Payments,780.00,REDACTED PERSONAL DATA
Revenue,Childrens Services,5105631547,18.10.2013,In-house Fostering,Boarding Out Allowances,146.09,REDACTED PERSONAL DATA
Revenue,Childrens Services,5105631547,18.10.2013,In-house Fostering,Boarding Out Allowances,181.79,REDACTED PERSONAL DATA
Revenue,Childrens Services,5105631547,18.10.2013,In-house Fostering,Boarding Out Allowances,10.00,REDACTED PERSONAL DATA
Revenue,Childrens Services,5105633863,31.10.2013,In-house Fostering,Boarding Out Allowances,146.09,REDACTED PERSONAL DATA
Revenue,Childrens Services,5105633863,31.10.2013,In-house Fostering,Boarding Out Allowances,181.79,REDACTED PERSONAL DATA
Revenue,Childrens Services,5105633863,31.10.2013,In-house Fostering,Boarding Out Allowances,10.00,REDACTED PERSONAL DATA
Revenue,Childrens Services,5105632890,25.10.2013,In-house Fostering,Boarding Out Allowances,146.09,REDACTED PERSONAL DATA
Revenue,Childrens Services,5105632890,25.10.2013,In-house Fostering,Boarding Out Allowances,181.79,REDACTED PERSONAL DATA
Revenue,Childrens Services,5105632890,25.10.2013,In-house Fostering,Boarding Out Allowances,10.00,REDACTED PERSONAL DATA
Revenue,Childrens Services,5105629725,11.10.2013,In-house Fostering,Boarding Out Allowances,146.09,REDACTED PERSONAL DATA
Revenue,Childrens Services,5105629725,11.10.2013,In-house Fostering,Boarding Out Allowances,181.79,REDACTED PERSONAL DATA
Revenue,Childrens Services,5105629725,11.10.2013,In-house Fostering,Boarding Out Allowances,10.00,REDACTED PERSONAL DATA
Revenue,Childrens Services,5105628319,04.10.2013,In-house Fostering,Boarding Out Allowances,146.09,REDACTED PERSONAL DATA
Revenue,Childrens Services,5105628319,04.10.2013,In-house Fostering,Boarding Out Allowances,181.79,REDACTED PERSONAL DATA
Revenue,Childrens Services,5105628319,04.10.2013,In-house Fostering,Boarding Out Allowances,10.00,REDACTED PERSONAL DATA
Revenue,Childrens Services,5105629810,11.10.2013,Leaving Care Costs,Accommodation Costs - Service Users,57.50,REDACTED PERSONAL DATA
Revenue,Childrens Services,5105632976,25.10.2013,Leaving Care Costs,Accommodation Costs - Service Users,57.50,REDACTED PERSONAL DATA
Revenue,Childrens Services,5105633945,31.10.2013,Leaving Care Costs,Accommodation Costs - Service Users,57.50,REDACTED PERSONAL DATA
Revenue,Childrens Services,5105631631,18.10.2013,Leaving Care Costs,Accommodation Costs - Service Users,57.50,REDACTED PERSONAL DATA
Revenue,Childrens Services,5105628405,04.10.2013,Leaving Care Costs,Accommodation Costs - Service Users,57.50,REDACTED PERSONAL DATA
Revenue,Childrens Services,5105633945,31.10.2013,Leaving Care Costs,Support Children,120.89,REDACTED PERSONAL DATA
Revenue,Childrens Services,5105631631,18.10.2013,Leaving Care Costs,Support Children,120.89,REDACTED PERSONAL DATA
Revenue,Childrens Services,5105628405,04.10.2013,Leaving Care Costs,Support Children,120.89,REDACTED PERSONAL DATA
Revenue,Childrens Services,5105632976,25.10.2013,Leaving Care Costs,Support Children,120.89,REDACTED PERSONAL DATA
Revenue,Childrens Services,5105629810,11.10.2013,Leaving Care Costs,Support Children,120.89,REDACTED PERSONAL DATA
Revenue,Community Wellbeing & Social Care,5105632441,23.10.2013,Leaseholds by LA,Accommodation Costs - Leaseholder Payments,510.25,REDACTED PERSONAL DATA
Revenue,Community Wellbeing & Social Care,5105632441,23.10.2013,Leaseholds by LA,Accommodation Costs - Leaseholder Payments,510.25,REDACTED PERSONAL DATA
Revenue,Community Wellbeing & Social Care,5105632441,23.10.2013,Leaseholds by LA,Accommodation Costs - Leaseholder Payments,510.25,REDACTED PERSONAL DATA
Revenue,Community Wellbeing & Social Care,5105632441,23.10.2013,Leaseholds by LA,Accommodation Costs - Leaseholder Payments,510.25,REDACTED PERSONAL DATA
Revenue,Community Wellbeing & Social Care,5105632441,23.10.2013,Leaseholds by LA,Accommodation Costs - Leaseholder Payments,510.25,REDACTED PERSONAL DATA
Revenue,Community Wellbeing & Social Care,5105632441,23.10.2013,Leaseholds by LA,Accommodation Costs - Leaseholder Payments,510.25,REDACTED PERSONAL DATA
Revenue,Childrens Services,5105633836,31.10.2013,Adoption Costs,Support Children,186.49,REDACTED PERSONAL DATA
Revenue,Childrens Services,5105629698,11.10.2013,Adoption Costs,Support Children,186.49,REDACTED PERSONAL DATA
Revenue,Childrens Services,5105631520,18.10.2013,Adoption Costs,Support Children,186.49,REDACTED PERSONAL DATA
Revenue,Childrens Services,5105628291,04.10.2013,Adoption Costs,Support Children,186.49,REDACTED PERSONAL DATA
Revenue,Childrens Services,5105632863,25.10.2013,Adoption Costs,Support Children,186.49,REDACTED PERSONAL DATA
Revenue,Childrens Services,5105631589,18.10.2013,In-house Fostering,Boarding Out Allowances,221.13,REDACTED PERSONAL DATA
Revenue,Childrens Services,5105633905,31.10.2013,In-house Fostering,Boarding Out Allowances,221.13,REDACTED PERSONAL DATA
Revenue,Childrens Services,5105632934,25.10.2013,In-house Fostering,Boarding Out Allowances,221.13,REDACTED PERSONAL DATA
Revenue,Childrens Services,5105629767,11.10.2013,In-house Fostering,Boarding Out Allowances,221.13,REDACTED PERSONAL DATA
Revenue,Childrens Services,5105628361,04.10.2013,In-house Fostering,Boarding Out Allowances,221.13,REDACTED PERSONAL DATA
Revenue,Community Wellbeing & Social Care,5105632443,23.10.2013,Leaseholds by LA,Accommodation Costs - Leaseholder Payments,780.00,REDACTED PERSONAL DATA
Revenue,Community Wellbeing & Social Care,5105632430,23.10.2013,Leaseholds by LA,Accommodation Costs - Leaseholder Payments,789.01,REDACTED PERSONAL DATA
Revenue,Community Wellbeing & Social Care,5105632430,23.10.2013,Leaseholds by LA,Accommodation Costs - Leaseholder Payments,649.83,REDACTED PERSONAL DATA
Revenue,Community Wellbeing & Social Care,5105632430,23.10.2013,Leaseholds by LA,Accommodation Costs - Leaseholder Payments,835.08,REDACTED PERSONAL DATA
Revenue,Childrens Services,5105631516,18.10.2013,Adoption Costs,Support Children,87.15,REDACTED PERSONAL DATA
Revenue,Childrens Services,5105632859,25.10.2013,Adoption Costs,Support Children,87.15,REDACTED PERSONAL DATA
Revenue,Childrens Services,5105628287,04.10.2013,Adoption Costs,Support Children,87.15,REDACTED PERSONAL DATA
Revenue,Childrens Services,5105633832,31.10.2013,Adoption Costs,Support Children,87.15,REDACTED PERSONAL DATA
Revenue,Childrens Services,5105629694,11.10.2013,Adoption Costs,Support Children,87.15,REDACTED PERSONAL DATA
Revenue,Childrens Services,5105631667,18.10.2013,In-house Fostering,Boarding Out Allowances,221.13,REDACTED PERSONAL DATA
Revenue,Childrens Services,5105628442,04.10.2013,In-house Fostering,Boarding Out Allowances,221.13,REDACTED PERSONAL DATA
Revenue,Childrens Services,5105629847,11.10.2013,In-house Fostering,Boarding Out Allowances,221.13,REDACTED PERSONAL DATA
Revenue,Childrens Services,5105629921,11.10.2013,Beaulieu House,Minor Works,150.00,A-1 GARAGE DOOR SPECIALISTS(IOW)
Revenue,Community Wellbeing & Social Care,5105633191,25.10.2013,Supporting People Older Persons,Payment to Private Contractors,646.20,ABBEYFIELD WEST WIGHT SOCIETY
Revenue,Community Wellbeing & Social Care,5105628709,09.10.2013,Elderly Frail Residential Care,Charges from Independent Providers,"1,622.60",ACACIA CARE HOME
Revenue,Community Wellbeing & Social Care,5105628709,09.10.2013,Elderly Frail Residential Care,Charges from Independent Providers,"1,622.60",ACACIA CARE HOME
Revenue,Community Wellbeing & Social Care,5105628709,09.10.2013,Elderly Frail Residential Care,Charges from Independent Providers,"1,622.60",ACACIA CARE HOME
Revenue,Community Wellbeing & Social Care,5105631279,16.10.2013,31 Carter Avenue,Interview & recruitment expenses,6.00,ACCESS PERSONAL CHECKING
Revenue,Community Wellbeing & Social Care,5105631279,16.10.2013,31 Carter Avenue,Interview & recruitment expenses,44.00,ACCESS PERSONAL CHECKING
Revenue,Community Wellbeing & Social Care,5105631279,16.10.2013,Plean Dene,Interview & recruitment expenses,6.00,ACCESS PERSONAL CHECKING
Revenue,Community Wellbeing & Social Care,5105631279,16.10.2013,Plean Dene,Interview & recruitment expenses,44.00,ACCESS PERSONAL CHECKING
Revenue,Community Wellbeing & Social Care,5105631279,16.10.2013,Saxonbury,Interview & recruitment expenses,6.00,ACCESS PERSONAL CHECKING
Revenue,Community Wellbeing & Social Care,5105631279,16.10.2013,Saxonbury,Interview & recruitment expenses,44.00,ACCESS PERSONAL CHECKING
Revenue,Community Wellbeing & Social Care,5105631279,16.10.2013,40 Venner Avenue,Interview & recruitment expenses,44.00,ACCESS PERSONAL CHECKING
Revenue,Community Wellbeing & Social Care,5105631279,16.10.2013,40 Venner Avenue,Interview & recruitment expenses,6.00,ACCESS PERSONAL CHECKING
Revenue,Community Wellbeing & Social Care,5105631279,16.10.2013,FAB Team,Interview & recruitment expenses,6.00,ACCESS PERSONAL CHECKING
Revenue,Community Wellbeing & Social Care,5105631279,16.10.2013,Gouldings Resource Centre,Interview & recruitment expenses,44.00,ACCESS PERSONAL CHECKING
Revenue,Community Wellbeing & Social Care,5105631279,16.10.2013,Gouldings Resource Centre,Interview & recruitment expenses,6.00,ACCESS PERSONAL CHECKING
Revenue,Community Wellbeing & Social Care,5105631279,16.10.2013,Arts Projects,Interview & recruitment expenses,88.00,ACCESS PERSONAL CHECKING
Revenue,Community Wellbeing & Social Care,5105631279,16.10.2013,Arts Projects,Interview & recruitment expenses,12.00,ACCESS PERSONAL CHECKING
Revenue,Economy & Environment,5105631279,16.10.2013,The Heights,Interview & recruitment expenses,132.00,ACCESS PERSONAL CHECKING
Revenue,Economy & Environment,5105631279,16.10.2013,The Heights,Interview & recruitment expenses,18.00,ACCESS PERSONAL CHECKING
Revenue,Childrens Services,5105631279,16.10.2013,Youth Offending Team,Interview & recruitment expenses,6.00,ACCESS PERSONAL CHECKING
Revenue,Childrens Services,5105631279,16.10.2013,Duty and Assessment 2,Interview & recruitment expenses,44.00,ACCESS PERSONAL CHECKING
Revenue,Childrens Services,5105631279,16.10.2013,Duty and Assessment 2,Interview & recruitment expenses,6.00,ACCESS PERSONAL CHECKING
Revenue,Childrens Services,5105631279,16.10.2013,Disabled Childrens Team,Interview & recruitment expenses,12.00,ACCESS PERSONAL CHECKING
Revenue,Childrens Services,5105631279,16.10.2013,Disabled Childrens Team,Interview & recruitment expenses,88.00,ACCESS PERSONAL CHECKING
Revenue,Childrens Services,5105631279,16.10.2013,Fostering Team,Interview & recruitment expenses,6.00,ACCESS PERSONAL CHECKING
Revenue,Childrens Services,5105631279,16.10.2013,Fostering Team,Interview & recruitment expenses,44.00,ACCESS PERSONAL CHECKING
Revenue,Childrens Services,5105631279,16.10.2013,Children in Care Team,Interview & recruitment expenses,132.00,ACCESS PERSONAL CHECKING
Revenue,Childrens Services,5105631279,16.10.2013,Children in Care Team,Interview & recruitment expenses,18.00,ACCESS PERSONAL CHECKING
Revenue,Childrens Services,5105631279,16.10.2013,Referral & Assessment,Interview & recruitment expenses,6.00,ACCESS PERSONAL CHECKING
Revenue,Childrens Services,5105631279,16.10.2013,Referral & Assessment,Interview & recruitment expenses,44.00,ACCESS PERSONAL CHECKING
Revenue,Childrens Services,5105631279,16.10.2013,In-house Fostering,Interview & recruitment expenses,528.00,ACCESS PERSONAL CHECKING
Revenue,Childrens Services,5105631279,16.10.2013,In-house Fostering,Interview & recruitment expenses,72.00,ACCESS PERSONAL CHECKING
Revenue,Childrens Services,5105631279,16.10.2013,Adoption Team,Interview & recruitment expenses,12.50,ACCESS PERSONAL CHECKING
Revenue,Childrens Services,5105631279,16.10.2013,Adoption Team,Interview & recruitment expenses,176.00,ACCESS PERSONAL CHECKING
Revenue,Childrens Services,5105631279,16.10.2013,Adoption Team,Interview & recruitment expenses,36.00,ACCESS PERSONAL CHECKING
Revenue,Childrens Services,5105631279,16.10.2013,Local Authority Care Units 5-7,Interview & recruitment expenses,6.00,ACCESS PERSONAL CHECKING
Revenue,Childrens Services,5105631279,16.10.2013,Local Authority Care Units 5-7,Interview & recruitment expenses,44.00,ACCESS PERSONAL CHECKING
Revenue,Community Wellbeing & Social Care,5105631279,16.10.2013,Strengthening Families,Interview & recruitment expenses,88.00,ACCESS PERSONAL CHECKING
Revenue,Community Wellbeing & Social Care,5105631279,16.10.2013,Strengthening Families,Interview & recruitment expenses,12.00,ACCESS PERSONAL CHECKING
Revenue,Childrens Services,5105631279,16.10.2013,Beaulieu House,Interview & recruitment expenses,352.00,ACCESS PERSONAL CHECKING
Revenue,Childrens Services,5105631279,16.10.2013,Beaulieu House,Interview & recruitment expenses,54.00,ACCESS PERSONAL CHECKING
Revenue,Childrens Services,5105631279,16.10.2013,Reviewing Officer,Interview & recruitment expenses,6.00,ACCESS PERSONAL CHECKING
Revenue,Childrens Services,5105631279,16.10.2013,Reviewing Officer,Interview & recruitment expenses,44.00,ACCESS PERSONAL CHECKING
Revenue,Economy & Environment,5105631279,16.10.2013,School Crossing Patrols,Interview & recruitment expenses,6.00,ACCESS PERSONAL CHECKING
Revenue,Economy & Environment,5105631279,16.10.2013,School Crossing Patrols,Interview & recruitment expenses,44.00,ACCESS PERSONAL CHECKING
Revenue,Economy & Environment,5105631279,16.10.2013,School Crossing Patrols,Interview & recruitment expenses,44.00,ACCESS PERSONAL CHECKING
Revenue,Economy & Environment,5105631279,16.10.2013,School Crossing Patrols,Interview & recruitment expenses,6.00,ACCESS PERSONAL CHECKING
Revenue,Economy & Environment,5105631279,16.10.2013,Transport contracts,Interview & recruitment expenses,6.00,ACCESS PERSONAL CHECKING
Revenue,Economy & Environment,5105630001,16.10.2013,Licensing Services,Interview & recruitment expenses,440.00,ACCESS PERSONAL CHECKING
Revenue,Economy & Environment,5105630001,16.10.2013,Licensing Services,Professional Services,60.00,ACCESS PERSONAL CHECKING
Revenue,Community Wellbeing & Social Care,5105629415,09.10.2013,Elderly Frail Homecare,Regular Respite Care,0.00,ACORN CARE SERVICE LTD
Revenue,Community Wellbeing & Social Care,5105630166,11.10.2013,Elderly Frail Homecare,Regular Respite Care,87.12,ACORN CARE SERVICE LTD
Revenue,Community Wellbeing & Social Care,5105630175,11.10.2013,Elderly Frail Homecare,Regular Respite Care,29.04,ACORN CARE SERVICE LTD
Revenue,Community Wellbeing & Social Care,5105630168,11.10.2013,Elderly Frail Homecare,Regular Respite Care,87.12,ACORN CARE SERVICE LTD
Revenue,Community Wellbeing & Social Care,5105632655,23.10.2013,Elderly Frail Homecare,Charges from Independent Providers,0.00,ACORN CARE SERVICE LTD
Revenue,Community Wellbeing & Social Care,5105631031,16.10.2013,Elderly Frail Homecare,Charges from Independent Providers,"1,045.44",ACORN CARE SERVICE LTD
Revenue,Community Wellbeing & Social Care,5105631870,18.10.2013,Elderly Frail Homecare,Charges from Independent Providers,"1,096.26",ACORN CARE SERVICE LTD
Revenue,Community Wellbeing & Social Care,5105631869,18.10.2013,Elderly Frail Homecare,Charges from Independent Providers,0.00,ACORN CARE SERVICE LTD
Revenue,Community Wellbeing & Social Care,5105630162,11.10.2013,Elderly Frail Homecare,Charges from Independent Providers,406.56,ACORN CARE SERVICE LTD
Revenue,Community Wellbeing & Social Care,5105630176,11.10.2013,Elderly Frail Homecare,Charges from Independent Providers,609.84,ACORN CARE SERVICE LTD
Revenue,Community Wellbeing & Social Care,5105630169,11.10.2013,Elderly Frail Homecare,Charges from Independent Providers,210.54,ACORN CARE SERVICE LTD
Revenue,Community Wellbeing & Social Care,5105630163,11.10.2013,Elderly Frail Homecare,Charges from Independent Providers,130.68,ACORN CARE SERVICE LTD
Revenue,Community Wellbeing & Social Care,5105630167,11.10.2013,Elderly Frail Homecare,Charges from Independent Providers,203.28,ACORN CARE SERVICE LTD
Revenue,Community Wellbeing & Social Care,5105630169,11.10.2013,Elderly Frail Homecare,Charges from Independent Providers,210.54,ACORN CARE SERVICE LTD
Revenue,Community Wellbeing & Social Care,5105630164,11.10.2013,Elderly Frail Homecare,Charges from Independent Providers,348.48,ACORN CARE SERVICE LTD
Revenue,Community Wellbeing & Social Care,5105630174,11.10.2013,Elderly Frail Homecare,Charges from Independent Providers,704.22,ACORN CARE SERVICE LTD
Revenue,Community Wellbeing & Social Care,5105630181,11.10.2013,Elderly Frail Homecare,Charges from Independent Providers,58.08,ACORN CARE SERVICE LTD
Revenue,Community Wellbeing & Social Care,5105630146,11.10.2013,Elderly Frail Homecare,Charges from Independent Providers,533.61,ACORN CARE SERVICE LTD
Revenue,Community Wellbeing & Social Care,5105630147,11.10.2013,Elderly Frail Homecare,Charges from Independent Providers,"2,199.78",ACORN CARE SERVICE LTD
Revenue,Community Wellbeing & Social Care,5105630148,11.10.2013,Elderly Frail Homecare,Charges from Independent Providers,290.40,ACORN CARE SERVICE LTD
Revenue,Community Wellbeing & Social Care,5105630145,11.10.2013,Elderly Frail Homecare,Charges from Independent Providers,627.99,ACORN CARE SERVICE LTD
Revenue,Community Wellbeing & Social Care,5105630149,11.10.2013,Elderly Frail Homecare,Charges from Independent Providers,712.08,ACORN CARE SERVICE LTD
Revenue,Community Wellbeing & Social Care,5105630150,11.10.2013,Elderly Frail Homecare,Charges from Independent Providers,"1,288.65",ACORN CARE SERVICE LTD
Revenue,Community Wellbeing & Social Care,5105630151,11.10.2013,Elderly Frail Homecare,Charges from Independent Providers,"1,422.96",ACORN CARE SERVICE LTD
Revenue,Community Wellbeing & Social Care,5105630152,11.10.2013,Elderly Frail Homecare,Charges from Independent Providers,348.48,ACORN CARE SERVICE LTD
Revenue,Community Wellbeing & Social Care,5105630153,11.10.2013,Elderly Frail Homecare,Charges from Independent Providers,827.64,ACORN CARE SERVICE LTD
Revenue,Community Wellbeing & Social Care,5105630154,11.10.2013,Elderly Frail Homecare,Charges from Independent Providers,145.20,ACORN CARE SERVICE LTD
Revenue,Community Wellbeing & Social Care,5105630165,11.10.2013,Elderly Frail Homecare,Charges from Independent Providers,235.95,ACORN CARE SERVICE LTD
Revenue,Community Wellbeing & Social Care,5105630159,11.10.2013,Elderly Frail Homecare,Charges from Independent Providers,203.28,ACORN CARE SERVICE LTD
Revenue,Community Wellbeing & Social Care,5105630160,11.10.2013,Elderly Frail Homecare,Charges from Independent Providers,203.28,ACORN CARE SERVICE LTD
Revenue,Community Wellbeing & Social Care,5105630161,11.10.2013,Elderly Frail Homecare,Charges from Independent Providers,203.28,ACORN CARE SERVICE LTD
Revenue,Community Wellbeing & Social Care,5105630179,11.10.2013,Elderly Frail Homecare,Charges from Independent Providers,805.86,ACORN CARE SERVICE LTD
Revenue,Community Wellbeing & Social Care,5105630182,11.10.2013,Elderly Frail Homecare,Charges from Independent Providers,254.10,ACORN CARE SERVICE LTD
Revenue,Community Wellbeing & Social Care,5105630144,11.10.2013,Elderly Frail Homecare,Charges from Independent Providers,377.52,ACORN CARE SERVICE LTD
Revenue,Community Wellbeing & Social Care,5105630156,11.10.2013,Elderly Frail Homecare,Charges from Independent Providers,704.22,ACORN CARE SERVICE LTD
Revenue,Community Wellbeing & Social Care,5105630155,11.10.2013,Elderly Frail Homecare,Charges from Independent Providers,522.72,ACORN CARE SERVICE LTD
Revenue,Community Wellbeing & Social Care,5105630157,11.10.2013,Elderly Frail Homecare,Charges from Independent Providers,101.64,ACORN CARE SERVICE LTD
Revenue,Community Wellbeing & Social Care,5105630158,11.10.2013,Elderly Frail Homecare,Charges from Independent Providers,58.08,ACORN CARE SERVICE LTD
Revenue,Community Wellbeing & Social Care,5105630178,11.10.2013,Elderly Frail Homecare,Charges from Independent Providers,"2,548.26",ACORN CARE SERVICE LTD
Revenue,Community Wellbeing & Social Care,5105630177,11.10.2013,Elderly Frail Homecare,Charges from Independent Providers,108.90,ACORN CARE SERVICE LTD
Revenue,Community Wellbeing & Social Care,5105630172,11.10.2013,Elderly Frail Homecare,Charges from Independent Providers,145.20,ACORN CARE SERVICE LTD
Revenue,Community Wellbeing & Social Care,5105630171,11.10.2013,Elderly Frail Homecare,Charges from Independent Providers,348.48,ACORN CARE SERVICE LTD
Revenue,Community Wellbeing & Social Care,5105630180,11.10.2013,Elderly Mentally Ill Homecare,Charges from Independent Providers,297.66,ACORN CARE SERVICE LTD
Revenue,Community Wellbeing & Social Care,5105630173,11.10.2013,Elderly Frail Managed Accounts,Regular Respite Care,116.16,ACORN CARE SERVICE LTD
Revenue,Community Wellbeing & Social Care,5105630170,11.10.2013,Elderly Frail Managed Accounts,Charges from Independent Providers,755.04,ACORN CARE SERVICE LTD
Revenue,Community Wellbeing & Social Care,5105631871,18.10.2013,Elderly Frail Managed Accounts,Charges from Independent Providers,914.76,ACORN CARE SERVICE LTD
Revenue,Economy & Environment,5105633332,25.10.2013,Environmental Health - Geographical Team,Professional Services,248.00,ACOUSTIC CALIBRATION SERVICES LTD
Revenue,Economy & Environment,5105633463,30.10.2013,Concessionary Fares- Over 60s,Payment to Private Contractors,"5,000.00",ACT -APPLIED CARD TECHNOLOGIES LTD
Revenue,Economy & Environment,5105631760,18.10.2013,The Heights,Payment to Private Contractors,235.00,ACTIVE FACES WELLBEING LIMITED +
Revenue,Economy & Environment,5105631760,18.10.2013,Medina Leisure Centre,Payment to Private Contractors,427.50,ACTIVE FACES WELLBEING LIMITED +
Revenue,Economy & Environment,5105631760,18.10.2013,Westridge Squash Courts,Payment to Private Contractors,127.50,ACTIVE FACES WELLBEING LIMITED +
Revenue,Economy & Environment,5105632719,23.10.2013,Fire Technical Support,Vehicle Maintenance Costs,120.00,ADAMS MOREY LTD
Revenue,Economy & Environment,5105631813,18.10.2013,Fire Technical Support,Vehicle Maintenance Costs,14.50,ADAMS MOREY LTD
Revenue,Economy & Environment,5105632075,23.10.2013,Fire Technical Support,Vehicle Maintenance Costs,143.87,ADAMS MOREY LTD
Revenue,Economy & Environment,5105632075,23.10.2013,Fire Technical Support,Vehicle Maintenance Costs,8.80,ADAMS MOREY LTD
Revenue,Economy & Environment,5105632076,23.10.2013,Fire Technical Support,Vehicle Maintenance Costs,143.87,ADAMS MOREY LTD
Revenue,Economy & Environment,5105634016,31.10.2013,Fire Technical Support,Vehicle Maintenance Costs,45.57,ADAMS MOREY LTD
Revenue,Economy & Environment,5105634016,31.10.2013,Fire Technical Support,Vehicle Maintenance Costs,45.57,ADAMS MOREY LTD
Revenue,Economy & Environment,5105634017,31.10.2013,Fire Technical Support,Vehicle Maintenance Costs,40.00,ADAMS MOREY LTD
Revenue,Economy & Environment,5105629887,11.10.2013,Fire Technical Support,Vehicle Maintenance Costs,48.00,ADAMS MOREY LTD
Revenue,Economy & Environment,5105631761,18.10.2013,Fire Technical Support,Vehicle Maintenance Costs,109.50,ADAMS MOREY LTD
Revenue,Economy & Environment,5105631761,18.10.2013,Fire Technical Support,Vehicle Maintenance Costs,19.74,ADAMS MOREY LTD
Revenue,Economy & Environment,5105631174,16.10.2013,Fire Technical Support,Vehicle Maintenance Costs,12.30,ADAMS MOREY LTD
Revenue,Economy & Environment,5105631174,16.10.2013,Fire Technical Support,Vehicle Maintenance Costs,10.00,ADAMS MOREY LTD
Revenue,Economy & Environment,5105631174,16.10.2013,Fire Technical Support,Vehicle Maintenance Costs,78.00,ADAMS MOREY LTD
Revenue,Economy & Environment,5105631174,16.10.2013,Fire Technical Support,Vehicle Maintenance Costs,7.95,ADAMS MOREY LTD
Revenue,Economy & Environment,5105632720,23.10.2013,Fire Technical Support,Vehicle Maintenance Costs,14.50,ADAMS MOREY LTD
Revenue,Economy & Environment,5105628236,04.10.2013,Fire Technical Support,Vehicle Maintenance Costs,14.50,ADAMS MOREY LTD
Revenue,Economy & Environment,5105629938,11.10.2013,Fire Technical Support,Vehicle Maintenance Costs,21.75,ADAMS MOREY LTD
Revenue,Economy & Environment,5105631979,18.10.2013,Medina Theatre,Payment to Private Contractors,84.49,ADLER MANUFACTURING LTD
Revenue,Childrens Services,5105630047,23.10.2013,Adoption Costs,Payments to Voluntary and Other Associations,"1,194.42",ADOPTION MATTERS NORTHWEST
Revenue,Resources,5105631436,16.10.2013,"County Hall,Newport",Security of Buildings,134.21,ADT FIRE AND SECURITY PLC
Capital,Resources,5105633335,25.10.2013,Strategic Projects,ICT Hardware & Software - Capital,258.00,ADT FIRE AND SECURITY PLC
Revenue,Community Wellbeing & Social Care,5105628118,02.10.2013,Gouldings Resource Centre,Maintenance of Operational Equipment,223.17,ADT FIRE AND SECURITY PLC
Revenue,Economy & Environment,5105634007,31.10.2013,Medina Leisure Centre,Payment to Private Contractors,249.00,ADT FIRE AND SECURITY PLC
Revenue,Community Wellbeing & Social Care,5105631866,18.10.2013,Voluntary Sector Grants - Older People,Payments to Voluntary and Other Associations,"12,000.00",AGE CONCERN ISLE OF WIGHT
Revenue,Community Wellbeing & Social Care,5105629554,09.10.2013,Mental Health Other Care,Charges from Independent Providers,279.50,AGE CONCERN ISLE OF WIGHT
Revenue,Community Wellbeing & Social Care,5105628446,04.10.2013,Mental Health Other Care,Charges from Independent Providers,16.00,AGE CONCERN ISLE OF WIGHT
Revenue,Economy & Environment,5105632090,23.10.2013,Fire Technical Support,Postage,7.50,AIR LOGISTICS NETWORKS LTD
Revenue,Economy & Environment,5105632089,23.10.2013,Environmental Health - Geographical Team,Courier Costs,19.17,AIR LOGISTICS NETWORKS LTD
Revenue,Community Wellbeing & Social Care,5105632278,23.10.2013,Emergency Duty Service,Agency staff,"1,480.00",AIR SOCIAL CARE
Revenue,Community Wellbeing & Social Care,5105631786,23.10.2013,Emergency Duty Service,Agency staff,"3,560.00",AIR SOCIAL CARE
Revenue,Community Wellbeing & Social Care,5105632366,23.10.2013,Emergency Duty Service,Agency staff,"1,520.00",AIR SOCIAL CARE
Revenue,Community Wellbeing & Social Care,5105632375,23.10.2013,Emergency Duty Service,Agency staff,"-1,480.00",AIR SOCIAL CARE
Revenue,Community Wellbeing & Social Care,5105632376,23.10.2013,Emergency Duty Service,Agency staff,"1,480.00",AIR SOCIAL CARE
Revenue,Community Wellbeing & Social Care,5105632373,23.10.2013,Emergency Duty Service,Agency staff,"1,480.00",AIR SOCIAL CARE
Revenue,Community Wellbeing & Social Care,5105632592,23.10.2013,Emergency Duty Service,Agency staff,"1,480.00",AIR SOCIAL CARE
Revenue,Community Wellbeing & Social Care,5105632595,30.10.2013,Emergency Duty Service,Agency staff,"1,480.00",AIR SOCIAL CARE
Revenue,Community Wellbeing & Social Care,5105632600,23.10.2013,Emergency Duty Service,Agency staff,"-1,480.00",AIR SOCIAL CARE
Revenue,Community Wellbeing & Social Care,5105632605,30.10.2013,Emergency Duty Service,Agency staff,"1,480.00",AIR SOCIAL CARE
Revenue,Community Wellbeing & Social Care,5105632602,30.10.2013,Emergency Duty Service,Agency staff,"1,480.00",AIR SOCIAL CARE
Revenue,Community Wellbeing & Social Care,5105632593,23.10.2013,Emergency Duty Service,Agency staff,"-1,480.00",AIR SOCIAL CARE
Revenue,Community Wellbeing & Social Care,5105632599,23.10.2013,Emergency Duty Service,Agency staff,"1,480.00",AIR SOCIAL CARE
Revenue,Community Wellbeing & Social Care,5105629367,09.10.2013,Emergency Duty Service,Agency staff,"1,480.00",AIR SOCIAL CARE
Revenue,Community Wellbeing & Social Care,5105632264,23.10.2013,Emergency Duty Service,Agency staff,"-1,480.00",AIR SOCIAL CARE
Revenue,Community Wellbeing & Social Care,5105632267,23.10.2013,Emergency Duty Service,Agency staff,"1,480.00",AIR SOCIAL CARE
Revenue,Community Wellbeing & Social Care,5105632269,23.10.2013,Emergency Duty Service,Agency staff,"-1,480.00",AIR SOCIAL CARE
Revenue,Community Wellbeing & Social Care,5105632282,23.10.2013,Emergency Duty Service,Agency staff,"-1,480.00",AIR SOCIAL CARE
Revenue,Community Wellbeing & Social Care,5105632285,23.10.2013,Emergency Duty Service,Agency staff,"1,480.00",AIR SOCIAL CARE
Revenue,Community Wellbeing & Social Care,5105632277,23.10.2013,Emergency Duty Service,Agency staff,"-1,480.00",AIR SOCIAL CARE
Revenue,Community Wellbeing & Social Care,5105632272,23.10.2013,Emergency Duty Service,Agency staff,"1,480.00",AIR SOCIAL CARE
Revenue,Childrens Services,5105632603,23.10.2013,Reviewing Officer,Agency staff,"1,350.00",AIR SOCIAL CARE
Revenue,Childrens Services,5105632600,23.10.2013,Reviewing Officer,Agency staff,"-1,350.00",AIR SOCIAL CARE
Revenue,Childrens Services,5105632600,23.10.2013,Reviewing Officer,Agency staff,-135.90,AIR SOCIAL CARE
Revenue,Childrens Services,5105632603,23.10.2013,Reviewing Officer,Agency staff,135.90,AIR SOCIAL CARE
Revenue,Childrens Services,5105632594,23.10.2013,Reviewing Officer,Agency staff,159.20,AIR SOCIAL CARE
Revenue,Childrens Services,5105632599,23.10.2013,Reviewing Officer,Agency staff,135.90,AIR SOCIAL CARE
Revenue,Childrens Services,5105632593,23.10.2013,Reviewing Officer,Agency staff,-159.20,AIR SOCIAL CARE
Revenue,Childrens Services,5105632592,23.10.2013,Reviewing Officer,Agency staff,159.20,AIR SOCIAL CARE
Revenue,Childrens Services,5105631785,18.10.2013,Reviewing Officer,Agency staff,"1,350.00",AIR SOCIAL CARE
Revenue,Childrens Services,5105631785,18.10.2013,Reviewing Officer,Agency staff,180.65,AIR SOCIAL CARE
Revenue,Childrens Services,5105632377,23.10.2013,Reviewing Officer,Agency staff,"1,350.00",AIR SOCIAL CARE
Revenue,Childrens Services,5105632375,23.10.2013,Reviewing Officer,Agency staff,"-1,350.00",AIR SOCIAL CARE
Revenue,Childrens Services,5105632373,23.10.2013,Reviewing Officer,Agency staff,"1,350.00",AIR SOCIAL CARE
Revenue,Childrens Services,5105632369,23.10.2013,Reviewing Officer,Agency staff,"1,350.00",AIR SOCIAL CARE
Revenue,Childrens Services,5105632369,23.10.2013,Reviewing Officer,Agency staff,179.75,AIR SOCIAL CARE
Revenue,Childrens Services,5105632373,23.10.2013,Reviewing Officer,Agency staff,199.92,AIR SOCIAL CARE
Revenue,Childrens Services,5105632375,23.10.2013,Reviewing Officer,Agency staff,-199.92,AIR SOCIAL CARE
Revenue,Childrens Services,5105632377,23.10.2013,Reviewing Officer,Agency staff,199.92,AIR SOCIAL CARE
Revenue,Childrens Services,5105629367,09.10.2013,Reviewing Officer,Agency staff,"1,350.00",AIR SOCIAL CARE
Revenue,Childrens Services,5105629367,09.10.2013,Reviewing Officer,Agency staff,217.00,AIR SOCIAL CARE
Revenue,Childrens Services,5105634020,31.10.2013,Reviewing Officer,Agency staff,"1,350.00",AIR SOCIAL CARE
Revenue,Childrens Services,5105634020,31.10.2013,Reviewing Officer,Agency staff,175.70,AIR SOCIAL CARE
Revenue,Childrens Services,5105632282,23.10.2013,Reviewing Officer,Agency staff,"-1,350.00",AIR SOCIAL CARE
Revenue,Childrens Services,5105632279,23.10.2013,Reviewing Officer,Agency staff,"1,350.00",AIR SOCIAL CARE
Revenue,Childrens Services,5105632277,23.10.2013,Reviewing Officer,Agency staff,"-1,350.00",AIR SOCIAL CARE
Revenue,Childrens Services,5105632283,23.10.2013,Reviewing Officer,Agency staff,"1,350.00",AIR SOCIAL CARE
Revenue,Childrens Services,5105632271,23.10.2013,Reviewing Officer,Agency staff,"1,350.00",AIR SOCIAL CARE
Revenue,Childrens Services,5105632269,23.10.2013,Reviewing Officer,Agency staff,"-1,350.00",AIR SOCIAL CARE
Revenue,Childrens Services,5105632264,23.10.2013,Reviewing Officer,Agency staff,"-1,350.00",AIR SOCIAL CARE
Revenue,Childrens Services,5105632265,23.10.2013,Reviewing Officer,Agency staff,"1,350.00",AIR SOCIAL CARE
Revenue,Childrens Services,5105632265,23.10.2013,Reviewing Officer,Agency staff,145.65,AIR SOCIAL CARE
Revenue,Childrens Services,5105632264,23.10.2013,Reviewing Officer,Agency staff,-145.65,AIR SOCIAL CARE
Revenue,Childrens Services,5105632269,23.10.2013,Reviewing Officer,Agency staff,-66.60,AIR SOCIAL CARE
Revenue,Childrens Services,5105632271,23.10.2013,Reviewing Officer,Agency staff,66.60,AIR SOCIAL CARE
Revenue,Childrens Services,5105632283,23.10.2013,Reviewing Officer,Agency staff,217.00,AIR SOCIAL CARE
Revenue,Childrens Services,5105632277,23.10.2013,Reviewing Officer,Agency staff,-210.40,AIR SOCIAL CARE
Revenue,Childrens Services,5105632279,23.10.2013,Reviewing Officer,Agency staff,210.40,AIR SOCIAL CARE
Revenue,Childrens Services,5105632282,23.10.2013,Reviewing Officer,Agency staff,-217.00,AIR SOCIAL CARE
Revenue,Childrens Services,5105632592,23.10.2013,Reviewing Officer,Agency staff,"1,350.00",AIR SOCIAL CARE
Revenue,Childrens Services,5105632593,23.10.2013,Reviewing Officer,Agency staff,"-1,350.00",AIR SOCIAL CARE
Revenue,Childrens Services,5105632599,23.10.2013,Reviewing Officer,Agency staff,"1,350.00",AIR SOCIAL CARE
Revenue,Childrens Services,5105632594,23.10.2013,Reviewing Officer,Agency staff,"1,350.00",AIR SOCIAL CARE
Revenue,Resources,5105633778,31.10.2013,Corporate Stores,Payment to Private Contractors,40.00,ALAN SHEPARD (IOW)
Revenue,Childrens Services,5105628509,04.10.2013,Leaving Care Costs,Support Children,95.00,ALAN SHEPARD (IOW)
Revenue,Economy & Environment,5105632311,23.10.2013,Development Control,Advertising & Publicity,195.13,ALEXANDER ADVERTISING (INT) LTD
Revenue,Economy & Environment,5105633337,25.10.2013,Development Control,Advertising & Publicity,143.78,ALEXANDER ADVERTISING (INT) LTD
Revenue,Economy & Environment,5105633336,25.10.2013,Development Control,Advertising & Publicity,174.59,ALEXANDER ADVERTISING (INT) LTD
Revenue,Economy & Environment,5105631437,16.10.2013,Development Control,Advertising & Publicity,359.46,ALEXANDER ADVERTISING (INT) LTD
Revenue,Childrens Services,5105629321,09.10.2013,Complaints (Children & Families),Professional Services,933.00,ALISON CAMPBELL LTD
Revenue,Economy & Environment,5105630936,16.10.2013,Fire Technical Support,Stock Purchases,38.00,ALLBATTERIES UK LTD
Revenue,Economy & Environment,5105630936,16.10.2013,Fire Technical Support,Stock Purchases,33.00,ALLBATTERIES UK LTD
Revenue,Community Wellbeing & Social Care,5105632352,23.10.2013,Head of Adults,Travel Expenses,25.00,ALPHA (IOW) LTD
Revenue,Community Wellbeing & Social Care,5105632352,23.10.2013,Head of Adults,Travel Expenses,25.00,ALPHA (IOW) LTD
Revenue,Community Wellbeing & Social Care,5105630780,16.10.2013,Physical Disability Other Care,Charges from Independent Providers,75.00,ALPHA (IOW) LTD
Revenue,Childrens Services,5105629536,09.10.2013,Support for Looked After Children,Transport of Clients,105.00,ALPHA (IOW) LTD
Revenue,Childrens Services,5105629538,09.10.2013,Support for Looked After Children,Transport of Clients,65.90,ALPHA (IOW) LTD
Revenue,Childrens Services,5105631956,18.10.2013,Support for Looked After Children,Transport of Clients,102.70,ALPHA (IOW) LTD
Revenue,Childrens Services,5105630924,16.10.2013,Special Educational Needs Transport,Taxis - Contract Hire,236.45,ALPHA (IOW) LTD
Revenue,Childrens Services,5105630985,16.10.2013,Special Educational Needs Transport,Taxis - Contract Hire,94.58,ALPHA (IOW) LTD
Revenue,Childrens Services,5105630985,16.10.2013,Special Educational Needs Transport,Taxis - Contract Hire,111.03,ALPHA (IOW) LTD
Revenue,Childrens Services,5105630924,16.10.2013,Special Educational Needs Transport,Taxis - Contract Hire,185.05,ALPHA (IOW) LTD
Revenue,Childrens Services,5105630985,16.10.2013,Special Educational Needs Transport,Taxis - Contract Hire,143.92,ALPHA (IOW) LTD
Revenue,Childrens Services,5105630924,16.10.2013,Special Educational Needs Transport,Taxis - Contract Hire,359.80,ALPHA (IOW) LTD
Revenue,Childrens Services,5105630985,16.10.2013,Special Educational Needs Transport,Taxis - Contract Hire,32.90,ALPHA (IOW) LTD
Revenue,Childrens Services,5105630924,16.10.2013,Special Educational Needs Transport,Taxis - Contract Hire,82.25,ALPHA (IOW) LTD
Revenue,Childrens Services,5105630924,16.10.2013,Special Educational Needs Transport,Taxis - Contract Hire,84.40,ALPHA (IOW) LTD
Revenue,Childrens Services,5105630985,16.10.2013,Special Educational Needs Transport,Taxis - Contract Hire,33.76,ALPHA (IOW) LTD
Revenue,Childrens Services,5105631957,18.10.2013,Special Educational Needs Transport,Taxis - Contract Hire,236.45,ALPHA (IOW) LTD
Revenue,Childrens Services,5105631957,18.10.2013,Special Educational Needs Transport,Taxis - Contract Hire,185.05,ALPHA (IOW) LTD
Revenue,Childrens Services,5105631957,18.10.2013,Special Educational Needs Transport,Taxis - Contract Hire,82.25,ALPHA (IOW) LTD
Revenue,Childrens Services,5105631957,18.10.2013,Special Educational Needs Transport,Taxis - Contract Hire,84.40,ALPHA (IOW) LTD
Revenue,Childrens Services,5105631957,18.10.2013,Special Educational Needs Transport,Taxis - Contract Hire,316.40,ALPHA (IOW) LTD
Revenue,Childrens Services,5105630924,16.10.2013,Special Educational Needs Transport,Taxis - Contract Hire,400.00,ALPHA (IOW) LTD
Revenue,Childrens Services,5105630985,16.10.2013,Special Educational Needs Transport,Taxis - Contract Hire,40.00,ALPHA (IOW) LTD
Revenue,Childrens Services,5105630985,16.10.2013,Special Educational Needs Transport,Taxis - Contract Hire,205.04,ALPHA (IOW) LTD
Revenue,Childrens Services,5105630924,16.10.2013,Special Educational Needs Transport,Taxis - Contract Hire,348.40,ALPHA (IOW) LTD
Revenue,Childrens Services,5105630924,16.10.2013,Special Educational Needs Transport,Taxis - Contract Hire,390.65,ALPHA (IOW) LTD
Revenue,Childrens Services,5105630985,16.10.2013,Special Educational Needs Transport,Taxis - Contract Hire,234.39,ALPHA (IOW) LTD
Revenue,Childrens Services,5105630985,16.10.2013,Special Educational Needs Transport,Taxis - Contract Hire,49.34,ALPHA (IOW) LTD
Revenue,Childrens Services,5105630924,16.10.2013,Special Educational Needs Transport,Taxis - Contract Hire,123.35,ALPHA (IOW) LTD
Revenue,Childrens Services,5105630924,16.10.2013,Special Educational Needs Transport,Taxis - Contract Hire,316.40,ALPHA (IOW) LTD
Revenue,Childrens Services,5105630985,16.10.2013,Special Educational Needs Transport,Taxis - Contract Hire,189.84,ALPHA (IOW) LTD
Revenue,Childrens Services,5105630985,16.10.2013,Special Educational Needs Transport,Taxis - Contract Hire,120.00,ALPHA (IOW) LTD
Revenue,Childrens Services,5105630924,16.10.2013,Special Educational Needs Transport,Taxis - Contract Hire,300.00,ALPHA (IOW) LTD
Revenue,Childrens Services,5105630924,16.10.2013,Special Educational Needs Transport,Taxis - Contract Hire,222.06,ALPHA (IOW) LTD
Revenue,Childrens Services,5105630985,16.10.2013,Special Educational Needs Transport,Taxis - Contract Hire,148.04,ALPHA (IOW) LTD
Revenue,Childrens Services,5105633388,25.10.2013,Special Educational Needs Transport,Taxis - Contract Hire,82.25,ALPHA (IOW) LTD
Revenue,Childrens Services,5105633388,25.10.2013,Special Educational Needs Transport,Taxis - Contract Hire,84.40,ALPHA (IOW) LTD
Revenue,Childrens Services,5105633388,25.10.2013,Special Educational Needs Transport,Taxis - Contract Hire,236.45,ALPHA (IOW) LTD
Revenue,Childrens Services,5105633388,25.10.2013,Special Educational Needs Transport,Taxis - Contract Hire,185.05,ALPHA (IOW) LTD
Revenue,Childrens Services,5105631957,18.10.2013,Special Educational Needs Transport,Taxis - Contract Hire,263.70,ALPHA (IOW) LTD
Revenue,Childrens Services,5105631957,18.10.2013,Special Educational Needs Transport,Taxis - Contract Hire,400.00,ALPHA (IOW) LTD
Revenue,Childrens Services,5105631957,18.10.2013,Special Educational Needs Transport,Taxis - Contract Hire,308.40,ALPHA (IOW) LTD
Revenue,Childrens Services,5105631957,18.10.2013,Special Educational Needs Transport,Taxis - Contract Hire,390.65,ALPHA (IOW) LTD
Revenue,Childrens Services,5105631957,18.10.2013,Special Educational Needs Transport,Taxis - Contract Hire,123.35,ALPHA (IOW) LTD
Revenue,Childrens Services,5105631957,18.10.2013,Special Educational Needs Transport,Taxis - Contract Hire,210.00,ALPHA (IOW) LTD
Revenue,Childrens Services,5105631957,18.10.2013,Special Educational Needs Transport,Taxis - Contract Hire,300.00,ALPHA (IOW) LTD
Revenue,Childrens Services,5105631957,18.10.2013,Special Educational Needs Transport,Taxis - Contract Hire,370.10,ALPHA (IOW) LTD
Revenue,Childrens Services,5105631957,18.10.2013,Special Educational Needs Transport,Taxis - Contract Hire,359.80,ALPHA (IOW) LTD
Revenue,Childrens Services,5105633388,25.10.2013,Special Educational Needs Transport,Taxis - Contract Hire,316.40,ALPHA (IOW) LTD
Revenue,Childrens Services,5105633388,25.10.2013,Special Educational Needs Transport,Taxis - Contract Hire,263.70,ALPHA (IOW) LTD
Revenue,Childrens Services,5105633388,25.10.2013,Special Educational Needs Transport,Taxis - Contract Hire,400.00,ALPHA (IOW) LTD
Revenue,Childrens Services,5105633388,25.10.2013,Special Educational Needs Transport,Taxis - Contract Hire,308.40,ALPHA (IOW) LTD
Revenue,Childrens Services,5105633388,25.10.2013,Special Educational Needs Transport,Taxis - Contract Hire,390.65,ALPHA (IOW) LTD
Revenue,Childrens Services,5105633388,25.10.2013,Special Educational Needs Transport,Taxis - Contract Hire,123.35,ALPHA (IOW) LTD
Revenue,Childrens Services,5105633388,25.10.2013,Special Educational Needs Transport,Taxis - Contract Hire,210.00,ALPHA (IOW) LTD
Revenue,Childrens Services,5105633388,25.10.2013,Special Educational Needs Transport,Taxis - Contract Hire,300.00,ALPHA (IOW) LTD
Revenue,Childrens Services,5105633388,25.10.2013,Special Educational Needs Transport,Taxis - Contract Hire,370.10,ALPHA (IOW) LTD
Revenue,Childrens Services,5105633388,25.10.2013,Special Educational Needs Transport,Taxis - Contract Hire,287.84,ALPHA (IOW) LTD
Revenue,Childrens Services,5105630883,16.10.2013,Special Educational Needs Transport,Taxis - Contract Hire,300.00,ALPHA (IOW) LTD
Revenue,Childrens Services,5105630862,16.10.2013,Special Educational Needs Transport,Taxis - Contract Hire,300.00,ALPHA (IOW) LTD
Revenue,Childrens Services,5105630855,16.10.2013,Special Educational Needs Transport,Taxis - Contract Hire,300.00,ALPHA (IOW) LTD
Revenue,Childrens Services,5105630855,16.10.2013,Special Educational Needs Transport,Taxis - Contract Hire,370.10,ALPHA (IOW) LTD
Revenue,Childrens Services,5105630862,16.10.2013,Special Educational Needs Transport,Taxis - Contract Hire,37.01,ALPHA (IOW) LTD
Revenue,Childrens Services,5105630862,16.10.2013,Special Educational Needs Transport,Taxis - Contract Hire,359.80,ALPHA (IOW) LTD
Revenue,Childrens Services,5105630855,16.10.2013,Special Educational Needs Transport,Taxis - Contract Hire,359.80,ALPHA (IOW) LTD
Revenue,Childrens Services,5105630883,16.10.2013,Special Educational Needs Transport,Taxis - Contract Hire,359.80,ALPHA (IOW) LTD
Revenue,Childrens Services,5105630883,16.10.2013,Special Educational Needs Transport,Taxis - Contract Hire,400.00,ALPHA (IOW) LTD
Revenue,Childrens Services,5105630855,16.10.2013,Special Educational Needs Transport,Taxis - Contract Hire,400.00,ALPHA (IOW) LTD
Revenue,Childrens Services,5105630862,16.10.2013,Special Educational Needs Transport,Taxis - Contract Hire,400.00,ALPHA (IOW) LTD
Revenue,Childrens Services,5105630855,16.10.2013,Special Educational Needs Transport,Taxis - Contract Hire,82.25,ALPHA (IOW) LTD
Revenue,Childrens Services,5105630883,16.10.2013,Special Educational Needs Transport,Taxis - Contract Hire,390.65,ALPHA (IOW) LTD
Revenue,Childrens Services,5105630855,16.10.2013,Special Educational Needs Transport,Taxis - Contract Hire,390.65,ALPHA (IOW) LTD
Revenue,Childrens Services,5105630862,16.10.2013,Special Educational Needs Transport,Taxis - Contract Hire,390.65,ALPHA (IOW) LTD
Revenue,Childrens Services,5105630862,16.10.2013,Special Educational Needs Transport,Taxis - Contract Hire,123.35,ALPHA (IOW) LTD
Revenue,Childrens Services,5105630855,16.10.2013,Special Educational Needs Transport,Taxis - Contract Hire,123.35,ALPHA (IOW) LTD
Revenue,Childrens Services,5105630883,16.10.2013,Special Educational Needs Transport,Taxis - Contract Hire,123.35,ALPHA (IOW) LTD
Revenue,Childrens Services,5105630862,16.10.2013,Special Educational Needs Transport,Taxis - Contract Hire,210.00,ALPHA (IOW) LTD
Revenue,Childrens Services,5105630862,16.10.2013,Special Educational Needs Transport,Taxis - Contract Hire,82.25,ALPHA (IOW) LTD
Revenue,Childrens Services,5105630883,16.10.2013,Special Educational Needs Transport,Taxis - Contract Hire,82.25,ALPHA (IOW) LTD
Revenue,Childrens Services,5105630883,16.10.2013,Special Educational Needs Transport,Taxis - Contract Hire,84.40,ALPHA (IOW) LTD
Revenue,Childrens Services,5105630862,16.10.2013,Special Educational Needs Transport,Taxis - Contract Hire,84.40,ALPHA (IOW) LTD
Revenue,Childrens Services,5105630855,16.10.2013,Special Educational Needs Transport,Taxis - Contract Hire,84.40,ALPHA (IOW) LTD
Revenue,Childrens Services,5105630883,16.10.2013,Special Educational Needs Transport,Taxis - Contract Hire,236.45,ALPHA (IOW) LTD
Revenue,Childrens Services,5105630855,16.10.2013,Special Educational Needs Transport,Taxis - Contract Hire,185.05,ALPHA (IOW) LTD
Revenue,Childrens Services,5105630862,16.10.2013,Special Educational Needs Transport,Taxis - Contract Hire,185.05,ALPHA (IOW) LTD
Revenue,Childrens Services,5105630883,16.10.2013,Special Educational Needs Transport,Taxis - Contract Hire,185.05,ALPHA (IOW) LTD
Revenue,Childrens Services,5105630862,16.10.2013,Special Educational Needs Transport,Taxis - Contract Hire,316.40,ALPHA (IOW) LTD
Revenue,Childrens Services,5105630855,16.10.2013,Special Educational Needs Transport,Taxis - Contract Hire,263.70,ALPHA (IOW) LTD
Revenue,Childrens Services,5105630862,16.10.2013,Special Educational Needs Transport,Taxis - Contract Hire,263.70,ALPHA (IOW) LTD
Revenue,Childrens Services,5105630883,16.10.2013,Special Educational Needs Transport,Taxis - Contract Hire,263.70,ALPHA (IOW) LTD
Revenue,Childrens Services,5105630862,16.10.2013,Special Educational Needs Transport,Taxis - Contract Hire,308.40,ALPHA (IOW) LTD
Revenue,Childrens Services,5105630855,16.10.2013,Special Educational Needs Transport,Taxis - Contract Hire,348.40,ALPHA (IOW) LTD
Revenue,Childrens Services,5105630883,16.10.2013,Special Educational Needs Transport,Taxis - Contract Hire,340.40,ALPHA (IOW) LTD
Revenue,Childrens Services,5105630985,16.10.2013,Special Educational Needs Transport,Taxis - Contract Hire,105.48,ALPHA (IOW) LTD
Revenue,Childrens Services,5105630924,16.10.2013,Special Educational Needs Transport,Taxis - Contract Hire,263.70,ALPHA (IOW) LTD
Revenue,Childrens Services,5105630862,16.10.2013,Special Educational Needs Transport,Taxis - Contract Hire,236.45,ALPHA (IOW) LTD
Revenue,Childrens Services,5105630855,16.10.2013,Special Educational Needs Transport,Taxis - Contract Hire,236.45,ALPHA (IOW) LTD
Revenue,Childrens Services,5105630883,16.10.2013,Special Educational Needs Transport,Taxis - Contract Hire,316.40,ALPHA (IOW) LTD
Revenue,Childrens Services,5105630855,16.10.2013,Special Educational Needs Transport,Taxis - Contract Hire,316.40,ALPHA (IOW) LTD
Revenue,Childrens Services,5105630883,16.10.2013,Home to School Transport,Taxis - Contract Hire,158.20,ALPHA (IOW) LTD
Revenue,Childrens Services,5105631957,18.10.2013,Home to School Transport,Taxis - Contract Hire,328.95,ALPHA (IOW) LTD
Revenue,Childrens Services,5105631957,18.10.2013,Home to School Transport,Taxis - Contract Hire,390.65,ALPHA (IOW) LTD
Revenue,Childrens Services,5105631957,18.10.2013,Home to School Transport,Taxis - Contract Hire,250.00,ALPHA (IOW) LTD
Revenue,Childrens Services,5105631957,18.10.2013,Home to School Transport,Taxis - Contract Hire,421.50,ALPHA (IOW) LTD
Revenue,Childrens Services,5105631957,18.10.2013,Home to School Transport,Taxis - Contract Hire,310.00,ALPHA (IOW) LTD
Revenue,Childrens Services,5105630985,16.10.2013,Home to School Transport,Taxis - Contract Hire,150.00,ALPHA (IOW) LTD
Revenue,Childrens Services,5105630924,16.10.2013,Home to School Transport,Taxis - Contract Hire,250.00,ALPHA (IOW) LTD
Revenue,Childrens Services,5105630985,16.10.2013,Home to School Transport,Taxis - Contract Hire,45.24,ALPHA (IOW) LTD
Revenue,Childrens Services,5105630924,16.10.2013,Home to School Transport,Taxis - Contract Hire,113.10,ALPHA (IOW) LTD
Revenue,Childrens Services,5105630924,16.10.2013,Home to School Transport,Taxis - Contract Hire,158.20,ALPHA (IOW) LTD
Revenue,Childrens Services,5105630985,16.10.2013,Home to School Transport,Taxis - Contract Hire,94.92,ALPHA (IOW) LTD
Revenue,Childrens Services,5105633388,25.10.2013,Home to School Transport,Taxis - Contract Hire,45.24,ALPHA (IOW) LTD
Revenue,Childrens Services,5105633388,25.10.2013,Home to School Transport,Taxis - Contract Hire,158.20,ALPHA (IOW) LTD
Revenue,Childrens Services,5105633388,25.10.2013,Home to School Transport,Taxis - Contract Hire,128.50,ALPHA (IOW) LTD
Revenue,Childrens Services,5105633388,25.10.2013,Home to School Transport,Taxis - Contract Hire,328.95,ALPHA (IOW) LTD
Revenue,Childrens Services,5105633388,25.10.2013,Home to School Transport,Taxis - Contract Hire,390.65,ALPHA (IOW) LTD
Revenue,Childrens Services,5105631957,18.10.2013,Home to School Transport,Taxis - Contract Hire,11.31,ALPHA (IOW) LTD
Revenue,Childrens Services,5105631957,18.10.2013,Home to School Transport,Taxis - Contract Hire,158.20,ALPHA (IOW) LTD
Revenue,Childrens Services,5105631957,18.10.2013,Home to School Transport,Taxis - Contract Hire,128.50,ALPHA (IOW) LTD
Revenue,Childrens Services,5105633388,25.10.2013,Home to School Transport,Taxis - Contract Hire,421.50,ALPHA (IOW) LTD
Revenue,Childrens Services,5105633388,25.10.2013,Home to School Transport,Taxis - Contract Hire,310.00,ALPHA (IOW) LTD
Revenue,Childrens Services,5105633388,25.10.2013,Home to School Transport,Taxis - Contract Hire,250.00,ALPHA (IOW) LTD
Revenue,Childrens Services,5105630985,16.10.2013,Home to School Transport,Taxis - Contract Hire,197.37,ALPHA (IOW) LTD
Revenue,Childrens Services,5105630924,16.10.2013,Home to School Transport,Taxis - Contract Hire,328.95,ALPHA (IOW) LTD
Revenue,Childrens Services,5105630924,16.10.2013,Home to School Transport,Taxis - Contract Hire,390.65,ALPHA (IOW) LTD
Revenue,Childrens Services,5105630985,16.10.2013,Home to School Transport,Taxis - Contract Hire,234.39,ALPHA (IOW) LTD
Revenue,Childrens Services,5105630924,16.10.2013,Home to School Transport,Taxis - Contract Hire,128.50,ALPHA (IOW) LTD
Revenue,Childrens Services,5105630985,16.10.2013,Home to School Transport,Taxis - Contract Hire,77.10,ALPHA (IOW) LTD
Revenue,Childrens Services,5105630924,16.10.2013,Home to School Transport,Taxis - Contract Hire,421.50,ALPHA (IOW) LTD
Revenue,Childrens Services,5105630985,16.10.2013,Home to School Transport,Taxis - Contract Hire,168.60,ALPHA (IOW) LTD
Revenue,Childrens Services,5105630985,16.10.2013,Home to School Transport,Taxis - Contract Hire,156.00,ALPHA (IOW) LTD
Revenue,Childrens Services,5105630924,16.10.2013,Home to School Transport,Taxis - Contract Hire,260.00,ALPHA (IOW) LTD
Revenue,Childrens Services,5105630862,16.10.2013,Home to School Transport,Taxis - Contract Hire,328.95,ALPHA (IOW) LTD
Revenue,Childrens Services,5105630855,16.10.2013,Home to School Transport,Taxis - Contract Hire,328.95,ALPHA (IOW) LTD
Revenue,Childrens Services,5105630883,16.10.2013,Home to School Transport,Taxis - Contract Hire,328.95,ALPHA (IOW) LTD
Revenue,Childrens Services,5105630883,16.10.2013,Home to School Transport,Taxis - Contract Hire,421.50,ALPHA (IOW) LTD
Revenue,Childrens Services,5105630855,16.10.2013,Home to School Transport,Taxis - Contract Hire,421.50,ALPHA (IOW) LTD
Revenue,Childrens Services,5105630855,16.10.2013,Home to School Transport,Taxis - Contract Hire,250.00,ALPHA (IOW) LTD
Revenue,Childrens Services,5105630855,16.10.2013,Home to School Transport,Taxis - Contract Hire,128.50,ALPHA (IOW) LTD
Revenue,Childrens Services,5105630862,16.10.2013,Home to School Transport,Taxis - Contract Hire,128.50,ALPHA (IOW) LTD
Revenue,Childrens Services,5105630883,16.10.2013,Home to School Transport,Taxis - Contract Hire,128.50,ALPHA (IOW) LTD
Revenue,Childrens Services,5105630862,16.10.2013,Home to School Transport,Taxis - Contract Hire,250.00,ALPHA (IOW) LTD
Revenue,Childrens Services,5105630883,16.10.2013,Home to School Transport,Taxis - Contract Hire,250.00,ALPHA (IOW) LTD
Revenue,Childrens Services,5105630883,16.10.2013,Home to School Transport,Taxis - Contract Hire,113.10,ALPHA (IOW) LTD
Revenue,Childrens Services,5105630855,16.10.2013,Home to School Transport,Taxis - Contract Hire,113.10,ALPHA (IOW) LTD
Revenue,Childrens Services,5105630862,16.10.2013,Home to School Transport,Taxis - Contract Hire,153.24,ALPHA (IOW) LTD
Revenue,Childrens Services,5105630862,16.10.2013,Home to School Transport,Taxis - Contract Hire,421.50,ALPHA (IOW) LTD
Revenue,Childrens Services,5105630862,16.10.2013,Home to School Transport,Taxis - Contract Hire,310.00,ALPHA (IOW) LTD
Revenue,Childrens Services,5105630855,16.10.2013,Home to School Transport,Taxis - Contract Hire,260.00,ALPHA (IOW) LTD
Revenue,Childrens Services,5105630883,16.10.2013,Home to School Transport,Taxis - Contract Hire,260.00,ALPHA (IOW) LTD
Revenue,Childrens Services,5105630883,16.10.2013,Home to School Transport,Taxis - Contract Hire,390.65,ALPHA (IOW) LTD
Revenue,Childrens Services,5105630855,16.10.2013,Home to School Transport,Taxis - Contract Hire,390.65,ALPHA (IOW) LTD
Revenue,Childrens Services,5105630862,16.10.2013,Home to School Transport,Taxis - Contract Hire,390.65,ALPHA (IOW) LTD
Revenue,Childrens Services,5105630862,16.10.2013,Home to School Transport,Taxis - Contract Hire,158.20,ALPHA (IOW) LTD
Revenue,Childrens Services,5105630855,16.10.2013,Home to School Transport,Taxis - Contract Hire,158.20,ALPHA (IOW) LTD
Revenue,Community Wellbeing & Social Care,5105628611,09.10.2013,Learning Disability Residential Care,Charges from Independent Providers,"3,409.00",ALPHAGRANGE LTD
Revenue,Childrens Services,5105633763,30.10.2013,Safeguarding Support,Travel Expenses,323.20,AMANDA GETHIN CONSULTANCY
Revenue,Childrens Services,5105633763,30.10.2013,Safeguarding Support,Consultants Fees,"2,700.00",AMANDA GETHIN CONSULTANCY
Revenue,Childrens Services,5105631250,16.10.2013,Home to School Transport,Taxis - Contract Hire,418.00,AMAR CABS OF NEWPORT
Revenue,Childrens Services,5105631814,18.10.2013,Clatterford Pupil Referral Unit (PRU),Taxis - Contract Hire,651.00,AMAR EXCLUSIVES
Revenue,Childrens Services,5105630918,16.10.2013,Home to School Transport,Taxis - Contract Hire,418.00,AMAR EXCLUSIVES
Revenue,Childrens Services,5105630919,16.10.2013,Home to School Transport,Taxis - Contract Hire,-418.00,AMAR EXCLUSIVES
Revenue,Community Wellbeing & Social Care,5105634040,25.10.2013,Public Health Core,Payment to Private Contractors,195.00,AMBERWING LIMITED
Revenue,Community Wellbeing & Social Care,5105634040,25.10.2013,Public Health Core,Payment to Private Contractors,195.00,AMBERWING LIMITED
Revenue,Economy & Environment,5105633676,30.10.2013,Project Manager Waste Strategy,Consultants Fees,"1,032.00",AMEC ENVIRONMENT AND INFRASTRUCTURE
Revenue,Economy & Environment,5105628539,04.10.2013,Project Manager Waste Strategy,Consultants Fees,"15,863.50",AMEC ENVIRONMENT AND INFRASTRUCTURE
Revenue,Economy & Environment,5105628540,04.10.2013,Project Manager Waste Strategy,Consultants Fees,"40,210.18",AMEC ENVIRONMENT AND INFRASTRUCTURE
Revenue,Resources,5105631449,16.10.2013,Applications Support,Agency staff,384.80,ANCHOR RECRUITMENT
Revenue,Resources,5105630744,16.10.2013,Applications Support,Agency staff,387.40,ANCHOR RECRUITMENT
Revenue,Resources,5105628258,02.10.2013,Applications Support,Agency staff,371.80,ANCHOR RECRUITMENT
Revenue,Resources,5105626940,04.10.2013,Applications Support,Agency staff,288.60,ANCHOR RECRUITMENT
Revenue,Resources,5105632419,23.10.2013,Applications Support,Agency staff,403.00,ANCHOR RECRUITMENT
Revenue,Community Wellbeing & Social Care,5105632418,23.10.2013,Central Management Support,Agency staff,195.30,ANCHOR RECRUITMENT
Revenue,Community Wellbeing & Social Care,5105633460,30.10.2013,Central Management Support,Agency staff,188.33,ANCHOR RECRUITMENT
Revenue,Community Wellbeing & Social Care,5105630743,16.10.2013,Central Management Support,Agency staff,209.25,ANCHOR RECRUITMENT
Revenue,Community Wellbeing & Social Care,5105628182,09.10.2013,Central Management Support,Agency staff,209.25,ANCHOR RECRUITMENT
Revenue,Community Wellbeing & Social Care,5105628613,09.10.2013,Elderly Frail Residential Care,Charges from Independent Providers,"1,622.60",ANCONA CARE HOME
Revenue,Community Wellbeing & Social Care,5105628613,09.10.2013,Elderly Frail Residential Care,Charges from Independent Providers,"1,998.08",ANCONA CARE HOME
Revenue,Community Wellbeing & Social Care,5105628613,09.10.2013,Elderly Mentally Ill Residential Care,Charges from Independent Providers,"1,699.88",ANCONA CARE HOME
Revenue,Community Wellbeing & Social Care,5105628613,09.10.2013,REDACTED PERSONAL DATA,Order Settlement,"1,998.08",ANCONA CARE HOME
Revenue,Community Wellbeing & Social Care,5105628561,09.10.2013,REDACTED PERSONAL DATA,Order Settlement,"1,699.88",ANCONA CARE HOME
Revenue,Economy & Environment,5105628263,02.10.2013,Fire Technical Support,Maintenance of Operational Equipment,489.50,ANGLOCO LTD
Revenue,Economy & Environment,5105632776,25.10.2013,Fire Technical Support,Vehicle Maintenance Costs,206.25,ANGLOCO LTD
Revenue,Economy & Environment,5105632776,25.10.2013,Fire Technical Support,Vehicle Maintenance Costs,35.00,ANGLOCO LTD
Revenue,Economy & Environment,5105632774,30.10.2013,Fire Technical Support,Vehicle Maintenance Costs,"6,590.00",ANGLOCO LTD
Revenue,Economy & Environment,5105631359,16.10.2013,Fire Technical Support,Vehicle Maintenance Costs,65.70,ANGLOCO LTD
Revenue,Economy & Environment,5105631359,16.10.2013,Fire Technical Support,Vehicle Maintenance Costs,35.00,ANGLOCO LTD
Revenue,Economy & Environment,5105631359,16.10.2013,Fire Technical Support,Vehicle Maintenance Costs,17.70,ANGLOCO LTD
Revenue,Economy & Environment,5105631359,16.10.2013,Fire Technical Support,Vehicle Maintenance Costs,76.68,ANGLOCO LTD
Revenue,Economy & Environment,5105632765,25.10.2013,Print Unit,Printing Costs,94.87,ANTALIS MCNAUGHTON
Revenue,Economy & Environment,5105632091,23.10.2013,Print Unit,Printing Costs,94.87,ANTALIS MCNAUGHTON
Revenue,Economy & Environment,5105632091,23.10.2013,Print Unit,Printing Costs,79.86,ANTALIS MCNAUGHTON
Revenue,Economy & Environment,5105631297,16.10.2013,Print Unit,Printing Costs,140.16,ANTALIS MCNAUGHTON
Revenue,Economy & Environment,5105629890,11.10.2013,Print Unit,Printing Costs,44.60,ANTALIS MCNAUGHTON
Revenue,Economy & Environment,5105629890,11.10.2013,Print Unit,Printing Costs,89.20,ANTALIS MCNAUGHTON
Revenue,Resources,5105632645,23.10.2013,Coroner,Payment to Private Contractors,650.00,REDACTED PERSONAL DATA
Capital,Community Wellbeing & Social Care,5105630209,11.10.2013,Cowes One School Pathfinder,Capital Contractor Payments,"1,242.00",APEX GLASS SYSTEMS
Revenue,Economy & Environment,5105628131,02.10.2013,Leisure Management & Admin,Professional Subscriptions,"2,863.00",APSE
Revenue,Childrens Services,5105631980,18.10.2013,Clatterford Pupil Referral Unit (PRU),Hire of General Equipment,64.71,AQUALICITY LTD
Revenue,Economy & Environment,5105630926,16.10.2013,West Wight Landscape Partnership,Payment to Private Contractors,"1,500.00",ARBUTUS
Revenue,Community Wellbeing & Social Care,5105627429,04.10.2013,Wightcare,Operational Equipment,46.95,ARCO LTD
Revenue,Community Wellbeing & Social Care,5105627895,04.10.2013,Wightcare,Operational Equipment,93.90,ARCO LTD
Revenue,Economy & Environment,5105631175,16.10.2013,The Heights,Clothing & Laundry,21.60,ARCO LTD
Revenue,Economy & Environment,5105629496,16.10.2013,The Heights,Clothing & Laundry,-50.80,ARCO LTD
Revenue,Economy & Environment,5105629496,16.10.2013,The Heights,Clothing & Laundry,-40.64,ARCO LTD
Revenue,Economy & Environment,5105629496,16.10.2013,The Heights,Clothing & Laundry,-50.80,ARCO LTD
Revenue,Economy & Environment,5105630920,16.10.2013,The Heights,Clothing & Laundry,40.64,ARCO LTD
Revenue,Economy & Environment,5105630920,16.10.2013,The Heights,Clothing & Laundry,20.32,ARCO LTD
Revenue,Economy & Environment,5105630920,16.10.2013,The Heights,Clothing & Laundry,20.32,ARCO LTD
Revenue,Economy & Environment,5105630920,16.10.2013,The Heights,Clothing & Laundry,20.32,ARCO LTD
Revenue,Economy & Environment,5105630920,16.10.2013,The Heights,Clothing & Laundry,68.40,ARCO LTD
Revenue,Economy & Environment,5105630920,16.10.2013,The Heights,Clothing & Laundry,20.32,ARCO LTD
Revenue,Economy & Environment,5105630920,16.10.2013,The Heights,Clothing & Laundry,20.32,ARCO LTD
Revenue,Economy & Environment,5105630920,16.10.2013,The Heights,Clothing & Laundry,50.80,ARCO LTD
Revenue,Economy & Environment,5105632192,23.10.2013,The Heights,Clothing & Laundry,48.00,ARCO LTD
Revenue,Economy & Environment,5105632192,23.10.2013,The Heights,Clothing & Laundry,48.00,ARCO LTD
Revenue,Economy & Environment,5105632192,23.10.2013,The Heights,Clothing & Laundry,12.60,ARCO LTD
Revenue,Economy & Environment,5105632300,23.10.2013,The Heights,Clothing & Laundry,16.00,ARCO LTD
Revenue,Economy & Environment,5105632300,23.10.2013,The Heights,Clothing & Laundry,1.80,ARCO LTD
Revenue,Economy & Environment,5105628459,04.10.2013,The Heights,Clothing & Laundry,14.40,ARCO LTD
Revenue,Economy & Environment,5105628459,04.10.2013,The Heights,Clothing & Laundry,40.64,ARCO LTD
Revenue,Economy & Environment,5105628459,04.10.2013,The Heights,Clothing & Laundry,96.00,ARCO LTD
Revenue,Economy & Environment,5105628460,04.10.2013,The Heights,Clothing & Laundry,5.08,ARCO LTD
Revenue,Economy & Environment,5105628460,04.10.2013,The Heights,Clothing & Laundry,1.80,ARCO LTD
Revenue,Economy & Environment,5105631175,16.10.2013,The Heights,Clothing & Laundry,96.00,ARCO LTD
Revenue,Economy & Environment,5105631175,16.10.2013,The Heights,Clothing & Laundry,74.12,ARCO LTD
Revenue,Economy & Environment,5105633465,30.10.2013,Medina Leisure Centre,Operational Equipment,54.18,ARCO LTD
Revenue,Economy & Environment,5105631328,16.10.2013,Westridge Squash Courts,Clothing & Laundry,10.16,ARCO LTD
Revenue,Economy & Environment,5105631328,16.10.2013,Westridge Squash Courts,Clothing & Laundry,16.00,ARCO LTD
Revenue,Economy & Environment,5105631328,16.10.2013,Westridge Squash Courts,Clothing & Laundry,24.00,ARCO LTD
Revenue,Economy & Environment,5105631328,16.10.2013,Westridge Squash Courts,Clothing & Laundry,24.00,ARCO LTD
Revenue,Economy & Environment,5105631328,16.10.2013,Westridge Squash Courts,Clothing & Laundry,16.00,ARCO LTD
Revenue,Economy & Environment,5105631328,16.10.2013,Westridge Squash Courts,Clothing & Laundry,14.40,ARCO LTD
Revenue,Economy & Environment,5105628455,04.10.2013,Parking Attendants,Clothing & Laundry,31.01,ARCO LTD
Revenue,Economy & Environment,5105633338,25.10.2013,Environment officers,Operational Equipment,30.29,ARCO LTD
Revenue,Economy & Environment,5105628456,04.10.2013,Fire Technical Support,Operational Equipment,99.70,ARCO LTD
Revenue,Economy & Environment,5105628457,04.10.2013,Fire Technical Support,Stock Purchases,23.71,ARCO LTD
Revenue,Economy & Environment,5105628457,04.10.2013,Fire Technical Support,Stock Purchases,22.11,ARCO LTD
Revenue,Economy & Environment,5105628457,04.10.2013,Fire Technical Support,Stock Purchases,22.14,ARCO LTD
Revenue,Economy & Environment,5105628457,04.10.2013,Fire Technical Support,Stock Purchases,35.55,ARCO LTD
Revenue,Economy & Environment,5105628457,04.10.2013,Fire Technical Support,Stock Purchases,10.02,ARCO LTD
Revenue,Economy & Environment,5105628457,04.10.2013,Fire Technical Support,Stock Purchases,7.03,ARCO LTD
Revenue,Economy & Environment,5105628457,04.10.2013,Fire Technical Support,Stock Purchases,45.90,ARCO LTD
Revenue,Economy & Environment,5105628457,04.10.2013,Fire Technical Support,Stock Purchases,144.00,ARCO LTD
Revenue,Economy & Environment,5105629893,16.10.2013,Development Control,Clothing & Laundry,3.68,ARCO LTD
Revenue,Economy & Environment,5105629893,16.10.2013,Development Control,Clothing & Laundry,3.05,ARCO LTD
Revenue,Economy & Environment,5105629893,16.10.2013,Development Control,Clothing & Laundry,1.31,ARCO LTD
Revenue,Economy & Environment,5105629893,16.10.2013,Development Control,Clothing & Laundry,8.54,ARCO LTD
Revenue,Economy & Environment,5105629893,16.10.2013,Development Control,Clothing & Laundry,37.00,ARCO LTD
Revenue,Economy & Environment,5105627796,18.10.2013,Environmental Health - Geographical Team,Clothing & Laundry,36.21,ARCO LTD
Revenue,Economy & Environment,5105631950,18.10.2013,Environmental Health - Geographical Team,Clothing & Laundry,-36.21,ARCO LTD
Revenue,Economy & Environment,5105633779,31.10.2013,Fire Technical Support,Vehicle Maintenance Costs,60.40,ARINSDALE LIMITED
Revenue,Economy & Environment,5105633779,31.10.2013,Fire Technical Support,Vehicle Maintenance Costs,80.80,ARINSDALE LIMITED
Revenue,Economy & Environment,5105633779,31.10.2013,Fire Technical Support,Vehicle Maintenance Costs,25.95,ARINSDALE LIMITED
Revenue,Community Wellbeing & Social Care,5105631469,16.10.2013,Integrated Community Equipment Service,Operational Equipment,"5,534.00",ARJO MED AB LTD
Revenue,Community Wellbeing & Social Care,5105626997,09.10.2013,40 Venner Avenue,Professional Services,391.40,ARJO MED AB LTD
Revenue,Community Wellbeing & Social Care,5105632712,23.10.2013,Highmead,Maintenance of Operational Equipment,773.60,ARJO MED AB LTD
Revenue,Community Wellbeing & Social Care,5105631981,18.10.2013,Personal & Community Development Learning,Hire of facilities,50.00,ARRETON COMMUNITY HALL FUND
Revenue,Community Wellbeing & Social Care,5105632777,25.10.2013,Workforce Development Schools,Training,858.20,ASPIRO EDUCATION LIMITED
Revenue,Resources,5105630834,16.10.2013,"County Hall,Newport",Property Services - Planned Maintenance,28.46,ASSA ABLOY ENTRANCE SYSTEMS LTD
Revenue,Resources,5105629490,09.10.2013,"County Hall,Newport",Property Services - Planned Maintenance,8.91,ASSA ABLOY ENTRANCE SYSTEMS LTD
Revenue,Resources,5105629963,23.10.2013,"County Hall,Newport",Property Services - Planned Maintenance,34.40,ASSA ABLOY ENTRANCE SYSTEMS LTD
Revenue,Resources,5105629984,23.10.2013,"County Hall,Newport",Property Services - Planned Maintenance,67.46,ASSA ABLOY ENTRANCE SYSTEMS LTD
Revenue,Resources,5105630295,16.10.2013,"Seaclose Offices, Newport",Property Services - Day to day maintenance,159.00,ASSA ABLOY ENTRANCE SYSTEMS LTD
Revenue,Childrens Services,5105630853,16.10.2013,Thompson House Tuition Centre (PRU),Property Services - Day to day maintenance,"1,685.00",ASSA ABLOY ENTRANCE SYSTEMS LTD
Revenue,Childrens Services,5105629531,09.10.2013,Clatterford Pupil Referral Unit (PRU),Schools Examination Fees,828.00,ASSESSMENT & QUALIFICATION ALLIANCE
Revenue,Resources,5105631295,16.10.2013,Electoral Registration Office,Training,"1,581.72",ASSOC. OF ELECTORAL ADMINISTRATORS
Revenue,Resources,5105630819,16.10.2013,Electoral Registration Office,Professional Subscriptions,46.50,ASSOC. OF ELECTORAL ADMINISTRATORS
Revenue,Economy & Environment,5105630013,11.10.2013,Fire Technical Support,Vehicle Maintenance Costs,43.31,ATS EUROMASTER LTD
Revenue,Economy & Environment,5105630013,11.10.2013,Fire Technical Support,Vehicle Maintenance Costs,7.37,ATS EUROMASTER LTD
Revenue,Economy & Environment,5105630013,11.10.2013,Fire Technical Support,Vehicle Maintenance Costs,7.37,ATS EUROMASTER LTD
Revenue,Economy & Environment,5105630013,11.10.2013,Fire Technical Support,Vehicle Maintenance Costs,113.17,ATS EUROMASTER LTD
Revenue,Economy & Environment,5105630013,11.10.2013,Fire Technical Support,Vehicle Maintenance Costs,121.06,ATS EUROMASTER LTD
Revenue,Economy & Environment,5105630013,11.10.2013,Fire Technical Support,Vehicle Maintenance Costs,14.74,ATS EUROMASTER LTD
Revenue,Economy & Environment,5105630013,11.10.2013,Fire Technical Support,Vehicle Maintenance Costs,422.38,ATS EUROMASTER LTD
Revenue,Community Wellbeing & Social Care,5105632333,23.10.2013,DINO ISLE Sandown Museum Stocks,Order Settlement,12.60,AURORA WORLD UK LTD
Revenue,Childrens Services,5105633531,30.10.2013,Purchased Residential,Charges from Independent Providers,"33,164.63",AUTISM WESSEX
Revenue,Childrens Services,5105633534,30.10.2013,Purchased Residential,Charges from Independent Providers,"24,306.85",AUTISM WESSEX
Revenue,Childrens Services,5105632293,30.10.2013,Purchased Residential,Charges from Independent Providers,-156.80,AUTISM WESSEX
Revenue,Childrens Services,5105632293,30.10.2013,Independ. & Non-Maint. Special Schls & Independ. Specialist Provision,Charges from Independent Providers,-79.38,AUTISM WESSEX
Revenue,Childrens Services,5105633534,30.10.2013,Independ. & Non-Maint. Special Schls & Independ. Specialist Provision,Charges from Independent Providers,"11,089.75",AUTISM WESSEX
Revenue,Childrens Services,5105633531,30.10.2013,Independ. & Non-Maint. Special Schls & Independ. Specialist Provision,Charges from Independent Providers,"16,789.62",AUTISM WESSEX
Revenue,Economy & Environment,5105631176,16.10.2013,The Heights,Catering Equipment,395.16,AUTOBAR VENDING SERVICES LTD
Revenue,Community Wellbeing & Social Care,5105633609,30.10.2013,Elderly Frail Residential Care,Charges from Independent Providers,"1,998.08",AUTUMN HOUSE CARE LTD
Revenue,Community Wellbeing & Social Care,5105633609,30.10.2013,Elderly Frail Residential Care,Charges from Independent Providers,"1,998.08",AUTUMN HOUSE CARE LTD
Revenue,Community Wellbeing & Social Care,5105633609,30.10.2013,Elderly Frail Residential Care,Charges from Independent Providers,214.08,AUTUMN HOUSE CARE LTD
Revenue,Community Wellbeing & Social Care,5105633609,30.10.2013,Elderly Frail Residential Care,Charges from Independent Providers,142.72,AUTUMN HOUSE CARE LTD
Revenue,Community Wellbeing & Social Care,5105633442,30.10.2013,Elderly Frail Residential Care,Charges from Independent Providers,"1,855.36",AUTUMN HOUSE CARE LTD
Revenue,Community Wellbeing & Social Care,5105628582,09.10.2013,Elderly Frail Residential Care,Charges from Independent Providers,"1,699.88",AUTUMN HOUSE CARE LTD
Revenue,Community Wellbeing & Social Care,5105628582,09.10.2013,Elderly Mentally Ill Residential Care,Regular Respite Care,"1,699.88",AUTUMN HOUSE CARE LTD
Revenue,Community Wellbeing & Social Care,5105632840,25.10.2013,Elderly Mentally Ill Residential Care,Charges from Independent Providers,71.36,AUTUMN HOUSE CARE LTD
Revenue,Community Wellbeing & Social Care,5105632840,25.10.2013,Elderly Mentally Ill Residential Care,Charges from Independent Providers,"1,998.08",AUTUMN HOUSE CARE LTD
Revenue,Community Wellbeing & Social Care,5105633442,30.10.2013,Elderly Mentally Ill Residential Care,Charges from Independent Providers,999.04,AUTUMN HOUSE CARE LTD
Revenue,Community Wellbeing & Social Care,5105633442,30.10.2013,Elderly Mentally Ill Residential Care,Charges from Independent Providers,"3,996.16",AUTUMN HOUSE CARE LTD
Revenue,Community Wellbeing & Social Care,5105628582,09.10.2013,Elderly Mentally Ill Residential Care,Charges from Independent Providers,"1,998.08",AUTUMN HOUSE CARE LTD
Revenue,Community Wellbeing & Social Care,5105628544,09.10.2013,Elderly Mentally Ill Residential Care,Charges from Independent Providers,849.94,AUTUMN HOUSE CARE LTD
Revenue,Community Wellbeing & Social Care,5105628582,09.10.2013,Elderly Mentally Ill Residential Care,Charges from Independent Providers,"1,699.88",AUTUMN HOUSE CARE LTD
Revenue,Community Wellbeing & Social Care,5105628559,09.10.2013,Elderly Mentally Ill Residential Care,Charges from Independent Providers,"1,998.08",AUTUMN HOUSE CARE LTD
Revenue,Community Wellbeing & Social Care,5105628582,09.10.2013,Elderly Mentally Ill Residential Care,Charges from Independent Providers,"1,998.08",AUTUMN HOUSE CARE LTD
Revenue,Community Wellbeing & Social Care,5105628582,09.10.2013,Elderly Mentally Ill Residential Care,Charges from Independent Providers,"1,998.08",AUTUMN HOUSE CARE LTD
Revenue,Community Wellbeing & Social Care,5105628582,09.10.2013,Elderly Mentally Ill Residential Care,Charges from Independent Providers,"1,998.08",AUTUMN HOUSE CARE LTD
Revenue,Community Wellbeing & Social Care,5105628582,09.10.2013,Elderly Mentally Ill Residential Care,Charges from Independent Providers,"1,998.08",AUTUMN HOUSE CARE LTD
Revenue,Community Wellbeing & Social Care,5105628582,09.10.2013,Elderly Mentally Ill Residential Care,Charges from Independent Providers,"1,699.88",AUTUMN HOUSE CARE LTD
Revenue,Community Wellbeing & Social Care,5105628582,09.10.2013,Elderly Mentally Ill Residential Care,Charges from Independent Providers,"1,998.08",AUTUMN HOUSE CARE LTD
Revenue,Community Wellbeing & Social Care,5105628582,09.10.2013,Elderly Mentally Ill Residential Care,Charges from Independent Providers,"1,998.08",AUTUMN HOUSE CARE LTD
Revenue,Community Wellbeing & Social Care,5105628582,09.10.2013,Elderly Mentally Ill Residential Care,Charges from Independent Providers,"1,998.08",AUTUMN HOUSE CARE LTD
Revenue,Community Wellbeing & Social Care,5105628582,09.10.2013,Elderly Mentally Ill Residential Care,Charges from Independent Providers,"1,998.08",AUTUMN HOUSE CARE LTD
Revenue,Community Wellbeing & Social Care,5105628582,09.10.2013,Elderly Mentally Ill Residential Care,Charges from Independent Providers,"1,998.08",AUTUMN HOUSE CARE LTD
Revenue,Community Wellbeing & Social Care,5105628582,09.10.2013,Elderly Mentally Ill Residential Care,Charges from Independent Providers,"1,699.88",AUTUMN HOUSE CARE LTD
Revenue,Community Wellbeing & Social Care,5105629547,11.10.2013,Elderly Mentally Ill Residential Care,Charges from Independent Providers,570.88,AUTUMN HOUSE CARE LTD
Revenue,Community Wellbeing & Social Care,5105629676,11.10.2013,Elderly Mentally Ill Residential Care,Charges from Independent Providers,356.80,AUTUMN HOUSE CARE LTD
Revenue,Community Wellbeing & Social Care,5105629676,11.10.2013,Elderly Mentally Ill Residential Care,Charges from Independent Providers,"1,998.08",AUTUMN HOUSE CARE LTD
Revenue,Community Wellbeing & Social Care,5105629676,11.10.2013,Physical Disability Residential Care,Charges from Independent Providers,499.52,AUTUMN HOUSE CARE LTD
Revenue,Community Wellbeing & Social Care,5105628582,09.10.2013,Physical Disability Residential Care,Charges from Independent Providers,"1,998.08",AUTUMN HOUSE CARE LTD
Revenue,Community Wellbeing & Social Care,5105628582,09.10.2013,Dementia Residential care,Charges from Independent Providers,"1,998.08",AUTUMN HOUSE CARE LTD
Revenue,Community Wellbeing & Social Care,5105628582,09.10.2013,Dementia Residential care,Charges from Independent Providers,"1,998.08",AUTUMN HOUSE CARE LTD
Revenue,Community Wellbeing & Social Care,5105628582,09.10.2013,REDACTED PERSONAL DATA,Order Settlement,"1,998.08",AUTUMN HOUSE CARE LTD
Revenue,Community Wellbeing & Social Care,5105631360,16.10.2013,REDACTED PERSONAL DATA,Order Settlement,"7,992.32",AUTUMN HOUSE CARE LTD
Revenue,Economy & Environment,5105628480,04.10.2013,Medina Theatre,Payment to Private Contractors,"1,250.00",AVALON PROMOTIONS
Revenue,Economy & Environment,5105628481,04.10.2013,Medina Theatre,Payment to Private Contractors,"1,250.00",AVALON PROMOTIONS
Revenue,Resources,5105628517,04.10.2013,Payroll,Consultants Fees,"1,650.00",AVALON VALE UK LTD
Revenue,Resources,5105628517,04.10.2013,Payroll,Consultants Fees,474.24,AVALON VALE UK LTD
Revenue,Childrens Services,5105630232,11.10.2013,Youth - Duke of Edinburgh Award,Operational Equipment,5.00,AWARD SCHEME LTD
Revenue,Childrens Services,5105630232,11.10.2013,Youth - Duke of Edinburgh Award,Operational Equipment,5.00,AWARD SCHEME LTD
Revenue,Childrens Services,5105630232,11.10.2013,Youth - Duke of Edinburgh Award,Operational Equipment,1.67,AWARD SCHEME LTD
Revenue,Childrens Services,5105630232,11.10.2013,Youth - Duke of Edinburgh Award,Operational Equipment,5.00,AWARD SCHEME LTD
Revenue,Childrens Services,5105630232,11.10.2013,Youth - Duke of Edinburgh Award,Operational Equipment,5.00,AWARD SCHEME LTD
Revenue,Childrens Services,5105629930,11.10.2013,Reviewing Officer,Agency staff,"1,837.42",AZ SOCIAL CARE SOLUTIONS LTD
Revenue,Childrens Services,5105627864,02.10.2013,Reviewing Officer,Agency staff,"1,837.42",AZ SOCIAL CARE SOLUTIONS LTD
Revenue,Childrens Services,5105631959,18.10.2013,Reviewing Officer,Agency staff,"1,837.42",AZ SOCIAL CARE SOLUTIONS LTD
Revenue,Childrens Services,5105633422,30.10.2013,Reviewing Officer,Agency staff,"1,837.42",AZ SOCIAL CARE SOLUTIONS LTD
Revenue,Childrens Services,5105632092,23.10.2013,Reviewing Officer,Agency staff,"1,837.42",AZ SOCIAL CARE SOLUTIONS LTD
Revenue,Childrens Services,5105631537,18.10.2013,Leaving Care Costs,Accommodation Costs - Service Users,57.50,REDACTED PERSONAL DATA
Revenue,Childrens Services,5105632880,25.10.2013,Leaving Care Costs,Accommodation Costs - Service Users,57.50,REDACTED PERSONAL DATA
Revenue,Childrens Services,5105633853,31.10.2013,Leaving Care Costs,Accommodation Costs - Service Users,57.50,REDACTED PERSONAL DATA
Revenue,Childrens Services,5105629715,11.10.2013,Leaving Care Costs,Accommodation Costs - Service Users,57.50,REDACTED PERSONAL DATA
Revenue,Childrens Services,5105628309,04.10.2013,Leaving Care Costs,Accommodation Costs - Service Users,57.50,REDACTED PERSONAL DATA
Revenue,Childrens Services,5105632880,25.10.2013,Leaving Care Costs,Support Children,120.89,REDACTED PERSONAL DATA
Revenue,Childrens Services,5105633853,31.10.2013,Leaving Care Costs,Support Children,120.89,REDACTED PERSONAL DATA
Revenue,Childrens Services,5105631537,18.10.2013,Leaving Care Costs,Support Children,120.89,REDACTED PERSONAL DATA
Revenue,Childrens Services,5105629715,11.10.2013,Leaving Care Costs,Support Children,120.89,REDACTED PERSONAL DATA
Revenue,Childrens Services,5105628309,04.10.2013,Leaving Care Costs,Support Children,120.89,REDACTED PERSONAL DATA
Revenue,Childrens Services,5105628119,02.10.2013,Branstone Farm,General Materials,500.00,REDACTED PERSONAL DATA
Revenue,Community Wellbeing & Social Care,5105628597,09.10.2013,Learning Disability Residential Care,Charges from Independent Providers,"1,757.00",REDACTED PERSONAL DATA
Revenue,Community Wellbeing & Social Care,5105628597,09.10.2013,Learning Disability Residential Care,Charges from Independent Providers,"1,757.00",REDACTED PERSONAL DATA
Revenue,Community Wellbeing & Social Care,5105628597,09.10.2013,Learning Disability Residential Care,Charges from Independent Providers,"2,545.76",REDACTED PERSONAL DATA
Revenue,Community Wellbeing & Social Care,5105632427,23.10.2013,Leaseholds by LA,Accommodation Costs - Leaseholder Payments,815.49,REDACTED PERSONAL DATA
Revenue,Resources,5105632511,25.10.2013,Staff Benefits,Payment to Private Contractors,100.00,REDACTED PERSONAL DATA
Revenue,Resources,5105632510,25.10.2013,Staff Benefits,Payment to Private Contractors,243.00,REDACTED PERSONAL DATA
Revenue,Resources,5105633255,25.10.2013,Staff Benefits,Payment to Private Contractors,50.00,REDACTED PERSONAL DATA
Revenue,Community Wellbeing & Social Care,5105632434,23.10.2013,Leaseholds by LA,Accommodation Costs - Leaseholder Payments,799.50,REDACTED PERSONAL DATA
Revenue,Community Wellbeing & Social Care,5105632434,23.10.2013,Leaseholds by LA,Accommodation Costs - Leaseholder Payments,866.67,REDACTED PERSONAL DATA
Revenue,Community Wellbeing & Social Care,5105632434,23.10.2013,Leaseholds by LA,Accommodation Costs - Leaseholder Payments,866.67,REDACTED PERSONAL DATA
Revenue,Community Wellbeing & Social Care,5105632434,23.10.2013,Leaseholds by LA,Accommodation Costs - Leaseholder Payments,888.33,REDACTED PERSONAL DATA
Revenue,Community Wellbeing & Social Care,5105632434,23.10.2013,Leaseholds by LA,Accommodation Costs - Leaseholder Payments,799.50,REDACTED PERSONAL DATA
Revenue,Childrens Services,5105629526,09.10.2013,In-house Fostering,Professional Services,457.33,BAAF REGISTERED CHARITY
Revenue,Childrens Services,5105625599,09.10.2013,In-house Fostering,Professional Services,555.83,BAAF REGISTERED CHARITY
Revenue,Childrens Services,5105633805,31.10.2013,In-house Fostering,Professional Services,557.33,BAAF REGISTERED CHARITY
Revenue,Economy & Environment,5105625958,02.10.2013,Fire Technical Support,Payment to Private Contractors,"6,651.40",BALLYCLARE LTD
Revenue,Economy & Environment,5105626143,02.10.2013,Fire Technical Support,Payment to Private Contractors,413.78,BALLYCLARE LTD
Revenue,Economy & Environment,5105625936,02.10.2013,Fire Technical Support,Payment to Private Contractors,"1,773.47",BALLYCLARE LTD
Revenue,Economy & Environment,5105633103,30.10.2013,Fire Technical Support,Payment to Private Contractors,"6,651.40",BALLYCLARE LTD
Revenue,Economy & Environment,5105633104,30.10.2013,Fire Technical Support,Payment to Private Contractors,413.78,BALLYCLARE LTD
Revenue,Resources,5105631010,16.10.2013,Revenues & Benefits Operational Support,Maintenance of Office Equipment,350.00,BANCTEC LIMITED
Revenue,Childrens Services,5105633339,25.10.2013,Family Support Work,Payment to Private Contractors,"41,800.00",BARNARDOS
Revenue,Economy & Environment,5105633461,30.10.2013,John O�Conner Grounds Maintenance Contract,Payment to Private Contractors,"12,190.50",BARNSFOLD NURSERIES
Revenue,Resources,5105627782,02.10.2013,Corporate Stores,Vehicle Hire External,730.71,BARTLETTS SERVICE STATION
Revenue,Resources,5105632685,23.10.2013,Corporate Stores,Vehicle Hire External,730.71,BARTLETTS SERVICE STATION
Revenue,Resources,5105632077,23.10.2013,Corporate Stores,Vehicle Hire External,707.14,BARTLETTS SERVICE STATION
Revenue,Economy & Environment,5105632078,23.10.2013,Diversity & Workforce,Operational Equipment,120.00,BARTLETTS SERVICE STATION
Revenue,Economy & Environment,5105628246,02.10.2013,Diversity & Workforce,Operational Equipment,120.00,BARTLETTS SERVICE STATION
Revenue,Economy & Environment,5105628245,02.10.2013,Trading Standards,Vehicle Hire External,100.00,BARTLETTS SERVICE STATION
Revenue,Economy & Environment,5105631439,16.10.2013,Fire Technical Support,Vehicle Maintenance Costs,76.80,BARTON MILLS
Revenue,Resources,5105632489,25.10.2013,Staff Benefits,Payment to Private Contractors,50.00,BARTON PRIMARY SCHOOL & EARLY YEARS
Revenue,Resources,5105633204,25.10.2013,Staff Benefits,Payment to Private Contractors,60.00,BARTON PRIMARY SCHOOL & EARLY YEARS
Revenue,Resources,5105632490,25.10.2013,Staff Benefits,Payment to Private Contractors,11.67,BARTON PRIMARY SCHOOL & EARLY YEARS
Revenue,Community Wellbeing & Social Care,5105632491,25.10.2013,Downside Community & Learning Centre,Vehicle Maintenance Costs,10.00,BARTON PRIMARY SCHOOL & EARLY YEARS
Revenue,Community Wellbeing & Social Care,5105631243,16.10.2013,STI Tests & Treatment,Payments to Health Authorities,330.00,BARTS HEALTH NHS TRUST
Revenue,Economy & Environment,5105632401,25.10.2013,October Walking Festival,Advertising & Publicity,350.00,BEACON MEDIA LIMITED
Revenue,Childrens Services,5105632093,23.10.2013,Short Breaks,Advertising & Publicity,650.00,BEACON MEDIA LIMITED
Revenue,Childrens Services,5105632094,23.10.2013,Short Breaks,Advertising & Publicity,650.00,BEACON MEDIA LIMITED
Revenue,Childrens Services,5105632093,23.10.2013,In-house Fostering,Advertising & Publicity,650.00,BEACON MEDIA LIMITED
Revenue,Community Wellbeing & Social Care,5105628845,09.10.2013,Elderly Frail Nursing Mainland,Charges from Independent Providers,"2,269.40",BEAUMONT LODGE LTD
Revenue,Community Wellbeing & Social Care,5105632402,23.10.2013,B&B Properties,Accommodation Costs - Bed & Breakfast,"1,364.00",BERTRAM LODGE
Revenue,Resources,5105627812,09.10.2013,ICT Contracts,Computer Maintenance,488.00,BEST PRACTICE GROUP PLC
Revenue,Resources,5105628516,04.10.2013,"Enterprise House, Newport",Property Services - Day to day maintenance,195.06,BETA PAK LTD
Revenue,Community Wellbeing & Social Care,5105630049,11.10.2013,Downside Community & Learning Centre,Consumable Cleaning Materials,39.90,BETA PAK LTD
Revenue,Community Wellbeing & Social Care,5105630049,11.10.2013,Downside Community & Learning Centre,Consumable Cleaning Materials,5.44,BETA PAK LTD
Revenue,Community Wellbeing & Social Care,5105630049,11.10.2013,Downside Community & Learning Centre,Consumable Cleaning Materials,12.52,BETA PAK LTD
Revenue,Community Wellbeing & Social Care,5105630049,11.10.2013,Downside Community & Learning Centre,Consumable Cleaning Materials,6.28,BETA PAK LTD
Revenue,Community Wellbeing & Social Care,5105628515,04.10.2013,Downside Community & Learning Centre,Consumable Cleaning Materials,5.44,BETA PAK LTD
Revenue,Community Wellbeing & Social Care,5105628515,04.10.2013,Downside Community & Learning Centre,Consumable Cleaning Materials,25.04,BETA PAK LTD
Revenue,Community Wellbeing & Social Care,5105628515,04.10.2013,Downside Community & Learning Centre,Consumable Cleaning Materials,4.34,BETA PAK LTD
Revenue,Community Wellbeing & Social Care,5105627884,02.10.2013,31 Carter Avenue,Operational Equipment,4.89,BETA PAK LTD
Revenue,Community Wellbeing & Social Care,5105631283,16.10.2013,31 Carter Avenue,Operational Equipment,2.79,BETA PAK LTD
Revenue,Community Wellbeing & Social Care,5105630254,11.10.2013,31 Carter Avenue,Operational Equipment,81.69,BETA PAK LTD
Revenue,Community Wellbeing & Social Care,5105629529,09.10.2013,31 Carter Avenue,Operational Equipment,16.97,BETA PAK LTD
Revenue,Community Wellbeing & Social Care,5105633780,31.10.2013,31 Carter Avenue,Operational Equipment,65.15,BETA PAK LTD
Revenue,Community Wellbeing & Social Care,5105630241,11.10.2013,Overbrook,Operational Equipment,89.67,BETA PAK LTD
Revenue,Community Wellbeing & Social Care,5105630242,11.10.2013,Overbrook,Operational Equipment,-19.38,BETA PAK LTD
Revenue,Community Wellbeing & Social Care,5105628464,04.10.2013,Seagulls,Operational Equipment,10.92,BETA PAK LTD
Revenue,Community Wellbeing & Social Care,5105630781,16.10.2013,Seagulls,Operational Equipment,86.84,BETA PAK LTD
Revenue,Community Wellbeing & Social Care,5105634023,31.10.2013,Plean Dene,Operational Equipment,3.22,BETA PAK LTD
Revenue,Community Wellbeing & Social Care,5105633076,25.10.2013,Plean Dene,Operational Equipment,51.06,BETA PAK LTD
Revenue,Community Wellbeing & Social Care,5105633077,25.10.2013,Plean Dene,Operational Equipment,46.86,BETA PAK LTD
Revenue,Community Wellbeing & Social Care,5105630782,16.10.2013,Plean Dene,Operational Equipment,16.10,BETA PAK LTD
Revenue,Community Wellbeing & Social Care,5105630048,11.10.2013,Plean Dene,Operational Equipment,22.98,BETA PAK LTD
Revenue,Community Wellbeing & Social Care,5105630253,11.10.2013,Plean Dene,Operational Equipment,45.90,BETA PAK LTD
Revenue,Community Wellbeing & Social Care,5105631282,16.10.2013,Plean Dene,Operational Equipment,27.54,BETA PAK LTD
Revenue,Community Wellbeing & Social Care,5105629900,11.10.2013,Plean Dene,Operational Equipment,143.78,BETA PAK LTD
Revenue,Community Wellbeing & Social Care,5105621704,16.10.2013,Plean Dene,Operational Equipment,2.18,BETA PAK LTD
Revenue,Community Wellbeing & Social Care,5105622035,16.10.2013,Plean Dene,Operational Equipment,122.40,BETA PAK LTD
Revenue,Community Wellbeing & Social Care,5105624270,02.10.2013,Plean Dene,Operational Equipment,217.55,BETA PAK LTD
Revenue,Community Wellbeing & Social Care,5105629899,11.10.2013,Saxonbury,Operational Equipment,21.21,BETA PAK LTD
Revenue,Community Wellbeing & Social Care,5105629896,11.10.2013,Saxonbury,Operational Equipment,30.37,BETA PAK LTD
Revenue,Community Wellbeing & Social Care,5105633344,30.10.2013,Saxonbury,Operational Equipment,130.92,BETA PAK LTD
Revenue,Community Wellbeing & Social Care,5105624334,11.10.2013,40 Venner Avenue,Catering Purchases,13.25,BETA PAK LTD
Revenue,Community Wellbeing & Social Care,5105633349,30.10.2013,Highmead,Operational Equipment,140.65,BETA PAK LTD
Revenue,Community Wellbeing & Social Care,5105629527,09.10.2013,Highmead,Operational Equipment,123.48,BETA PAK LTD
Revenue,Community Wellbeing & Social Care,5105627889,02.10.2013,The Laurels,Operational Equipment,197.40,BETA PAK LTD
Revenue,Community Wellbeing & Social Care,5105632732,23.10.2013,The Laurels,Operational Equipment,241.89,BETA PAK LTD
Revenue,Community Wellbeing & Social Care,5105622079,11.10.2013,The Laurels,Operational Equipment,9.60,BETA PAK LTD
Revenue,Community Wellbeing & Social Care,5105622002,25.10.2013,The Laurels,Operational Equipment,129.27,BETA PAK LTD
Revenue,Community Wellbeing & Social Care,5105629523,09.10.2013,Wightcare,General Materials,24.66,BETA PAK LTD
Revenue,Community Wellbeing & Social Care,5105629523,09.10.2013,Wightcare,General Materials,26.35,BETA PAK LTD
Revenue,Community Wellbeing & Social Care,5105632174,23.10.2013,Homecare Reablement,Operational Equipment,45.33,BETA PAK LTD
Revenue,Community Wellbeing & Social Care,5105632174,23.10.2013,Homecare Reablement,Operational Equipment,45.33,BETA PAK LTD
Revenue,Community Wellbeing & Social Care,5105630258,11.10.2013,Adelaide Resource Centre,Consumable Cleaning Materials,60.19,BETA PAK LTD
Revenue,Community Wellbeing & Social Care,5105630259,11.10.2013,Adelaide Resource Centre,Consumable Cleaning Materials,60.19,BETA PAK LTD
Revenue,Community Wellbeing & Social Care,5105630256,11.10.2013,Adelaide Resource Centre,Consumable Cleaning Materials,446.05,BETA PAK LTD
Revenue,Community Wellbeing & Social Care,5105628513,04.10.2013,Gouldings Resource Centre,Consumable Cleaning Materials,21.48,BETA PAK LTD
Revenue,Community Wellbeing & Social Care,5105630785,16.10.2013,Westminster House,Consumable Cleaning Materials,95.94,BETA PAK LTD
Revenue,Community Wellbeing & Social Care,5105632336,23.10.2013,Westminster House,Consumable Cleaning Materials,32.00,BETA PAK LTD
Revenue,Community Wellbeing & Social Care,5105630784,16.10.2013,Westminster House,Clothing & Laundry,41.04,BETA PAK LTD
Revenue,Community Wellbeing & Social Care,5105628465,04.10.2013,Dinosaur Isle Museum (Sandown Geology),Operational Equipment,95.68,BETA PAK LTD
Revenue,Economy & Environment,5105631420,16.10.2013,Medina Leisure Centre,Property Services - Day to day maintenance,32.50,BETA PAK LTD
Revenue,Economy & Environment,5105630783,16.10.2013,Fort Victoria,General Materials,1.94,BETA PAK LTD
Revenue,Economy & Environment,5105630783,16.10.2013,Fort Victoria,General Materials,6.40,BETA PAK LTD
Revenue,Economy & Environment,5105630783,16.10.2013,Fort Victoria,General Materials,10.28,BETA PAK LTD
Revenue,Economy & Environment,5105630783,16.10.2013,Fort Victoria,General Materials,7.92,BETA PAK LTD
Revenue,Economy & Environment,5105630783,16.10.2013,Fort Victoria,General Materials,0.78,BETA PAK LTD
Revenue,Community Wellbeing & Social Care,5105631171,16.10.2013,Elderly Frail Homecare,Regular Respite Care,163.35,BETTER AT HOME IOW LTD
Revenue,Community Wellbeing & Social Care,5105631893,18.10.2013,Elderly Frail Homecare,Regular Respite Care,101.64,BETTER AT HOME IOW LTD
Revenue,Community Wellbeing & Social Care,5105632464,25.10.2013,Elderly Frail Homecare,Charges from Independent Providers,0.00,BETTER AT HOME IOW LTD
Revenue,Community Wellbeing & Social Care,5105633198,25.10.2013,Elderly Frail Homecare,Charges from Independent Providers,0.00,BETTER AT HOME IOW LTD
Revenue,Community Wellbeing & Social Care,5105632039,23.10.2013,Elderly Frail Homecare,Charges from Independent Providers,0.00,BETTER AT HOME IOW LTD
Revenue,Community Wellbeing & Social Care,5105630682,16.10.2013,Elderly Frail Homecare,Charges from Independent Providers,177.87,BETTER AT HOME IOW LTD
Revenue,Community Wellbeing & Social Care,5105630683,16.10.2013,Elderly Frail Homecare,Charges from Independent Providers,14.52,BETTER AT HOME IOW LTD
Revenue,Community Wellbeing & Social Care,5105630684,16.10.2013,Elderly Frail Homecare,Charges from Independent Providers,14.52,BETTER AT HOME IOW LTD
Revenue,Community Wellbeing & Social Care,5105631890,18.10.2013,Elderly Frail Homecare,Charges from Independent Providers,776.82,BETTER AT HOME IOW LTD
Revenue,Community Wellbeing & Social Care,5105630676,16.10.2013,Elderly Frail Homecare,Charges from Independent Providers,711.48,BETTER AT HOME IOW LTD
Revenue,Community Wellbeing & Social Care,5105630680,16.10.2013,Elderly Frail Homecare,Charges from Independent Providers,98.01,BETTER AT HOME IOW LTD
Revenue,Community Wellbeing & Social Care,5105630678,16.10.2013,Elderly Frail Homecare,Charges from Independent Providers,87.12,BETTER AT HOME IOW LTD
Revenue,Community Wellbeing & Social Care,5105630681,16.10.2013,Elderly Frail Homecare,Charges from Independent Providers,145.20,BETTER AT HOME IOW LTD
Revenue,Community Wellbeing & Social Care,5105631169,16.10.2013,Elderly Frail Homecare,Charges from Independent Providers,217.80,BETTER AT HOME IOW LTD
Revenue,Community Wellbeing & Social Care,5105631891,18.10.2013,Elderly Frail Homecare,Charges from Independent Providers,261.36,BETTER AT HOME IOW LTD
Revenue,Community Wellbeing & Social Care,5105631892,18.10.2013,Elderly Frail Homecare,Charges from Independent Providers,210.54,BETTER AT HOME IOW LTD
Revenue,Community Wellbeing & Social Care,5105631889,18.10.2013,Elderly Frail Homecare,Charges from Independent Providers,609.84,BETTER AT HOME IOW LTD
Revenue,Community Wellbeing & Social Care,5105630646,16.10.2013,Elderly Frail Homecare,Charges from Independent Providers,602.58,BETTER AT HOME IOW LTD
Revenue,Community Wellbeing & Social Care,5105630641,16.10.2013,Elderly Frail Homecare,Charges from Independent Providers,711.48,BETTER AT HOME IOW LTD
Revenue,Community Wellbeing & Social Care,5105630642,16.10.2013,Elderly Frail Homecare,Charges from Independent Providers,"1,829.52",BETTER AT HOME IOW LTD
Revenue,Community Wellbeing & Social Care,5105630654,16.10.2013,Elderly Frail Homecare,Charges from Independent Providers,682.44,BETTER AT HOME IOW LTD
Revenue,Community Wellbeing & Social Care,5105630647,16.10.2013,Elderly Frail Homecare,Charges from Independent Providers,363.00,BETTER AT HOME IOW LTD
Revenue,Community Wellbeing & Social Care,5105630653,16.10.2013,Elderly Frail Homecare,Charges from Independent Providers,406.56,BETTER AT HOME IOW LTD
Revenue,Community Wellbeing & Social Care,5105630649,16.10.2013,Elderly Frail Homecare,Charges from Independent Providers,508.20,BETTER AT HOME IOW LTD
Revenue,Community Wellbeing & Social Care,5105630655,16.10.2013,Elderly Frail Homecare,Charges from Independent Providers,399.30,BETTER AT HOME IOW LTD
Revenue,Community Wellbeing & Social Care,5105630650,16.10.2013,Elderly Frail Homecare,Charges from Independent Providers,871.20,BETTER AT HOME IOW LTD
Revenue,Community Wellbeing & Social Care,5105630659,16.10.2013,Elderly Frail Homecare,Charges from Independent Providers,406.56,BETTER AT HOME IOW LTD
Revenue,Community Wellbeing & Social Care,5105630658,16.10.2013,Elderly Frail Homecare,Charges from Independent Providers,"1,001.88",BETTER AT HOME IOW LTD
Revenue,Community Wellbeing & Social Care,5105630651,16.10.2013,Elderly Frail Homecare,Charges from Independent Providers,609.84,BETTER AT HOME IOW LTD
Revenue,Community Wellbeing & Social Care,5105630662,16.10.2013,Elderly Frail Homecare,Charges from Independent Providers,711.48,BETTER AT HOME IOW LTD
Revenue,Community Wellbeing & Social Care,5105630670,16.10.2013,Elderly Frail Homecare,Charges from Independent Providers,609.84,BETTER AT HOME IOW LTD
Revenue,Community Wellbeing & Social Care,5105630663,16.10.2013,Elderly Frail Homecare,Charges from Independent Providers,406.56,BETTER AT HOME IOW LTD
Revenue,Community Wellbeing & Social Care,5105630656,16.10.2013,Elderly Frail Homecare,Charges from Independent Providers,203.28,BETTER AT HOME IOW LTD
Revenue,Community Wellbeing & Social Care,5105630660,16.10.2013,Elderly Frail Homecare,Charges from Independent Providers,813.12,BETTER AT HOME IOW LTD
Revenue,Community Wellbeing & Social Care,5105630661,16.10.2013,Elderly Frail Homecare,Charges from Independent Providers,250.47,BETTER AT HOME IOW LTD
Revenue,Community Wellbeing & Social Care,5105630668,16.10.2013,Elderly Frail Homecare,Charges from Independent Providers,711.48,BETTER AT HOME IOW LTD
Revenue,Community Wellbeing & Social Care,5105630664,16.10.2013,Elderly Frail Homecare,Charges from Independent Providers,"1,030.92",BETTER AT HOME IOW LTD
Revenue,Community Wellbeing & Social Care,5105630648,16.10.2013,Elderly Frail Homecare,Charges from Independent Providers,602.58,BETTER AT HOME IOW LTD
Revenue,Community Wellbeing & Social Care,5105630657,16.10.2013,Elderly Frail Homecare,Charges from Independent Providers,609.84,BETTER AT HOME IOW LTD
Revenue,Community Wellbeing & Social Care,5105630673,16.10.2013,Elderly Frail Homecare,Charges from Independent Providers,268.62,BETTER AT HOME IOW LTD
Revenue,Community Wellbeing & Social Care,5105630675,16.10.2013,Elderly Frail Homecare,Charges from Independent Providers,914.76,BETTER AT HOME IOW LTD
Revenue,Community Wellbeing & Social Care,5105630666,16.10.2013,Elderly Frail Homecare,Charges from Independent Providers,406.56,BETTER AT HOME IOW LTD
Revenue,Community Wellbeing & Social Care,5105630671,16.10.2013,Elderly Frail Homecare,Charges from Independent Providers,406.56,BETTER AT HOME IOW LTD
Revenue,Community Wellbeing & Social Care,5105630677,16.10.2013,Elderly Frail Homecare,Charges from Independent Providers,58.08,BETTER AT HOME IOW LTD
Revenue,Community Wellbeing & Social Care,5105630643,16.10.2013,Elderly Frail Homecare,Charges from Independent Providers,196.02,BETTER AT HOME IOW LTD
Revenue,Community Wellbeing & Social Care,5105630644,16.10.2013,Elderly Frail Homecare,Charges from Independent Providers,43.56,BETTER AT HOME IOW LTD
Revenue,Community Wellbeing & Social Care,5105630645,16.10.2013,Elderly Frail Homecare,Charges from Independent Providers,"1,176.12",BETTER AT HOME IOW LTD
Revenue,Community Wellbeing & Social Care,5105630679,16.10.2013,Elderly Frail Homecare,Charges from Independent Providers,43.56,BETTER AT HOME IOW LTD
Revenue,Community Wellbeing & Social Care,5105630669,16.10.2013,Mental Health Homecare,Charges from Independent Providers,312.18,BETTER AT HOME IOW LTD
Revenue,Community Wellbeing & Social Care,5105633197,25.10.2013,Physical Disability Homecare,Charges from Independent Providers,0.00,BETTER AT HOME IOW LTD
Revenue,Community Wellbeing & Social Care,5105631170,16.10.2013,Physical Disability Homecare,Charges from Independent Providers,145.20,BETTER AT HOME IOW LTD
Revenue,Community Wellbeing & Social Care,5105630667,16.10.2013,Physical Disability Homecare,Charges from Independent Providers,196.02,BETTER AT HOME IOW LTD
Revenue,Community Wellbeing & Social Care,5105630672,16.10.2013,Physical Disability Homecare,Charges from Independent Providers,406.56,BETTER AT HOME IOW LTD
Revenue,Community Wellbeing & Social Care,5105630674,16.10.2013,Physical Disability Homecare,Charges from Independent Providers,196.02,BETTER AT HOME IOW LTD
Revenue,Community Wellbeing & Social Care,5105630665,16.10.2013,Elderly Frail Managed Accounts,Charges from Independent Providers,203.28,BETTER AT HOME IOW LTD
Revenue,Community Wellbeing & Social Care,5105630652,16.10.2013,Physical Disability Managed Accounts,Regular Respite Care,87.12,BETTER AT HOME IOW LTD
Revenue,Community Wellbeing & Social Care,5105629905,11.10.2013,Public Libraries Central,Computer Maintenance,"4,771.20",BIBLIOTHECA LTD
Revenue,Community Wellbeing & Social Care,5105629905,11.10.2013,Public Libraries Central,Computer Maintenance,594.00,BIBLIOTHECA LTD
Revenue,Community Wellbeing & Social Care,5105630786,16.10.2013,Public Libraries Central,Computer Maintenance,"2,808.00",BIBLIOTHECA LTD
Revenue,Community Wellbeing & Social Care,5105630786,16.10.2013,Public Libraries Central,Computer Maintenance,396.00,BIBLIOTHECA LTD
Revenue,Community Wellbeing & Social Care,5105632619,31.10.2013,Public Libraries Central,Stationery,179.90,BIBLIOTHECA LTD
Revenue,Economy & Environment,5105631804,18.10.2013,Bestival,Professional Services,72.00,BIFFA WASTE SERVICES LTD
Revenue,Resources,5105630024,11.10.2013,"Civic Centre,Sandown","Refuse Collection, Disposal and Recycling Costs",98.05,BIFFA WASTE SERVICES LTD
Revenue,Resources,5105630025,11.10.2013,"Civic Centre,Sandown","Refuse Collection, Disposal and Recycling Costs",56.20,BIFFA WASTE SERVICES LTD
Revenue,Resources,5105631000,16.10.2013,"Bugle House,Newport","Refuse Collection, Disposal and Recycling Costs",177.65,BIFFA WASTE SERVICES LTD
Revenue,Resources,5105631021,16.10.2013,Rechargeable Properties,"Refuse Collection, Disposal and Recycling Costs",5.25,BIFFA WASTE SERVICES LTD
Revenue,Resources,5105630976,16.10.2013,Rechargeable Properties,"Refuse Collection, Disposal and Recycling Costs",117.44,BIFFA WASTE SERVICES LTD
Revenue,Community Wellbeing & Social Care,5105629874,31.10.2013,31 Carter Avenue,"Refuse Collection, Disposal and Recycling Costs",36.90,BIFFA WASTE SERVICES LTD
Revenue,Community Wellbeing & Social Care,5105629876,31.10.2013,31 Carter Avenue,"Refuse Collection, Disposal and Recycling Costs",48.80,BIFFA WASTE SERVICES LTD
Revenue,Community Wellbeing & Social Care,5105629878,31.10.2013,31 Carter Avenue,"Refuse Collection, Disposal and Recycling Costs",54.12,BIFFA WASTE SERVICES LTD
Revenue,Community Wellbeing & Social Care,5105629879,30.10.2013,Overbrook,"Refuse Collection, Disposal and Recycling Costs",68.20,BIFFA WASTE SERVICES LTD
Revenue,Community Wellbeing & Social Care,5105629613,11.10.2013,Overbrook,"Refuse Collection, Disposal and Recycling Costs",52.50,BIFFA WASTE SERVICES LTD
Revenue,Community Wellbeing & Social Care,5105629611,11.10.2013,Overbrook,"Refuse Collection, Disposal and Recycling Costs",45.50,BIFFA WASTE SERVICES LTD
Revenue,Community Wellbeing & Social Care,5105631305,16.10.2013,Overbrook,"Refuse Collection, Disposal and Recycling Costs",137.00,BIFFA WASTE SERVICES LTD
Revenue,Community Wellbeing & Social Care,5105629875,31.10.2013,Seagulls,"Refuse Collection, Disposal and Recycling Costs",48.80,BIFFA WASTE SERVICES LTD
Revenue,Community Wellbeing & Social Care,5105630006,30.10.2013,Plean Dene,"Refuse Collection, Disposal and Recycling Costs",89.70,BIFFA WASTE SERVICES LTD
Revenue,Community Wellbeing & Social Care,5105629620,30.10.2013,Plean Dene,"Refuse Collection, Disposal and Recycling Costs",0.20,BIFFA WASTE SERVICES LTD
Revenue,Community Wellbeing & Social Care,5105629618,30.10.2013,Saxonbury,"Refuse Collection, Disposal and Recycling Costs",54.12,BIFFA WASTE SERVICES LTD
Revenue,Community Wellbeing & Social Care,5105629615,11.10.2013,Saxonbury,"Refuse Collection, Disposal and Recycling Costs",25.80,BIFFA WASTE SERVICES LTD
Revenue,Community Wellbeing & Social Care,5105630900,16.10.2013,Saxonbury,"Refuse Collection, Disposal and Recycling Costs",89.70,BIFFA WASTE SERVICES LTD
Revenue,Community Wellbeing & Social Care,5105629873,30.10.2013,Saxonbury,"Refuse Collection, Disposal and Recycling Costs",26.50,BIFFA WASTE SERVICES LTD
Revenue,Community Wellbeing & Social Care,5105629877,30.10.2013,Highmead,"Refuse Collection, Disposal and Recycling Costs",48.80,BIFFA WASTE SERVICES LTD
Revenue,Community Wellbeing & Social Care,5105629619,30.10.2013,Highmead,"Refuse Collection, Disposal and Recycling Costs",39.68,BIFFA WASTE SERVICES LTD
Revenue,Community Wellbeing & Social Care,5105629647,30.10.2013,Highmead,"Refuse Collection, Disposal and Recycling Costs",49.35,BIFFA WASTE SERVICES LTD
Revenue,Community Wellbeing & Social Care,5105629647,30.10.2013,The Laurels,"Refuse Collection, Disposal and Recycling Costs",49.35,BIFFA WASTE SERVICES LTD
Revenue,Community Wellbeing & Social Care,5105629877,30.10.2013,The Laurels,"Refuse Collection, Disposal and Recycling Costs",48.80,BIFFA WASTE SERVICES LTD
Revenue,Community Wellbeing & Social Care,5105630029,25.10.2013,Gouldings Resource Centre,"Refuse Collection, Disposal and Recycling Costs",107.10,BIFFA WASTE SERVICES LTD
Revenue,Community Wellbeing & Social Care,5105630952,16.10.2013,Gouldings Resource Centre,"Refuse Collection, Disposal and Recycling Costs",334.10,BIFFA WASTE SERVICES LTD
Revenue,Community Wellbeing & Social Care,5105630794,16.10.2013,Westminster House,"Refuse Collection, Disposal and Recycling Costs",54.60,BIFFA WASTE SERVICES LTD
Revenue,Economy & Environment,5105630973,16.10.2013,Leisure Management & Admin,"Refuse Collection, Disposal and Recycling Costs",13.52,BIFFA WASTE SERVICES LTD
Revenue,Economy & Environment,5105630954,16.10.2013,Leisure Management & Admin,"Refuse Collection, Disposal and Recycling Costs",177.65,BIFFA WASTE SERVICES LTD
Revenue,Community Wellbeing & Social Care,5105630977,16.10.2013,Public Libraries Central,"Refuse Collection, Disposal and Recycling Costs","4,000.00",BIFFA WASTE SERVICES LTD
Revenue,Community Wellbeing & Social Care,5105629651,16.10.2013,Public Libraries Central,"Refuse Collection, Disposal and Recycling Costs",450.99,BIFFA WASTE SERVICES LTD
Revenue,Community Wellbeing & Social Care,5105631177,16.10.2013,Workforce Development -  Westridge Centre,"Refuse Collection, Disposal and Recycling Costs",173.21,BIFFA WASTE SERVICES LTD
Revenue,Community Wellbeing & Social Care,5105630037,16.10.2013,Dinosaur Isle Museum (Sandown Geology),"Refuse Collection, Disposal and Recycling Costs",39.73,BIFFA WASTE SERVICES LTD
Revenue,Community Wellbeing & Social Care,5105630974,16.10.2013,Dinosaur Isle Museum (Sandown Geology),"Refuse Collection, Disposal and Recycling Costs",11.31,BIFFA WASTE SERVICES LTD
Revenue,Economy & Environment,5105629660,18.10.2013,The Heights,"Refuse Collection, Disposal and Recycling Costs",42.35,BIFFA WASTE SERVICES LTD
Revenue,Economy & Environment,5105629653,18.10.2013,The Heights,"Refuse Collection, Disposal and Recycling Costs",412.27,BIFFA WASTE SERVICES LTD
Revenue,Economy & Environment,5105630968,16.10.2013,Medina Leisure Centre,"Refuse Collection, Disposal and Recycling Costs",10.85,BIFFA WASTE SERVICES LTD
Revenue,Economy & Environment,5105630972,16.10.2013,Medina Leisure Centre,"Refuse Collection, Disposal and Recycling Costs",296.84,BIFFA WASTE SERVICES LTD
Revenue,Economy & Environment,5105630032,16.10.2013,Ryde Harbour,"Refuse Collection, Disposal and Recycling Costs",260.11,BIFFA WASTE SERVICES LTD
Revenue,Economy & Environment,5105630284,18.10.2013,Ryde Harbour,"Refuse Collection, Disposal and Recycling Costs",32.90,BIFFA WASTE SERVICES LTD
Revenue,Economy & Environment,5105630034,16.10.2013,Seaclose Amusements,"Refuse Collection, Disposal and Recycling Costs",12.65,BIFFA WASTE SERVICES LTD
Revenue,Economy & Environment,5105629580,11.10.2013,Seaclose Amusements,"Refuse Collection, Disposal and Recycling Costs",182.90,BIFFA WASTE SERVICES LTD
Revenue,Childrens Services,5105630866,16.10.2013,Contact & Assessment Team,"Refuse Collection, Disposal and Recycling Costs",34.20,BIFFA WASTE SERVICES LTD
Revenue,Childrens Services,5105630031,16.10.2013,Specialist Service Business Admin,"Refuse Collection, Disposal and Recycling Costs",182.90,BIFFA WASTE SERVICES LTD
Revenue,Childrens Services,5105630296,25.10.2013,Beaulieu House,"Refuse Collection, Disposal and Recycling Costs",13.96,BIFFA WASTE SERVICES LTD
Revenue,Childrens Services,5105630297,25.10.2013,Beaulieu House,"Refuse Collection, Disposal and Recycling Costs",146.32,BIFFA WASTE SERVICES LTD
Revenue,Childrens Services,5105631986,30.10.2013,Beaulieu House,"Refuse Collection, Disposal and Recycling Costs",14.59,BIFFA WASTE SERVICES LTD
Revenue,Childrens Services,5105630036,11.10.2013,Parent Partnership,"Refuse Collection, Disposal and Recycling Costs",39.10,BIFFA WASTE SERVICES LTD
Revenue,Childrens Services,5105629600,16.10.2013,Education Participation Team,"Refuse Collection, Disposal and Recycling Costs",49.25,BIFFA WASTE SERVICES LTD
Revenue,Childrens Services,5105629656,16.10.2013,Education Participation Team,"Refuse Collection, Disposal and Recycling Costs",49.25,BIFFA WASTE SERVICES LTD
Capital,Community Wellbeing & Social Care,5105630971,16.10.2013,Cowes One School Pathfinder,Eligible Supplies and Services - Capital,264.16,BIFFA WASTE SERVICES LTD
Capital,Community Wellbeing & Social Care,5105630971,16.10.2013,Cowes One School Pathfinder,Eligible Supplies and Services - Capital,335.44,BIFFA WASTE SERVICES LTD
Capital,Community Wellbeing & Social Care,5105630971,16.10.2013,Cowes One School Pathfinder,Eligible Supplies and Services - Capital,316.00,BIFFA WASTE SERVICES LTD
Capital,Community Wellbeing & Social Care,5105630971,16.10.2013,Cowes One School Pathfinder,Eligible Supplies and Services - Capital,322.48,BIFFA WASTE SERVICES LTD
Revenue,Economy & Environment,5105623424,09.10.2013,Ferry Management,"Refuse Collection, Disposal and Recycling Costs",18.34,BIFFA WASTE SERVICES LTD
Revenue,Economy & Environment,5105634045,25.10.2013,Waste contracts,Professional Services,140.00,BIFFA WASTE SERVICES LTD
Revenue,Economy & Environment,5105629595,18.10.2013,Fort Victoria,"Refuse Collection, Disposal and Recycling Costs",194.89,BIFFA WASTE SERVICES LTD
Revenue,Resources,5105630969,16.10.2013,Coastal Visitors Centre,"Refuse Collection, Disposal and Recycling Costs",49.25,BIFFA WASTE SERVICES LTD
Revenue,Resources,5105624259,09.10.2013,"Salisbury Gardens, Ventnor","Refuse Collection, Disposal and Recycling Costs",34.83,BIFFA WASTE SERVICES LTD
Revenue,Economy & Environment,5105629577,18.10.2013,Newport Harbour Account,"Refuse Collection, Disposal and Recycling Costs",551.16,BIFFA WASTE SERVICES LTD
Revenue,Economy & Environment,5105630979,16.10.2013,Newport Harbour Account,"Refuse Collection, Disposal and Recycling Costs",280.35,BIFFA WASTE SERVICES LTD
Revenue,Economy & Environment,5105630023,11.10.2013,Fire Operations,"Refuse Collection, Disposal and Recycling Costs",26.95,BIFFA WASTE SERVICES LTD
Revenue,Economy & Environment,5105630027,11.10.2013,Fire Operations,"Refuse Collection, Disposal and Recycling Costs",381.90,BIFFA WASTE SERVICES LTD
Revenue,Economy & Environment,5105630028,11.10.2013,Fire Operations,"Refuse Collection, Disposal and Recycling Costs",530.71,BIFFA WASTE SERVICES LTD
Revenue,Economy & Environment,5105629666,30.10.2013,Planning Business Support,"Refuse Collection, Disposal and Recycling Costs",150.00,BIFFA WASTE SERVICES LTD
Revenue,Economy & Environment,5105630970,16.10.2013,Regulatory Management & Admin Support,"Refuse Collection, Disposal and Recycling Costs",91.45,BIFFA WASTE SERVICES LTD
Revenue,Economy & Environment,5105629586,30.10.2013,Crematorium,"Refuse Collection, Disposal and Recycling Costs",143.17,BIFFA WASTE SERVICES LTD
Revenue,Economy & Environment,5105624278,30.10.2013,Crematorium,"Refuse Collection, Disposal and Recycling Costs",22.50,BIFFA WASTE SERVICES LTD
Revenue,Childrens Services,5105631825,25.10.2013,Purchased Residential,Charges from Independent Providers,"13,844.82",BIG BRIGHT HOLIDAYS
Revenue,Childrens Services,5105631824,25.10.2013,Purchased Residential,Charges from Independent Providers,"13,844.82",BIG BRIGHT HOLIDAYS
Revenue,Economy & Environment,5105627443,31.10.2013,Leisure Management & Admin,Professional Services,792.20,BIG WIGHT T-SHIRT CO
Revenue,Economy & Environment,5105627443,31.10.2013,Leisure Management & Admin,Professional Services,54.80,BIG WIGHT T-SHIRT CO
Revenue,Childrens Services,5105633065,25.10.2013,Beaulieu House,Clothing & Laundry,178.20,BIG WIGHT T-SHIRT CO
Revenue,Childrens Services,5105633063,25.10.2013,Beaulieu House,General Materials,11.50,BIG WIGHT T-SHIRT CO
Revenue,Childrens Services,5105633063,25.10.2013,Beaulieu House,General Materials,13.50,BIG WIGHT T-SHIRT CO
Revenue,Childrens Services,5105633002,25.10.2013,Support for Looked After Children,Support Children,65.00,REDACTED PERSONAL DATA
Revenue,Childrens Services,5105628431,04.10.2013,Support for Looked After Children,Support Children,65.00,REDACTED PERSONAL DATA
Revenue,Childrens Services,5105631657,18.10.2013,Support for Looked After Children,Support Children,65.00,REDACTED PERSONAL DATA
Revenue,Childrens Services,5105629836,11.10.2013,Support for Looked After Children,Support Children,65.00,REDACTED PERSONAL DATA
Revenue,Childrens Services,5105633970,31.10.2013,Support for Looked After Children,Support Children,65.00,REDACTED PERSONAL DATA
Revenue,Childrens Services,5105631984,18.10.2013,Court Work & Consultancy Services,Legal Fees - Other Parties,192.40,BISBEY LTD
Revenue,Economy & Environment,5105629903,11.10.2013,Play Development,Operational Equipment,173.00,BISHOP SPORTS & LEISURE LTD
Revenue,Economy & Environment,5105629903,11.10.2013,Play Development,Operational Equipment,8.00,BISHOP SPORTS & LEISURE LTD
Revenue,Resources,5105633745,30.10.2013,Staff Benefits,Payment to Private Contractors,79.50,BLACKBERRY LANE PRE-SCHOOL
Revenue,Resources,5105629923,11.10.2013,Litigation Costs,Legal Fees - Other Parties,900.00,BLAKE LAPTHORN
Revenue,Community Wellbeing & Social Care,5105631482,16.10.2013,Homecare Reablement,Vehicle Maintenance Costs,5.00,REDACTED PERSONAL DATA
Revenue,Community Wellbeing & Social Care,5105631482,16.10.2013,Homecare Reablement,Vehicle Maintenance Costs,5.00,REDACTED PERSONAL DATA
Revenue,Community Wellbeing & Social Care,5105631482,16.10.2013,Homecare Reablement,Vehicle Maintenance Costs,10.00,REDACTED PERSONAL DATA
Revenue,Community Wellbeing & Social Care,5105631482,16.10.2013,Homecare Reablement,Vehicle Maintenance Costs,5.00,REDACTED PERSONAL DATA
Revenue,Community Wellbeing & Social Care,5105631482,16.10.2013,Homecare Reablement,Vehicle Maintenance Costs,10.00,REDACTED PERSONAL DATA
Revenue,Community Wellbeing & Social Care,5105631482,16.10.2013,Homecare Reablement,Vehicle Maintenance Costs,10.00,REDACTED PERSONAL DATA
Revenue,Community Wellbeing & Social Care,5105631482,16.10.2013,Homecare Reablement,Vehicle Maintenance Costs,5.00,REDACTED PERSONAL DATA
Revenue,Community Wellbeing & Social Care,5105631482,16.10.2013,Homecare Reablement,Vehicle Maintenance Costs,10.00,REDACTED PERSONAL DATA
Revenue,Community Wellbeing & Social Care,5105631482,16.10.2013,Homecare Reablement,Vehicle Maintenance Costs,10.00,REDACTED PERSONAL DATA
Revenue,Community Wellbeing & Social Care,5105631482,16.10.2013,Homecare Reablement,Vehicle Maintenance Costs,5.00,REDACTED PERSONAL DATA
Revenue,Community Wellbeing & Social Care,5105631482,16.10.2013,Homecare Reablement,Vehicle Maintenance Costs,5.00,REDACTED PERSONAL DATA
Revenue,Childrens Services,5105624317,18.10.2013,Purchased Fostering,Charges from Independent Providers,"2,709.46",BLUE SKY FOSTERING LTD
Revenue,Childrens Services,5105624318,18.10.2013,Purchased Fostering,Charges from Independent Providers,"3,126.30",BLUE SKY FOSTERING LTD
Revenue,Childrens Services,5105624319,18.10.2013,Purchased Fostering,Charges from Independent Providers,"2,709.46",BLUE SKY FOSTERING LTD
Revenue,Childrens Services,5105624320,18.10.2013,Purchased Fostering,Charges from Independent Providers,"3,126.30",BLUE SKY FOSTERING LTD
Revenue,Childrens Services,5105624321,18.10.2013,Purchased Fostering,Charges from Independent Providers,"2,709.46",BLUE SKY FOSTERING LTD
Revenue,Childrens Services,5105624322,18.10.2013,Purchased Fostering,Charges from Independent Providers,"3,126.30",BLUE SKY FOSTERING LTD
Revenue,Childrens Services,5105629489,23.10.2013,Purchased Fostering,Charges from Independent Providers,"3,230.51",BLUE SKY FOSTERING LTD
Revenue,Childrens Services,5105629492,23.10.2013,Purchased Fostering,Charges from Independent Providers,"3,230.51",BLUE SKY FOSTERING LTD
Revenue,Childrens Services,5105629575,23.10.2013,Purchased Fostering,Charges from Independent Providers,"3,230.51",BLUE SKY FOSTERING LTD
Revenue,Economy & Environment,5105628120,02.10.2013,Ferry Maintenance,Maintenance of Operational Equipment,143.53,BOC LTD
Revenue,Community Wellbeing & Social Care,5105630014,11.10.2013,Commissioning - Adult & Community Learning,Grants to External Bodies,"3,016.00",BODSTER EQUINE ASSISTED LEARN CIC
Revenue,Childrens Services,5105630229,11.10.2013,Short Breaks,Payments to Voluntary and Other Associations,390.00,BODSTER EQUINE ASSISTED LEARN CIC
Revenue,Community Wellbeing & Social Care,5105629104,09.10.2013,Elderly Frail Residential Care,Charges from Independent Providers,"1,837.08",BONDCARE NILERACE LIMITED
Revenue,Community Wellbeing & Social Care,5105632678,23.10.2013,Overbrook,Catering Purchases,26.97,BOOKER CASH & CARRY
Revenue,Community Wellbeing & Social Care,5105632679,23.10.2013,Overbrook,Catering Purchases,144.24,BOOKER CASH & CARRY
Revenue,Community Wellbeing & Social Care,5105632197,23.10.2013,Plean Dene,Catering Purchases,11.47,BOOKER CASH & CARRY
Revenue,Community Wellbeing & Social Care,5105632188,23.10.2013,Plean Dene,Catering Purchases,214.21,BOOKER CASH & CARRY
Revenue,Community Wellbeing & Social Care,5105632188,23.10.2013,Plean Dene,Catering Purchases,23.85,BOOKER CASH & CARRY
Revenue,Community Wellbeing & Social Care,5105629924,11.10.2013,Plean Dene,Catering Purchases,68.19,BOOKER CASH & CARRY
Revenue,Community Wellbeing & Social Care,5105629924,11.10.2013,Plean Dene,Catering Purchases,24.73,BOOKER CASH & CARRY
Revenue,Community Wellbeing & Social Care,5105628225,02.10.2013,Plean Dene,Catering Purchases,6.70,BOOKER CASH & CARRY
Revenue,Community Wellbeing & Social Care,5105632677,23.10.2013,Plean Dene,Catering Purchases,174.43,BOOKER CASH & CARRY
Revenue,Community Wellbeing & Social Care,5105632677,23.10.2013,Plean Dene,Catering Purchases,19.31,BOOKER CASH & CARRY
Revenue,Community Wellbeing & Social Care,5105633636,30.10.2013,Plean Dene,Catering Purchases,72.34,BOOKER CASH & CARRY
Revenue,Community Wellbeing & Social Care,5105633638,30.10.2013,Plean Dene,Catering Purchases,45.62,BOOKER CASH & CARRY
Revenue,Community Wellbeing & Social Care,5105628470,04.10.2013,Plean Dene,Catering Purchases,160.97,BOOKER CASH & CARRY
Revenue,Community Wellbeing & Social Care,5105628470,04.10.2013,Plean Dene,Catering Purchases,7.64,BOOKER CASH & CARRY
Revenue,Community Wellbeing & Social Care,5105632213,23.10.2013,Plean Dene,Catering Purchases,126.84,BOOKER CASH & CARRY
Revenue,Community Wellbeing & Social Care,5105632396,23.10.2013,The Laurels,Catering Purchases,46.29,BOOKER CASH & CARRY
Revenue,Community Wellbeing & Social Care,5105632396,23.10.2013,The Laurels,Catering Purchases,4.99,BOOKER CASH & CARRY
Revenue,Community Wellbeing & Social Care,5105621117,18.10.2013,Drug Misuse - Adults,Payment to Private Contractors,"1,600.00",BOOTS THE CHEMIST LTD
Revenue,Resources,5105628170,02.10.2013,ICT Contracts,Computer Maintenance,"1,170.19",BOTTOMLINE TECHNOLOGIES LIMITED
Revenue,Resources,5105631961,18.10.2013,Elections,Building & Room Rental,130.00,BRADING TOWN TRUST
Revenue,Economy & Environment,5105631447,16.10.2013,Heights Cafe Stock,Order Settlement,86.46,BRAKE BROS LTD
Revenue,Economy & Environment,5105628461,04.10.2013,Heights Cafe Stock,Order Settlement,82.88,BRAKE BROS LTD
Revenue,Economy & Environment,5105633412,30.10.2013,Heights Cafe Stock,Order Settlement,97.72,BRAKE BROS LTD
Revenue,Economy & Environment,5105632079,23.10.2013,Heights Cafe Stock,Order Settlement,103.56,BRAKE BROS LTD
Revenue,Community Wellbeing & Social Care,5105632457,23.10.2013,Leaseholds by LA,Accommodation Costs - Leaseholder Payments,588.38,BRAMBLE LETTINGS
Revenue,Community Wellbeing & Social Care,5105632457,23.10.2013,Leaseholds by LA,Accommodation Costs - Leaseholder Payments,588.38,BRAMBLE LETTINGS
Revenue,Community Wellbeing & Social Care,5105632457,23.10.2013,Leaseholds by LA,Accommodation Costs - Leaseholder Payments,588.38,BRAMBLE LETTINGS
Revenue,Community Wellbeing & Social Care,5105632457,23.10.2013,Leaseholds by LA,Accommodation Costs - Leaseholder Payments,746.81,BRAMBLE LETTINGS
Revenue,Community Wellbeing & Social Care,5105632457,23.10.2013,Leaseholds by LA,Accommodation Costs - Leaseholder Payments,746.81,BRAMBLE LETTINGS
Revenue,Community Wellbeing & Social Care,5105632457,23.10.2013,Leaseholds by LA,Accommodation Costs - Leaseholder Payments,746.81,BRAMBLE LETTINGS
Revenue,Community Wellbeing & Social Care,5105632457,23.10.2013,Leaseholds by LA,Accommodation Costs - Leaseholder Payments,746.81,BRAMBLE LETTINGS
Revenue,Community Wellbeing & Social Care,5105632457,23.10.2013,Leaseholds by LA,Accommodation Costs - Leaseholder Payments,588.38,BRAMBLE LETTINGS
Revenue,Community Wellbeing & Social Care,5105632457,23.10.2013,Leaseholds by LA,Accommodation Costs - Leaseholder Payments,746.81,BRAMBLE LETTINGS
Revenue,Community Wellbeing & Social Care,5105632457,23.10.2013,Leaseholds by LA,Accommodation Costs - Leaseholder Payments,746.81,BRAMBLE LETTINGS
Revenue,Community Wellbeing & Social Care,5105632457,23.10.2013,Leaseholds by LA,Accommodation Costs - Leaseholder Payments,746.81,BRAMBLE LETTINGS
Revenue,Community Wellbeing & Social Care,5105632457,23.10.2013,Leaseholds by LA,Accommodation Costs - Leaseholder Payments,588.38,BRAMBLE LETTINGS
Revenue,Community Wellbeing & Social Care,5105632457,23.10.2013,Leaseholds by LA,Accommodation Costs - Leaseholder Payments,746.81,BRAMBLE LETTINGS
Revenue,Community Wellbeing & Social Care,5105632457,23.10.2013,Leaseholds by LA,Accommodation Costs - Leaseholder Payments,769.43,BRAMBLE LETTINGS
Revenue,Community Wellbeing & Social Care,5105632457,23.10.2013,Leaseholds by LA,Accommodation Costs - Leaseholder Payments,746.81,BRAMBLE LETTINGS
Revenue,Community Wellbeing & Social Care,5105632457,23.10.2013,Leaseholds by LA,Accommodation Costs - Leaseholder Payments,746.81,BRAMBLE LETTINGS
Revenue,Community Wellbeing & Social Care,5105632457,23.10.2013,Leaseholds by LA,Accommodation Costs - Leaseholder Payments,746.81,BRAMBLE LETTINGS
Revenue,Community Wellbeing & Social Care,5105632457,23.10.2013,Leaseholds by LA,Accommodation Costs - Leaseholder Payments,746.81,BRAMBLE LETTINGS
Revenue,Community Wellbeing & Social Care,5105632457,23.10.2013,Leaseholds by LA,Accommodation Costs - Leaseholder Payments,746.81,BRAMBLE LETTINGS
Revenue,Community Wellbeing & Social Care,5105632457,23.10.2013,Leaseholds by LA,Accommodation Costs - Leaseholder Payments,588.38,BRAMBLE LETTINGS
Revenue,Community Wellbeing & Social Care,5105632457,23.10.2013,Leaseholds by LA,Accommodation Costs - Leaseholder Payments,746.81,BRAMBLE LETTINGS
Revenue,Community Wellbeing & Social Care,5105632457,23.10.2013,Leaseholds by LA,Accommodation Costs - Leaseholder Payments,746.81,BRAMBLE LETTINGS
Revenue,Resources,5105632513,25.10.2013,Staff Benefits,Payment to Private Contractors,0.00,BRAMBLES AFTER SCHOOL CLUB
Revenue,Resources,5105632512,25.10.2013,Staff Benefits,Payment to Private Contractors,118.75,BRAMBLES AFTER SCHOOL CLUB
Revenue,Childrens Services,5105633066,25.10.2013,Court Work & Consultancy Services,Legal Fees - Other Parties,305.64,BRAMSDON & CHILDS SOLICITORS
Revenue,Childrens Services,5105633066,25.10.2013,Court Work & Consultancy Services,Legal Fees - Other Parties,209.50,BRAMSDON & CHILDS SOLICITORS
Revenue,Childrens Services,5105629347,09.10.2013,Group Managers,Catering Purchases,6.00,BRAVEHEART SOCIAL ENTERPRISES LTD
Revenue,Childrens Services,5105629347,09.10.2013,Group Managers,Catering Purchases,36.00,BRAVEHEART SOCIAL ENTERPRISES LTD
Revenue,Economy & Environment,5105632626,23.10.2013,LIFE Project,Catering Purchases,900.00,BRAVEHEART SOCIAL ENTERPRISES LTD
Revenue,Childrens Services,5105628484,04.10.2013,Independ. & Non-Maint. Special Schls & Independ. Specialist Provision,Charges from Independent Providers,618.00,BRECKENBROUGH SCHOOL LTD
Revenue,Childrens Services,5105628485,04.10.2013,Independ. & Non-Maint. Special Schls & Independ. Specialist Provision,Charges from Independent Providers,"17,865.00",BRECKENBROUGH SCHOOL LTD
Revenue,Community Wellbeing & Social Care,5105629208,09.10.2013,Elderly Frail Residential Care,Charges from Independent Providers,"2,048.76",BRENDONCARE FOUNDATION
Revenue,Community Wellbeing & Social Care,5105628615,09.10.2013,Elderly Frail Residential Care,Charges from Independent Providers,"1,998.08",BRIGHSTONE CARE LTD
Revenue,Community Wellbeing & Social Care,5105628615,09.10.2013,Elderly Frail Residential Care,Charges from Independent Providers,"1,998.08",BRIGHSTONE CARE LTD
Revenue,Community Wellbeing & Social Care,5105633445,30.10.2013,Elderly Frail Residential Care,Charges from Independent Providers,"1,448.75",BRIGHSTONE CARE LTD
Revenue,Community Wellbeing & Social Care,5105628615,09.10.2013,Elderly Frail Residential Care,Charges from Independent Providers,"1,622.60",BRIGHSTONE CARE LTD
Revenue,Community Wellbeing & Social Care,5105628615,09.10.2013,Elderly Mentally Ill Residential Care,Charges from Independent Providers,"1,998.08",BRIGHSTONE CARE LTD
Revenue,Community Wellbeing & Social Care,5105628615,09.10.2013,Elderly Mentally Ill Residential Care,Charges from Independent Providers,"1,998.08",BRIGHSTONE CARE LTD
Revenue,Community Wellbeing & Social Care,5105628615,09.10.2013,Elderly Mentally Ill Residential Care,Charges from Independent Providers,"1,699.88",BRIGHSTONE CARE LTD
Revenue,Community Wellbeing & Social Care,5105628615,09.10.2013,Elderly Mentally Ill Residential Care,Charges from Independent Providers,"1,699.88",BRIGHSTONE CARE LTD
Revenue,Community Wellbeing & Social Care,5105629408,09.10.2013,Elderly Mentally Ill Residential Care,Charges from Independent Providers,"1,998.08",BRIGHSTONE CARE LTD
Revenue,Community Wellbeing & Social Care,5105628615,09.10.2013,REDACTED PERSONAL DATA,Order Settlement,657.72,BRIGHSTONE CARE LTD
Revenue,Community Wellbeing & Social Care,5105628615,09.10.2013,REDACTED PERSONAL DATA,Order Settlement,"1,699.88",BRIGHSTONE CARE LTD
Revenue,Economy & Environment,5105629491,09.10.2013,Beach Cleaning,Payment to Private Contractors,490.00,BRIGHSTONE LANDSCAPING LTD
Revenue,Economy & Environment,5105630324,16.10.2013,Beach Cleaning,Payment to Private Contractors,235.00,BRIGHSTONE LANDSCAPING LTD
Revenue,Economy & Environment,5105630332,16.10.2013,Beach Cleaning,Payment to Private Contractors,60.00,BRIGHSTONE LANDSCAPING LTD
Revenue,Economy & Environment,5105633322,25.10.2013,Beach Cleaning,Beach Cleansng Contr,"22,192.73",BRIGHSTONE LANDSCAPING LTD
Revenue,Economy & Environment,5105630276,11.10.2013,Beach Cleaning,Payment to Private Contractors,65.00,BRIGHSTONE LANDSCAPING LTD
Revenue,Economy & Environment,5105629486,09.10.2013,Beach Cleaning,Payment to Private Contractors,95.00,BRIGHSTONE LANDSCAPING LTD
Revenue,Economy & Environment,5105633380,25.10.2013,Beach Safety & Inspection / Beach Awards,Payment to Private Contractors,40.00,BRIGHSTONE LANDSCAPING LTD
Revenue,Economy & Environment,5105633331,25.10.2013,Miscellaneous dinghy parks,Payment to Private Contractors,336.00,BRIGHSTONE LANDSCAPING LTD
Revenue,Economy & Environment,5105631827,18.10.2013,Newport Harbour Account,Payment to Private Contractors,67.24,BRIGHSTONE LANDSCAPING LTD
Revenue,Community Wellbeing & Social Care,5105630342,16.10.2013,Adult Community Learning,Training,105.00,BRITISH COMPUTER SOCIETY
Revenue,Community Wellbeing & Social Care,5105630824,16.10.2013,Dinosaur Isle Museum (Sandown Geology),Stock Purchases,280.76,BRITISH FOSSILS/GIFTSTONES LIMITED
Revenue,Community Wellbeing & Social Care,5105632773,25.10.2013,Dinosaur Isle Museum (Sandown Geology),Stock Purchases,70.20,BRITISH FOSSILS/GIFTSTONES LIMITED
Revenue,Economy & Environment,5105630942,16.10.2013,IW Festival of Cycling,Professional Services,108.00,BRITISH RED CROSS SOCIETY
Revenue,Economy & Environment,5105630261,11.10.2013,Cycling Festival launch,Professional Services,144.00,BRITISH RED CROSS SOCIETY
Revenue,Economy & Environment,5105630907,16.10.2013,Cycle the Wight,Professional Services,486.00,BRITISH RED CROSS SOCIETY
Revenue,Community Wellbeing & Social Care,5105632161,23.10.2013,Drug Misuse - Adults,Payment to Private Contractors,750.00,BROADREACH HOUSE
Revenue,Community Wellbeing & Social Care,5105633790,31.10.2013,Drug Misuse - Adults,Payment to Private Contractors,10.00,BROADREACH HOUSE
Revenue,Community Wellbeing & Social Care,5105633786,31.10.2013,Drug Misuse - Adults,Payment to Private Contractors,99.29,BROADREACH HOUSE
Revenue,Community Wellbeing & Social Care,5105633787,31.10.2013,Drug Misuse - Adults,Payment to Private Contractors,"1,489.29",BROADREACH HOUSE
Revenue,Community Wellbeing & Social Care,5105633788,31.10.2013,Drug Misuse - Adults,Payment to Private Contractors,"3,870.00",BROADREACH HOUSE
Revenue,Community Wellbeing & Social Care,5105633789,31.10.2013,Drug Misuse - Adults,Payment to Private Contractors,99.29,BROADREACH HOUSE
Revenue,Economy & Environment,5105628121,02.10.2013,Transport Fleet Administration,Vehicle Fuel Costs,453.17,BROADWAY GARAGE
Revenue,Economy & Environment,5105629322,09.10.2013,Parks Maintenance Miscellaneous,Payment to Private Contractors,30.00,BROXAP LTD
Revenue,Economy & Environment,5105633062,25.10.2013,Parks Maintenance Miscellaneous,Payment to Private Contractors,30.00,BROXAP LTD
Revenue,Economy & Environment,5105630266,11.10.2013,Parks/ Gardens Inspectors,Payment to Private Contractors,683.00,BROXAP LTD
Revenue,Economy & Environment,5105630266,11.10.2013,Play Areas Health & Safety work,Payment to Private Contractors,683.00,BROXAP LTD
Revenue,Community Wellbeing & Social Care,5105633612,30.10.2013,Elderly Frail Residential Care,Charges from Independent Providers,"1,998.08",BUCKLAND CARE LTD
Revenue,Community Wellbeing & Social Care,5105633820,31.10.2013,Elderly Frail Residential Care,Charges from Independent Providers,"1,274.90",BUCKLAND CARE LTD
Revenue,Community Wellbeing & Social Care,5105628639,09.10.2013,Elderly Frail Residential Care,Charges from Independent Providers,"1,998.08",BUCKLAND CARE LTD
Revenue,Community Wellbeing & Social Care,5105628639,09.10.2013,Elderly Frail Residential Care,Charges from Independent Providers,"1,622.60",BUCKLAND CARE LTD
Revenue,Community Wellbeing & Social Care,5105628639,09.10.2013,Elderly Frail Residential Care,Charges from Independent Providers,"1,622.60",BUCKLAND CARE LTD
Revenue,Community Wellbeing & Social Care,5105628639,09.10.2013,Elderly Frail Residential Care,Charges from Independent Providers,"1,998.08",BUCKLAND CARE LTD
Revenue,Community Wellbeing & Social Care,5105628639,09.10.2013,Elderly Frail Residential Care,Charges from Independent Providers,"1,998.08",BUCKLAND CARE LTD
Revenue,Community Wellbeing & Social Care,5105628639,09.10.2013,Elderly Frail Residential Care,Charges from Independent Providers,"1,622.60",BUCKLAND CARE LTD
Revenue,Community Wellbeing & Social Care,5105628639,09.10.2013,Elderly Frail Residential Care,Charges from Independent Providers,"1,622.60",BUCKLAND CARE LTD
Revenue,Community Wellbeing & Social Care,5105628639,09.10.2013,Elderly Frail Residential Care,Charges from Independent Providers,"1,622.60",BUCKLAND CARE LTD
Revenue,Community Wellbeing & Social Care,5105628639,09.10.2013,Elderly Frail Residential Care,Charges from Independent Providers,"1,622.60",BUCKLAND CARE LTD
Revenue,Community Wellbeing & Social Care,5105628639,09.10.2013,Elderly Frail Residential Care,Charges from Independent Providers,"1,622.60",BUCKLAND CARE LTD
Revenue,Community Wellbeing & Social Care,5105628639,09.10.2013,Elderly Frail Residential Care,Charges from Independent Providers,"1,699.88",BUCKLAND CARE LTD
Revenue,Community Wellbeing & Social Care,5105628639,09.10.2013,Elderly Mentally Ill Residential Care,Charges from Independent Providers,"1,699.88",BUCKLAND CARE LTD
Revenue,Community Wellbeing & Social Care,5105628639,09.10.2013,Elderly Mentally Ill Residential Care,Charges from Independent Providers,"1,998.08",BUCKLAND CARE LTD
Revenue,Community Wellbeing & Social Care,5105628639,09.10.2013,Elderly Mentally Ill Residential Care,Charges from Independent Providers,"1,699.88",BUCKLAND CARE LTD
Revenue,Community Wellbeing & Social Care,5105628639,09.10.2013,Elderly Mentally Ill Residential Care,Charges from Independent Providers,"1,998.08",BUCKLAND CARE LTD
Revenue,Community Wellbeing & Social Care,5105628639,09.10.2013,Elderly Mentally Ill Residential Care,Charges from Independent Providers,"1,699.88",BUCKLAND CARE LTD
Revenue,Community Wellbeing & Social Care,5105628273,09.10.2013,Elderly Frail Managed Accounts,Charges from Independent Providers,"1,998.08",BUCKLAND CARE LTD
Revenue,Community Wellbeing & Social Care,5105628273,09.10.2013,Elderly Frail Managed Accounts,Charges from Independent Providers,784.96,BUCKLAND CARE LTD
Revenue,Community Wellbeing & Social Care,5105628639,09.10.2013,Elderly Frail Managed Accounts,Charges from Independent Providers,"1,998.08",BUCKLAND CARE LTD
Revenue,Community Wellbeing & Social Care,5105628639,09.10.2013,REDACTED PERSONAL DATA,Order Settlement,577.36,BUCKLAND CARE LTD
Revenue,Community Wellbeing & Social Care,5105628639,09.10.2013,REDACTED PERSONAL DATA,Order Settlement,"1,622.60",BUCKLAND CARE LTD
Revenue,Community Wellbeing & Social Care,5105628639,09.10.2013,REDACTED PERSONAL DATA,Order Settlement,"1,699.88",BUCKLAND CARE LTD
Revenue,Community Wellbeing & Social Care,5105628622,09.10.2013,Elderly Frail Nursing Island,Charges from Independent Providers,"2,672.32",BUCKLAND CARE LTD
Revenue,Community Wellbeing & Social Care,5105628622,09.10.2013,Elderly Frail Nursing Island,Charges from Independent Providers,"2,672.32",BUCKLAND CARE LTD
Revenue,Community Wellbeing & Social Care,5105628622,09.10.2013,Elderly Frail Nursing Island,Charges from Independent Providers,"2,672.32",BUCKLAND CARE LTD
Revenue,Community Wellbeing & Social Care,5105628622,09.10.2013,Elderly Frail Nursing Island,Charges from Independent Providers,"2,672.32",BUCKLAND CARE LTD
Revenue,Community Wellbeing & Social Care,5105628622,09.10.2013,Elderly Frail Nursing Island,Charges from Independent Providers,"2,672.32",BUCKLAND CARE LTD
Revenue,Community Wellbeing & Social Care,5105628622,09.10.2013,Elderly Frail Nursing Island,Charges from Independent Providers,"2,672.32",BUCKLAND CARE LTD
Revenue,Community Wellbeing & Social Care,5105628622,09.10.2013,Elderly Frail Nursing Island,Charges from Independent Providers,"2,672.32",BUCKLAND CARE LTD
Revenue,Community Wellbeing & Social Care,5105628622,09.10.2013,Elderly Frail Nursing Island,Charges from Independent Providers,"2,672.32",BUCKLAND CARE LTD
Revenue,Community Wellbeing & Social Care,5105633819,31.10.2013,Elderly Frail Nursing Island,Charges from Independent Providers,"1,240.72",BUCKLAND CARE LTD
Revenue,Community Wellbeing & Social Care,5105628622,09.10.2013,Elderly Frail Nursing Island,Charges from Independent Providers,"2,672.32",BUCKLAND CARE LTD
Revenue,Community Wellbeing & Social Care,5105628622,09.10.2013,Elderly Frail Nursing Island,Charges from Independent Providers,"2,672.32",BUCKLAND CARE LTD
Revenue,Community Wellbeing & Social Care,5105628622,09.10.2013,Elderly Frail Nursing Island,Charges from Independent Providers,"2,672.32",BUCKLAND CARE LTD
Revenue,Community Wellbeing & Social Care,5105628622,09.10.2013,Elderly Frail Nursing Island,Charges from Independent Providers,"2,672.32",BUCKLAND CARE LTD
Revenue,Community Wellbeing & Social Care,5105628622,09.10.2013,Elderly Frail Nursing Island,Charges from Independent Providers,"2,672.32",BUCKLAND CARE LTD
Revenue,Community Wellbeing & Social Care,5105628622,09.10.2013,Elderly Frail Nursing Island,Charges from Independent Providers,"2,672.32",BUCKLAND CARE LTD
Revenue,Community Wellbeing & Social Care,5105630054,11.10.2013,Elderly Frail Nursing Island,Charges from Independent Providers,"8,016.96",BUCKLAND CARE LTD
Revenue,Community Wellbeing & Social Care,5105628622,09.10.2013,Elderly Mentally Ill Nursing Island,Regular Respite Care,"2,672.32",BUCKLAND CARE LTD
Revenue,Community Wellbeing & Social Care,5105632844,25.10.2013,Funded Nursing Care Island,Charges from Independent Providers,62.76,BUCKLAND CARE LTD
Revenue,Community Wellbeing & Social Care,5105632844,25.10.2013,Funded Nursing Care Island,Charges from Independent Providers,"1,317.96",BUCKLAND CARE LTD
Revenue,Community Wellbeing & Social Care,5105628622,09.10.2013,Funded Nursing Care Island,Charges from Independent Providers,439.32,BUCKLAND CARE LTD
Revenue,Community Wellbeing & Social Care,5105628622,09.10.2013,Funded Nursing Care Island,Charges from Independent Providers,439.32,BUCKLAND CARE LTD
Revenue,Community Wellbeing & Social Care,5105628622,09.10.2013,Funded Nursing Care Island,Charges from Independent Providers,439.32,BUCKLAND CARE LTD
Revenue,Community Wellbeing & Social Care,5105628622,09.10.2013,Funded Nursing Care Island,Charges from Independent Providers,439.32,BUCKLAND CARE LTD
Revenue,Community Wellbeing & Social Care,5105628622,09.10.2013,Funded Nursing Care Island,Charges from Independent Providers,439.32,BUCKLAND CARE LTD
Revenue,Community Wellbeing & Social Care,5105628622,09.10.2013,Funded Nursing Care Island,Charges from Independent Providers,439.32,BUCKLAND CARE LTD
Revenue,Community Wellbeing & Social Care,5105628622,09.10.2013,Funded Nursing Care Island,Charges from Independent Providers,439.32,BUCKLAND CARE LTD
Revenue,Community Wellbeing & Social Care,5105628622,09.10.2013,REDACTED PERSONAL DATA,Order Settlement,"2,672.32",BUCKLAND CARE LTD
Revenue,Community Wellbeing & Social Care,5105628622,09.10.2013,REDACTED PERSONAL DATA,Order Settlement,"2,672.32",BUCKLAND CARE LTD
Revenue,Community Wellbeing & Social Care,5105628996,09.10.2013,Elderly Frail Nursing Mainland,Charges from Independent Providers,"1,841.84",BUPA CARE HOME (BNH) LTD
Revenue,Economy & Environment,5105630825,16.10.2013,Project Manager Waste Strategy,Professional Services,"1,553.50",BURGES SALMON LLP
Revenue,Resources,5105632309,23.10.2013,"Enterprise House, Newport",Grounds Maintenance,150.00,C & J GROUND MAINTENANCE
Revenue,Resources,5105630857,16.10.2013,"County Hall,Newport",Grounds Maintenance,183.00,C & J GROUND MAINTENANCE
Revenue,Resources,5105630841,16.10.2013,Properties  - Other Properties,Grounds Maintenance,50.00,C & J GROUND MAINTENANCE
Revenue,Resources,5105632244,25.10.2013,Properties  - Other Properties,Grounds Maintenance,"2,077.37",C & J GROUND MAINTENANCE
Revenue,Community Wellbeing & Social Care,5105628214,02.10.2013,Mental Health Day Services,General Materials,660.00,C & J GROUND MAINTENANCE
Revenue,Community Wellbeing & Social Care,5105631994,23.10.2013,Mental Health Day Services,Professional Services,660.00,C & J GROUND MAINTENANCE
Revenue,Community Wellbeing & Social Care,5105631828,18.10.2013,Mental Health Day Services,Professional Services,148.00,C & J GROUND MAINTENANCE
Revenue,Economy & Environment,5105632331,23.10.2013,Fire Operations,Grounds Maintenance,"1,000.00",C & J GROUND MAINTENANCE
Revenue,Childrens Services,5105631635,18.10.2013,In-house Fostering,Boarding Out Allowances,16.50,REDACTED PERSONAL DATA
Revenue,Childrens Services,5105628409,04.10.2013,In-house Fostering,Boarding Out Allowances,16.50,REDACTED PERSONAL DATA
Revenue,Childrens Services,5105632980,25.10.2013,In-house Fostering,Boarding Out Allowances,16.50,REDACTED PERSONAL DATA
Revenue,Childrens Services,5105633949,31.10.2013,In-house Fostering,Boarding Out Allowances,16.50,REDACTED PERSONAL DATA
Revenue,Childrens Services,5105629814,11.10.2013,In-house Fostering,Boarding Out Allowances,16.50,REDACTED PERSONAL DATA
Revenue,Childrens Services,5105632949,25.10.2013,Children placed with Family&Friends,Boarding Out Allowances,257.29,REDACTED PERSONAL DATA
Revenue,Childrens Services,5105628377,04.10.2013,Children placed with Family&Friends,Boarding Out Allowances,257.29,REDACTED PERSONAL DATA
Revenue,Childrens Services,5105629782,11.10.2013,Children placed with Family&Friends,Boarding Out Allowances,257.29,REDACTED PERSONAL DATA
Revenue,Childrens Services,5105633920,31.10.2013,Children placed with Family&Friends,Boarding Out Allowances,257.29,REDACTED PERSONAL DATA
Revenue,Childrens Services,5105631604,18.10.2013,Children placed with Family&Friends,Boarding Out Allowances,257.29,REDACTED PERSONAL DATA
Revenue,Childrens Services,5105633892,31.10.2013,Special Guardianship Order Costs,Support Children,125.79,REDACTED PERSONAL DATA
Revenue,Childrens Services,5105631576,18.10.2013,Special Guardianship Order Costs,Support Children,125.79,REDACTED PERSONAL DATA
Revenue,Childrens Services,5105629754,11.10.2013,Special Guardianship Order Costs,Support Children,125.79,REDACTED PERSONAL DATA
Revenue,Childrens Services,5105628348,04.10.2013,Special Guardianship Order Costs,Support Children,125.79,REDACTED PERSONAL DATA
Revenue,Childrens Services,5105632920,25.10.2013,Special Guardianship Order Costs,Support Children,125.79,REDACTED PERSONAL DATA
Revenue,Economy & Environment,5105631284,16.10.2013,Fort Victoria,General Materials,155.00,C BREWER & SONS LTD
Revenue,Childrens Services,5105632987,25.10.2013,Children placed with Family&Friends,Boarding Out Allowances,130.20,REDACTED PERSONAL DATA
Revenue,Childrens Services,5105628416,04.10.2013,Children placed with Family&Friends,Boarding Out Allowances,130.20,REDACTED PERSONAL DATA
Revenue,Childrens Services,5105631642,18.10.2013,Children placed with Family&Friends,Boarding Out Allowances,130.20,REDACTED PERSONAL DATA
Revenue,Childrens Services,5105629821,11.10.2013,Children placed with Family&Friends,Boarding Out Allowances,130.20,REDACTED PERSONAL DATA
Revenue,Childrens Services,5105633956,31.10.2013,Children placed with Family&Friends,Boarding Out Allowances,130.20,REDACTED PERSONAL DATA
Revenue,Community Wellbeing & Social Care,5105633169,25.10.2013,No-Barriers,Training,400.00,REDACTED PERSONAL DATA
Revenue,Childrens Services,5105629795,11.10.2013,Adoption Costs,Support Children,125.79,REDACTED PERSONAL DATA
Revenue,Childrens Services,5105629795,11.10.2013,Adoption Costs,Support Children,132.69,REDACTED PERSONAL DATA
Revenue,Childrens Services,5105633931,31.10.2013,Adoption Costs,Support Children,125.79,REDACTED PERSONAL DATA
Revenue,Childrens Services,5105633931,31.10.2013,Adoption Costs,Support Children,132.69,REDACTED PERSONAL DATA
Revenue,Childrens Services,5105631616,18.10.2013,Adoption Costs,Support Children,125.79,REDACTED PERSONAL DATA
Revenue,Childrens Services,5105631616,18.10.2013,Adoption Costs,Support Children,132.69,REDACTED PERSONAL DATA
Revenue,Childrens Services,5105632961,25.10.2013,Adoption Costs,Support Children,125.79,REDACTED PERSONAL DATA
Revenue,Childrens Services,5105632961,25.10.2013,Adoption Costs,Support Children,132.69,REDACTED PERSONAL DATA
Revenue,Childrens Services,5105628390,04.10.2013,Adoption Costs,Support Children,125.79,REDACTED PERSONAL DATA
Revenue,Childrens Services,5105628390,04.10.2013,Adoption Costs,Support Children,132.69,REDACTED PERSONAL DATA
Revenue,Resources,5105633266,25.10.2013,Staff Benefits,Payment to Private Contractors,138.72,REDACTED PERSONAL DATA
Revenue,Childrens Services,5105629777,11.10.2013,Leaving Care Costs,Accommodation Costs - Service Users,57.50,REDACTED PERSONAL DATA
Revenue,Childrens Services,5105631599,18.10.2013,Leaving Care Costs,Accommodation Costs - Service Users,57.50,REDACTED PERSONAL DATA
Revenue,Childrens Services,5105632944,25.10.2013,Leaving Care Costs,Accommodation Costs - Service Users,57.50,REDACTED PERSONAL DATA
Revenue,Childrens Services,5105633915,31.10.2013,Leaving Care Costs,Accommodation Costs - Service Users,57.50,REDACTED PERSONAL DATA
Revenue,Childrens Services,5105628372,04.10.2013,Leaving Care Costs,Accommodation Costs - Service Users,57.50,REDACTED PERSONAL DATA
Revenue,Childrens Services,5105632944,25.10.2013,Leaving Care Costs,Support Children,120.89,REDACTED PERSONAL DATA
Revenue,Childrens Services,5105632944,25.10.2013,Leaving Care Costs,Support Children,20.00,REDACTED PERSONAL DATA
Revenue,Childrens Services,5105633915,31.10.2013,Leaving Care Costs,Support Children,120.89,REDACTED PERSONAL DATA
Revenue,Childrens Services,5105633915,31.10.2013,Leaving Care Costs,Support Children,20.00,REDACTED PERSONAL DATA
Revenue,Childrens Services,5105631599,18.10.2013,Leaving Care Costs,Support Children,120.89,REDACTED PERSONAL DATA
Revenue,Childrens Services,5105631599,18.10.2013,Leaving Care Costs,Support Children,20.00,REDACTED PERSONAL DATA
Revenue,Childrens Services,5105628372,04.10.2013,Leaving Care Costs,Support Children,120.89,REDACTED PERSONAL DATA
Revenue,Childrens Services,5105628372,04.10.2013,Leaving Care Costs,Support Children,20.00,REDACTED PERSONAL DATA
Revenue,Childrens Services,5105629777,11.10.2013,Leaving Care Costs,Support Children,120.89,REDACTED PERSONAL DATA
Revenue,Childrens Services,5105629777,11.10.2013,Leaving Care Costs,Support Children,20.00,REDACTED PERSONAL DATA
Revenue,Childrens Services,5105633910,31.10.2013,Special Guardianship Order Costs,Support Children,125.79,REDACTED PERSONAL DATA
Revenue,Childrens Services,5105631594,18.10.2013,Special Guardianship Order Costs,Support Children,125.79,REDACTED PERSONAL DATA
Revenue,Childrens Services,5105629772,11.10.2013,Special Guardianship Order Costs,Support Children,125.79,REDACTED PERSONAL DATA
Revenue,Childrens Services,5105632939,25.10.2013,Special Guardianship Order Costs,Support Children,125.79,REDACTED PERSONAL DATA
Revenue,Childrens Services,5105628367,04.10.2013,Special Guardianship Order Costs,Support Children,125.79,REDACTED PERSONAL DATA
Revenue,Childrens Services,5105633896,31.10.2013,Adoption Costs,Support Children,168.39,REDACTED PERSONAL DATA
Revenue,Childrens Services,5105633896,31.10.2013,Adoption Costs,Support Children,168.39,REDACTED PERSONAL DATA
Revenue,Childrens Services,5105629758,11.10.2013,Adoption Costs,Support Children,168.39,REDACTED PERSONAL DATA
Revenue,Childrens Services,5105629758,11.10.2013,Adoption Costs,Support Children,168.39,REDACTED PERSONAL DATA
Revenue,Childrens Services,5105631580,18.10.2013,Adoption Costs,Support Children,168.39,REDACTED PERSONAL DATA
Revenue,Childrens Services,5105631580,18.10.2013,Adoption Costs,Support Children,168.39,REDACTED PERSONAL DATA
Revenue,Childrens Services,5105632924,25.10.2013,Adoption Costs,Support Children,168.39,REDACTED PERSONAL DATA
Revenue,Childrens Services,5105628352,04.10.2013,Adoption Costs,Support Children,168.39,REDACTED PERSONAL DATA
Revenue,Childrens Services,5105628352,04.10.2013,Adoption Costs,Support Children,168.39,REDACTED PERSONAL DATA
Revenue,Childrens Services,5105632924,25.10.2013,Adoption Costs,Support Children,168.39,REDACTED PERSONAL DATA
Revenue,Childrens Services,5105631671,18.10.2013,Children placed with Family&Friends,Boarding Out Allowances,130.20,REDACTED PERSONAL DATA
Revenue,Childrens Services,5105633983,31.10.2013,Children placed with Family&Friends,Boarding Out Allowances,130.20,REDACTED PERSONAL DATA
Revenue,Childrens Services,5105633016,25.10.2013,Children placed with Family&Friends,Boarding Out Allowances,130.20,REDACTED PERSONAL DATA
Revenue,Childrens Services,5105629851,11.10.2013,Children placed with Family&Friends,Boarding Out Allowances,130.20,REDACTED PERSONAL DATA
Revenue,Childrens Services,5105629842,11.10.2013,Leaving Care Costs,Accommodation Costs - Service Users,57.50,REDACTED PERSONAL DATA
Revenue,Childrens Services,5105633008,25.10.2013,Leaving Care Costs,Accommodation Costs - Service Users,57.50,REDACTED PERSONAL DATA
Revenue,Childrens Services,5105633975,31.10.2013,Leaving Care Costs,Accommodation Costs - Service Users,57.50,REDACTED PERSONAL DATA
Revenue,Childrens Services,5105631662,18.10.2013,Leaving Care Costs,Accommodation Costs - Service Users,57.50,REDACTED PERSONAL DATA
Revenue,Childrens Services,5105628437,04.10.2013,Leaving Care Costs,Accommodation Costs - Service Users,57.50,REDACTED PERSONAL DATA
Revenue,Childrens Services,5105633975,31.10.2013,In-house Fostering,Support Children,120.89,REDACTED PERSONAL DATA
Revenue,Childrens Services,5105629842,11.10.2013,In-house Fostering,Support Children,120.89,REDACTED PERSONAL DATA
Revenue,Childrens Services,5105628437,04.10.2013,In-house Fostering,Support Children,120.89,REDACTED PERSONAL DATA
Revenue,Childrens Services,5105631662,18.10.2013,In-house Fostering,Support Children,120.89,REDACTED PERSONAL DATA
Revenue,Childrens Services,5105633008,25.10.2013,In-house Fostering,Support Children,120.89,REDACTED PERSONAL DATA
Revenue,Childrens Services,5105629751,11.10.2013,In-house Fostering,Boarding Out Allowances,268.21,REDACTED PERSONAL DATA
Revenue,Childrens Services,5105631573,18.10.2013,In-house Fostering,Boarding Out Allowances,221.13,REDACTED PERSONAL DATA
Revenue,Childrens Services,5105631573,18.10.2013,In-house Fostering,Boarding Out Allowances,10.00,REDACTED PERSONAL DATA
Revenue,Childrens Services,5105631573,18.10.2013,In-house Fostering,Boarding Out Allowances,181.79,REDACTED PERSONAL DATA
Revenue,Childrens Services,5105631573,18.10.2013,In-house Fostering,Boarding Out Allowances,200.00,REDACTED PERSONAL DATA
Revenue,Childrens Services,5105631573,18.10.2013,In-house Fostering,Boarding Out Allowances,268.21,REDACTED PERSONAL DATA
Revenue,Childrens Services,5105628345,04.10.2013,In-house Fostering,Boarding Out Allowances,200.00,REDACTED PERSONAL DATA
Revenue,Childrens Services,5105628345,04.10.2013,In-house Fostering,Boarding Out Allowances,181.79,REDACTED PERSONAL DATA
Revenue,Childrens Services,5105633889,31.10.2013,In-house Fostering,Boarding Out Allowances,221.13,REDACTED PERSONAL DATA
Revenue,Childrens Services,5105633889,31.10.2013,In-house Fostering,Boarding Out Allowances,10.00,REDACTED PERSONAL DATA
Revenue,Childrens Services,5105633889,31.10.2013,In-house Fostering,Boarding Out Allowances,268.21,REDACTED PERSONAL DATA
Revenue,Childrens Services,5105632917,25.10.2013,In-house Fostering,Boarding Out Allowances,221.13,REDACTED PERSONAL DATA
Revenue,Childrens Services,5105632917,25.10.2013,In-house Fostering,Boarding Out Allowances,10.00,REDACTED PERSONAL DATA
Revenue,Childrens Services,5105632917,25.10.2013,In-house Fostering,Boarding Out Allowances,268.21,REDACTED PERSONAL DATA
Revenue,Childrens Services,5105632917,25.10.2013,In-house Fostering,Boarding Out Allowances,181.79,REDACTED PERSONAL DATA
Revenue,Childrens Services,5105632917,25.10.2013,In-house Fostering,Boarding Out Allowances,200.00,REDACTED PERSONAL DATA
Revenue,Childrens Services,5105629751,11.10.2013,In-house Fostering,Boarding Out Allowances,221.13,REDACTED PERSONAL DATA
Revenue,Childrens Services,5105629751,11.10.2013,In-house Fostering,Boarding Out Allowances,10.00,REDACTED PERSONAL DATA
Revenue,Childrens Services,5105629751,11.10.2013,In-house Fostering,Boarding Out Allowances,181.79,REDACTED PERSONAL DATA
Revenue,Childrens Services,5105629751,11.10.2013,In-house Fostering,Boarding Out Allowances,200.00,REDACTED PERSONAL DATA
Revenue,Childrens Services,5105628345,04.10.2013,In-house Fostering,Boarding Out Allowances,221.13,REDACTED PERSONAL DATA
Revenue,Childrens Services,5105628345,04.10.2013,In-house Fostering,Boarding Out Allowances,10.00,REDACTED PERSONAL DATA
Revenue,Childrens Services,5105631509,18.10.2013,Leaving Care Costs,Accommodation Costs - Service Users,57.50,REDACTED PERSONAL DATA
Revenue,Childrens Services,5105633825,31.10.2013,Leaving Care Costs,Accommodation Costs - Service Users,57.50,REDACTED PERSONAL DATA
Revenue,Childrens Services,5105629687,11.10.2013,Leaving Care Costs,Accommodation Costs - Service Users,57.50,REDACTED PERSONAL DATA
Revenue,Childrens Services,5105632852,25.10.2013,Leaving Care Costs,Accommodation Costs - Service Users,57.50,REDACTED PERSONAL DATA
Revenue,Childrens Services,5105628280,04.10.2013,Leaving Care Costs,Accommodation Costs - Service Users,57.50,REDACTED PERSONAL DATA
Revenue,Childrens Services,5105632852,25.10.2013,Leaving Care Costs,Support Children,120.89,REDACTED PERSONAL DATA
Revenue,Childrens Services,5105633825,31.10.2013,Leaving Care Costs,Support Children,120.89,REDACTED PERSONAL DATA
Revenue,Childrens Services,5105631509,18.10.2013,Leaving Care Costs,Support Children,120.89,REDACTED PERSONAL DATA
Revenue,Childrens Services,5105628280,04.10.2013,Leaving Care Costs,Support Children,120.89,REDACTED PERSONAL DATA
Revenue,Childrens Services,5105629687,11.10.2013,Leaving Care Costs,Support Children,120.89,REDACTED PERSONAL DATA
Revenue,Childrens Services,5105631548,18.10.2013,In-house Fostering,Boarding Out Allowances,221.13,REDACTED PERSONAL DATA
Revenue,Childrens Services,5105631548,18.10.2013,In-house Fostering,Boarding Out Allowances,221.13,REDACTED PERSONAL DATA
Revenue,Childrens Services,5105631548,18.10.2013,In-house Fostering,Boarding Out Allowances,15.00,REDACTED PERSONAL DATA
Revenue,Childrens Services,5105633864,31.10.2013,In-house Fostering,Boarding Out Allowances,221.13,REDACTED PERSONAL DATA
Revenue,Childrens Services,5105633864,31.10.2013,In-house Fostering,Boarding Out Allowances,15.00,REDACTED PERSONAL DATA
Revenue,Childrens Services,5105633864,31.10.2013,In-house Fostering,Boarding Out Allowances,221.13,REDACTED PERSONAL DATA
Revenue,Childrens Services,5105632891,25.10.2013,In-house Fostering,Boarding Out Allowances,221.13,REDACTED PERSONAL DATA
Revenue,Childrens Services,5105632891,25.10.2013,In-house Fostering,Boarding Out Allowances,221.13,REDACTED PERSONAL DATA
Revenue,Childrens Services,5105632891,25.10.2013,In-house Fostering,Boarding Out Allowances,15.00,REDACTED PERSONAL DATA
Revenue,Childrens Services,5105629726,11.10.2013,In-house Fostering,Boarding Out Allowances,221.13,REDACTED PERSONAL DATA
Revenue,Childrens Services,5105629726,11.10.2013,In-house Fostering,Boarding Out Allowances,221.13,REDACTED PERSONAL DATA
Revenue,Childrens Services,5105629726,11.10.2013,In-house Fostering,Boarding Out Allowances,15.00,REDACTED PERSONAL DATA
Revenue,Childrens Services,5105628320,04.10.2013,In-house Fostering,Boarding Out Allowances,221.13,REDACTED PERSONAL DATA
Revenue,Childrens Services,5105628320,04.10.2013,In-house Fostering,Boarding Out Allowances,221.13,REDACTED PERSONAL DATA
Revenue,Childrens Services,5105628320,04.10.2013,In-house Fostering,Boarding Out Allowances,15.00,REDACTED PERSONAL DATA
Revenue,Childrens Services,5105631569,18.10.2013,Children placed with Family&Friends,Boarding Out Allowances,100.00,REDACTED PERSONAL DATA
Revenue,Childrens Services,5105628341,04.10.2013,Children placed with Family&Friends,Boarding Out Allowances,100.00,REDACTED PERSONAL DATA
Revenue,Childrens Services,5105632913,25.10.2013,Children placed with Family&Friends,Boarding Out Allowances,100.00,REDACTED PERSONAL DATA
Revenue,Childrens Services,5105632913,25.10.2013,Children placed with Family&Friends,Boarding Out Allowances,181.79,REDACTED PERSONAL DATA
Revenue,Childrens Services,5105628341,04.10.2013,Children placed with Family&Friends,Boarding Out Allowances,181.79,REDACTED PERSONAL DATA
Revenue,Childrens Services,5105633885,31.10.2013,Children placed with Family&Friends,Boarding Out Allowances,100.00,REDACTED PERSONAL DATA
Revenue,Childrens Services,5105633885,31.10.2013,Children placed with Family&Friends,Boarding Out Allowances,181.79,REDACTED PERSONAL DATA
Revenue,Childrens Services,5105629747,11.10.2013,Children placed with Family&Friends,Boarding Out Allowances,181.79,REDACTED PERSONAL DATA
Revenue,Childrens Services,5105629747,11.10.2013,Children placed with Family&Friends,Boarding Out Allowances,100.00,REDACTED PERSONAL DATA
Revenue,Childrens Services,5105631569,18.10.2013,Children placed with Family&Friends,Boarding Out Allowances,181.79,REDACTED PERSONAL DATA
Revenue,Economy & Environment,5105629663,11.10.2013,Off-Street Parking Operations,Payment to Private Contractors,"1,400.00",C N SERVICES
Revenue,Economy & Environment,5105629481,09.10.2013,Other Grounds Maintenance,Payment to Private Contractors,982.83,C N SERVICES
Revenue,Economy & Environment,5105632227,23.10.2013,Play Areas Health & Safety work,Payment to Private Contractors,365.00,C N SERVICES
Revenue,Economy & Environment,5105632227,23.10.2013,Play Areas Health & Safety work,Payment to Private Contractors,270.00,C N SERVICES
Revenue,Economy & Environment,5105632308,23.10.2013,Beach Safety & Inspection / Beach Awards,Payment to Private Contractors,99.50,C N SERVICES
Revenue,Economy & Environment,5105632308,23.10.2013,Beach Safety & Inspection / Beach Awards,Payment to Private Contractors,115.00,C N SERVICES
Revenue,Economy & Environment,5105632308,23.10.2013,Beach Safety & Inspection / Beach Awards,Payment to Private Contractors,73.00,C N SERVICES
Revenue,Economy & Environment,5105629895,11.10.2013,Cemeteries-Shanklin,Grounds Maintenance,"1,245.00",C N SERVICES
Revenue,Childrens Services,5105629718,11.10.2013,In-house Fostering,Regular Respite Care,120.00,REDACTED PERSONAL DATA
Revenue,Childrens Services,5105629718,11.10.2013,In-house Fostering,Regular Respite Care,20.00,REDACTED PERSONAL DATA
Revenue,Childrens Services,5105629718,11.10.2013,In-house Fostering,Regular Respite Care,20.00,REDACTED PERSONAL DATA
Revenue,Childrens Services,5105631540,18.10.2013,In-house Fostering,Regular Respite Care,20.00,REDACTED PERSONAL DATA
Revenue,Childrens Services,5105631540,18.10.2013,In-house Fostering,Regular Respite Care,20.00,REDACTED PERSONAL DATA
Revenue,Childrens Services,5105631540,18.10.2013,In-house Fostering,Regular Respite Care,120.00,REDACTED PERSONAL DATA
Revenue,Childrens Services,5105632883,25.10.2013,In-house Fostering,Regular Respite Care,20.00,REDACTED PERSONAL DATA
Revenue,Childrens Services,5105632883,25.10.2013,In-house Fostering,Regular Respite Care,20.00,REDACTED PERSONAL DATA
Revenue,Childrens Services,5105632883,25.10.2013,In-house Fostering,Regular Respite Care,120.00,REDACTED PERSONAL DATA
Revenue,Childrens Services,5105633856,31.10.2013,In-house Fostering,Regular Respite Care,120.00,REDACTED PERSONAL DATA
Revenue,Childrens Services,5105633856,31.10.2013,In-house Fostering,Regular Respite Care,20.00,REDACTED PERSONAL DATA
Revenue,Childrens Services,5105633856,31.10.2013,In-house Fostering,Regular Respite Care,20.00,REDACTED PERSONAL DATA
Revenue,Childrens Services,5105628312,04.10.2013,In-house Fostering,Regular Respite Care,120.00,REDACTED PERSONAL DATA
Revenue,Resources,5105633277,25.10.2013,Staff Benefits,Payment to Private Contractors,243.00,REDACTED PERSONAL DATA
Revenue,Childrens Services,5105632889,25.10.2013,In-house Fostering,Boarding Out Allowances,130.20,REDACTED PERSONAL DATA
Revenue,Childrens Services,5105633862,31.10.2013,In-house Fostering,Boarding Out Allowances,130.20,REDACTED PERSONAL DATA
Revenue,Childrens Services,5105631546,18.10.2013,In-house Fostering,Boarding Out Allowances,130.20,REDACTED PERSONAL DATA
Revenue,Childrens Services,5105629724,11.10.2013,In-house Fostering,Boarding Out Allowances,130.20,REDACTED PERSONAL DATA
Revenue,Childrens Services,5105628318,04.10.2013,In-house Fostering,Boarding Out Allowances,130.20,REDACTED PERSONAL DATA
Revenue,Childrens Services,5105628356,04.10.2013,In-house Fostering,Boarding Out Allowances,130.20,REDACTED PERSONAL DATA
Revenue,Childrens Services,5105628356,04.10.2013,In-house Fostering,Boarding Out Allowances,10.00,REDACTED PERSONAL DATA
Revenue,Childrens Services,5105632928,25.10.2013,In-house Fostering,Boarding Out Allowances,130.20,REDACTED PERSONAL DATA
Revenue,Childrens Services,5105632928,25.10.2013,In-house Fostering,Boarding Out Allowances,10.00,REDACTED PERSONAL DATA
Revenue,Childrens Services,5105633900,31.10.2013,In-house Fostering,Boarding Out Allowances,130.20,REDACTED PERSONAL DATA
Revenue,Childrens Services,5105633900,31.10.2013,In-house Fostering,Boarding Out Allowances,10.00,REDACTED PERSONAL DATA
Revenue,Childrens Services,5105629762,11.10.2013,In-house Fostering,Boarding Out Allowances,130.20,REDACTED PERSONAL DATA
Revenue,Childrens Services,5105629762,11.10.2013,In-house Fostering,Boarding Out Allowances,10.00,REDACTED PERSONAL DATA
Revenue,Childrens Services,5105631584,18.10.2013,In-house Fostering,Boarding Out Allowances,130.20,REDACTED PERSONAL DATA
Revenue,Childrens Services,5105631584,18.10.2013,In-house Fostering,Boarding Out Allowances,10.00,REDACTED PERSONAL DATA
Revenue,Childrens Services,5105633924,31.10.2013,Special Guardianship Order Costs,Support Children,125.79,REDACTED PERSONAL DATA
Revenue,Childrens Services,5105628381,04.10.2013,Special Guardianship Order Costs,Support Children,125.79,REDACTED PERSONAL DATA
Revenue,Childrens Services,5105629786,11.10.2013,Special Guardianship Order Costs,Support Children,125.79,REDACTED PERSONAL DATA
Revenue,Childrens Services,5105632953,25.10.2013,Special Guardianship Order Costs,Support Children,125.79,REDACTED PERSONAL DATA
Revenue,Childrens Services,5105631608,18.10.2013,Special Guardianship Order Costs,Support Children,125.79,REDACTED PERSONAL DATA
Revenue,Childrens Services,5105633986,31.10.2013,Leaving Care Costs,Support Children,20.30,REDACTED PERSONAL DATA
Revenue,Childrens Services,5105633019,25.10.2013,Leaving Care Costs,Support Children,20.30,REDACTED PERSONAL DATA
Revenue,Childrens Services,5105631674,18.10.2013,Leaving Care Costs,Support Children,20.30,REDACTED PERSONAL DATA
Revenue,Community Wellbeing & Social Care,5105628575,09.10.2013,Learning Disability Residential Care,Charges from Independent Providers,"1,757.00",REDACTED PERSONAL DATA
Revenue,Childrens Services,5105629752,11.10.2013,Adoption Costs,Support Children,132.69,REDACTED PERSONAL DATA
Revenue,Childrens Services,5105633890,31.10.2013,Adoption Costs,Support Children,132.69,REDACTED PERSONAL DATA
Revenue,Childrens Services,5105631574,18.10.2013,Adoption Costs,Support Children,132.69,REDACTED PERSONAL DATA
Revenue,Childrens Services,5105632918,25.10.2013,Adoption Costs,Support Children,132.69,REDACTED PERSONAL DATA
Revenue,Childrens Services,5105628346,04.10.2013,Adoption Costs,Support Children,132.69,REDACTED PERSONAL DATA
Revenue,Resources,5105632276,23.10.2013,ICT Contracts,Computer Maintenance,"2,713.32",CABLE & WIRELESS WORLDWIDE
Revenue,Childrens Services,5105632795,25.10.2013,Youth Offending Team,Payment to Private Contractors,800.00,CACI LIMITED
Revenue,Childrens Services,5105632794,25.10.2013,Youth Offending Team,Payment to Private Contractors,850.00,CACI LIMITED
Revenue,Community Wellbeing & Social Care,5105631387,16.10.2013,Public Libraries Central,Publications,150.00,CALIBRE AUDIO LIBRARY
Revenue,Community Wellbeing & Social Care,5105631388,16.10.2013,Public Libraries Central,Publications,75.00,CALIBRE AUDIO LIBRARY
Capital,Resources,5105628537,04.10.2013,Capital Receipts,Capital Contractor Payments,18.33,CALOR GAS LIMITED
Capital,Resources,5105628538,04.10.2013,Capital Receipts,Capital Contractor Payments,18.33,CALOR GAS LIMITED
Revenue,Community Wellbeing & Social Care,5105633132,24.10.2013,Workforce Development -  Westridge Centre,Operational Equipment,-13.75,CALOR GAS LIMITED
Revenue,Community Wellbeing & Social Care,5105633105,24.10.2013,Workforce Development -  Westridge Centre,Operational Equipment,13.75,CALOR GAS LIMITED
Revenue,Economy & Environment,5105633106,24.10.2013,Transport Administration,Maintenance of Operational Equipment,13.75,CALOR GAS LIMITED
Revenue,Resources,5105630268,11.10.2013,Litigation Costs,Legal Fees - Other Parties,50.00,CAMERON LAMB LTD
Revenue,Resources,5105630269,11.10.2013,Litigation Costs,Legal Fees - Other Parties,50.00,CAMERON LAMB LTD
Revenue,Economy & Environment,5105631975,18.10.2013,Environmental Health - Geographical Team,Training,105.00,CAMPDEN BRI LTD
Revenue,Resources,5105630050,11.10.2013,Fraud Section,Office Equipment,75.00,CANFORD AUDIO PLC
Revenue,Resources,5105630050,11.10.2013,Fraud Section,Office Equipment,29.40,CANFORD AUDIO PLC
Revenue,Community Wellbeing & Social Care,5105630921,16.10.2013,Downside Community & Learning Centre,Cleaning Contracts,10.05,CANNON HYGIENE
Revenue,Resources,5105631801,18.10.2013,St James Centre,Office Equipment,124.80,CANNON HYGIENE
Revenue,Resources,5105631801,18.10.2013,St James Centre,Office Equipment,58.20,CANNON HYGIENE
Revenue,Economy & Environment,5105628099,09.10.2013,Print Unit,Photocopying Costs,"1,675.97",CANON (UK) LTD
Revenue,Economy & Environment,5105628100,09.10.2013,Print Unit,Photocopying Costs,"1,624.38",CANON (UK) LTD
Revenue,Economy & Environment,5105628101,09.10.2013,Print Unit,Photocopying Costs,"1,624.38",CANON (UK) LTD
Revenue,Economy & Environment,5105628102,09.10.2013,Print Unit,Photocopying Costs,"1,023.55",CANON (UK) LTD
Revenue,Economy & Environment,5105629521,09.10.2013,Highways PFI Project,Professional Services,100.00,CAPCOM LAND SEA & AIR COMMUN.LTD
Revenue,Childrens Services,5105632767,25.10.2013,Children's Services Strategic Management,Bought in Professional Services - Curriculum (Schools),760.00,CAPITA BUSINESS SERVICES LTD
Revenue,Childrens Services,5105633405,25.10.2013,Children's Services Strategic Management,Bought in Professional Services - Curriculum (Schools),-760.00,CAPITA BUSINESS SERVICES LTD
Revenue,Childrens Services,5105633403,30.10.2013,Children's Services Strategic Management,Bought in Professional Services - Curriculum (Schools),760.00,CAPITA BUSINESS SERVICES LTD
Capital,Community Wellbeing & Social Care,5105629449,09.10.2013,Schools Reorganisation,ICT Hardware & Software - Capital,525.00,CAPITA BUSINESS SERVICES LTD
Revenue,Resources,5105630345,16.10.2013,Pension Administration,Training,200.00,CAPITA EDUCATION SERVICES
Revenue,Resources,5105631285,16.10.2013,Human Resources,Agency staff,500.00,CAPITA RESOURCING LTD
Revenue,Resources,5105631285,16.10.2013,Human Resources,Agency staff,750.00,CAPITA RESOURCING LTD
Revenue,Resources,5105624863,09.10.2013,Human Resources,Agency staff,"5,850.00",CAPITA RESOURCING LTD
Revenue,Resources,5105625601,11.10.2013,Human Resources,Agency staff,725.00,CAPITA RESOURCING LTD
Revenue,Resources,5105624863,09.10.2013,Human Resources,Agency staff,750.00,CAPITA RESOURCING LTD
Revenue,Resources,5105630826,16.10.2013,Human Resources,Agency staff,"1,950.00",CAPITA RESOURCING LTD
Revenue,Resources,5105631002,16.10.2013,Human Resources,Agency staff,-750.00,CAPITA RESOURCING LTD
Revenue,Resources,5105631285,16.10.2013,Human Resources,Agency staff,"1,950.00",CAPITA RESOURCING LTD
Revenue,Community Wellbeing & Social Care,5105631690,18.10.2013,Elderly Frail Homecare,Regular Respite Care,116.16,CARE FIRST IW LTD
Revenue,Community Wellbeing & Social Care,5105630611,16.10.2013,Elderly Frail Homecare,Regular Respite Care,116.16,CARE FIRST IW LTD
Revenue,Community Wellbeing & Social Care,5105630629,16.10.2013,Elderly Frail Homecare,Regular Respite Care,232.32,CARE FIRST IW LTD
Revenue,Community Wellbeing & Social Care,5105630638,16.10.2013,Elderly Frail Homecare,Regular Respite Care,116.16,CARE FIRST IW LTD
Revenue,Community Wellbeing & Social Care,5105630640,16.10.2013,Elderly Frail Homecare,Regular Respite Care,261.36,CARE FIRST IW LTD
Revenue,Community Wellbeing & Social Care,5105633194,25.10.2013,Elderly Frail Homecare,Charges from Independent Providers,0.00,CARE FIRST IW LTD
Revenue,Community Wellbeing & Social Care,5105632463,25.10.2013,Elderly Frail Homecare,Charges from Independent Providers,0.00,CARE FIRST IW LTD
Revenue,Community Wellbeing & Social Care,5105631378,16.10.2013,Elderly Frail Homecare,Charges from Independent Providers,0.00,CARE FIRST IW LTD
Revenue,Community Wellbeing & Social Care,5105630619,16.10.2013,Elderly Frail Homecare,Charges from Independent Providers,508.20,CARE FIRST IW LTD
Revenue,Community Wellbeing & Social Care,5105630618,16.10.2013,Elderly Frail Homecare,Charges from Independent Providers,203.28,CARE FIRST IW LTD
Revenue,Community Wellbeing & Social Care,5105630608,16.10.2013,Elderly Frail Homecare,Charges from Independent Providers,"1,684.32",CARE FIRST IW LTD
Revenue,Community Wellbeing & Social Care,5105630609,16.10.2013,Elderly Frail Homecare,Charges from Independent Providers,304.92,CARE FIRST IW LTD
Revenue,Community Wellbeing & Social Care,5105630615,16.10.2013,Elderly Frail Homecare,Charges from Independent Providers,515.46,CARE FIRST IW LTD
Revenue,Community Wellbeing & Social Care,5105630613,16.10.2013,Elderly Frail Homecare,Charges from Independent Providers,609.84,CARE FIRST IW LTD
Revenue,Community Wellbeing & Social Care,5105630610,16.10.2013,Elderly Frail Homecare,Charges from Independent Providers,174.24,CARE FIRST IW LTD
Revenue,Community Wellbeing & Social Care,5105630612,16.10.2013,Elderly Frail Homecare,Charges from Independent Providers,228.69,CARE FIRST IW LTD
Revenue,Community Wellbeing & Social Care,5105630632,16.10.2013,Elderly Frail Homecare,Charges from Independent Providers,196.02,CARE FIRST IW LTD
Revenue,Community Wellbeing & Social Care,5105630634,16.10.2013,Elderly Frail Homecare,Charges from Independent Providers,588.06,CARE FIRST IW LTD
Revenue,Community Wellbeing & Social Care,5105630635,16.10.2013,Elderly Frail Homecare,Charges from Independent Providers,232.32,CARE FIRST IW LTD
Revenue,Community Wellbeing & Social Care,5105630639,16.10.2013,Elderly Frail Homecare,Charges from Independent Providers,90.75,CARE FIRST IW LTD
Revenue,Community Wellbeing & Social Care,5105630630,16.10.2013,Elderly Frail Homecare,Charges from Independent Providers,958.32,CARE FIRST IW LTD
Revenue,Community Wellbeing & Social Care,5105630633,16.10.2013,Elderly Frail Homecare,Charges from Independent Providers,431.97,CARE FIRST IW LTD
Revenue,Community Wellbeing & Social Care,5105630637,16.10.2013,Elderly Frail Homecare,Charges from Independent Providers,58.08,CARE FIRST IW LTD
Revenue,Community Wellbeing & Social Care,5105630626,16.10.2013,Elderly Frail Homecare,Charges from Independent Providers,406.56,CARE FIRST IW LTD
Revenue,Community Wellbeing & Social Care,5105630627,16.10.2013,Elderly Frail Homecare,Charges from Independent Providers,152.46,CARE FIRST IW LTD
Revenue,Community Wellbeing & Social Care,5105630622,16.10.2013,Elderly Frail Homecare,Charges from Independent Providers,65.34,CARE FIRST IW LTD
Revenue,Community Wellbeing & Social Care,5105630625,16.10.2013,Elderly Frail Homecare,Charges from Independent Providers,595.32,CARE FIRST IW LTD
Revenue,Community Wellbeing & Social Care,5105630636,16.10.2013,Elderly Frail Homecare,Charges from Independent Providers,203.28,CARE FIRST IW LTD
Revenue,Community Wellbeing & Social Care,5105630607,16.10.2013,Elderly Frail Homecare,Charges from Independent Providers,"2,032.80",CARE FIRST IW LTD
Revenue,Community Wellbeing & Social Care,5105630606,16.10.2013,Elderly Frail Homecare,Charges from Independent Providers,972.84,CARE FIRST IW LTD
Revenue,Community Wellbeing & Social Care,5105630621,16.10.2013,Elderly Frail Homecare,Charges from Independent Providers,312.18,CARE FIRST IW LTD
Revenue,Community Wellbeing & Social Care,5105630616,16.10.2013,Elderly Frail Homecare,Charges from Independent Providers,"1,422.96",CARE FIRST IW LTD
Revenue,Community Wellbeing & Social Care,5105630617,16.10.2013,Elderly Frail Homecare,Charges from Independent Providers,188.76,CARE FIRST IW LTD
Revenue,Community Wellbeing & Social Care,5105630624,16.10.2013,Elderly Mentally Ill Homecare,Charges from Independent Providers,"2,148.96",CARE FIRST IW LTD
Revenue,Community Wellbeing & Social Care,5105630631,16.10.2013,Elderly Mentally Ill Homecare,Charges from Independent Providers,174.24,CARE FIRST IW LTD
Revenue,Community Wellbeing & Social Care,5105630614,16.10.2013,Mental Health Homecare,Charges from Independent Providers,72.60,CARE FIRST IW LTD
Revenue,Community Wellbeing & Social Care,5105630628,16.10.2013,Physical Disability Homecare,Regular Respite Care,116.16,CARE FIRST IW LTD
Revenue,Community Wellbeing & Social Care,5105630620,16.10.2013,Physical Disability Homecare,Charges from Independent Providers,"2,148.96",CARE FIRST IW LTD
Revenue,Community Wellbeing & Social Care,5105630623,16.10.2013,Elderly Frail Managed Accounts,Charges from Independent Providers,355.74,CARE FIRST IW LTD
Revenue,Community Wellbeing & Social Care,5105633741,30.10.2013,Overbrook,Grounds Maintenance,40.00,CARE IN THE GARDEN
Revenue,Community Wellbeing & Social Care,5105633737,30.10.2013,Seagulls,Grounds Maintenance,30.00,CARE IN THE GARDEN
Revenue,Community Wellbeing & Social Care,5105631946,18.10.2013,Seagulls,Grounds Maintenance,30.00,CARE IN THE GARDEN
Revenue,Community Wellbeing & Social Care,5105628541,04.10.2013,Plean Dene,Grounds Maintenance,50.00,CARE IN THE GARDEN
Revenue,Community Wellbeing & Social Care,5105633743,30.10.2013,Plean Dene,Grounds Maintenance,50.00,CARE IN THE GARDEN
Revenue,Community Wellbeing & Social Care,5105633739,30.10.2013,Saxonbury,Grounds Maintenance,60.00,CARE IN THE GARDEN
Revenue,Community Wellbeing & Social Care,5105633738,30.10.2013,40 Venner Avenue,Grounds Maintenance,40.00,CARE IN THE GARDEN
Revenue,Community Wellbeing & Social Care,5105633742,30.10.2013,Highmead,Grounds Maintenance,125.00,CARE IN THE GARDEN
Revenue,Community Wellbeing & Social Care,5105633740,30.10.2013,The Laurels,Grounds Maintenance,40.00,CARE IN THE GARDEN
Revenue,Community Wellbeing & Social Care,5105628447,04.10.2013,Carers Support,Payments to Voluntary and Other Associations,190.00,CARERS UK IW
Revenue,Community Wellbeing & Social Care,5105628525,04.10.2013,Carers Support,Payments to Voluntary and Other Associations,"1,500.00",CARERS UK IW
Revenue,Community Wellbeing & Social Care,5105630371,16.10.2013,NIACE Project,Grants to External Bodies,"4,190.00",CARERS UK IW
Revenue,Community Wellbeing & Social Care,5105631038,16.10.2013,Elderly Frail Homecare,Regular Respite Care,232.32,CAREWATCH (ISLE OF WIGHT)
Revenue,Community Wellbeing & Social Care,5105631041,16.10.2013,Elderly Frail Homecare,Regular Respite Care,29.04,CAREWATCH (ISLE OF WIGHT)
Revenue,Community Wellbeing & Social Care,5105631044,16.10.2013,Elderly Frail Homecare,Regular Respite Care,94.38,CAREWATCH (ISLE OF WIGHT)
Revenue,Community Wellbeing & Social Care,5105631044,16.10.2013,Elderly Frail Homecare,Regular Respite Care,94.38,CAREWATCH (ISLE OF WIGHT)
Revenue,Community Wellbeing & Social Care,5105630450,16.10.2013,Elderly Frail Homecare,Regular Respite Care,116.16,CAREWATCH (ISLE OF WIGHT)
Revenue,Community Wellbeing & Social Care,5105630413,16.10.2013,Elderly Frail Homecare,Regular Respite Care,232.32,CAREWATCH (ISLE OF WIGHT)
Revenue,Community Wellbeing & Social Care,5105630410,16.10.2013,Elderly Frail Homecare,Regular Respite Care,116.16,CAREWATCH (ISLE OF WIGHT)
Revenue,Community Wellbeing & Social Care,5105630425,16.10.2013,Elderly Frail Homecare,Regular Respite Care,116.16,CAREWATCH (ISLE OF WIGHT)
Revenue,Community Wellbeing & Social Care,5105630453,16.10.2013,Elderly Frail Homecare,Regular Respite Care,116.16,CAREWATCH (ISLE OF WIGHT)
Revenue,Community Wellbeing & Social Care,5105630451,16.10.2013,Elderly Frail Homecare,Regular Respite Care,203.28,CAREWATCH (ISLE OF WIGHT)
Revenue,Community Wellbeing & Social Care,5105630465,16.10.2013,Elderly Frail Homecare,Regular Respite Care,116.16,CAREWATCH (ISLE OF WIGHT)
Revenue,Community Wellbeing & Social Care,5105630423,16.10.2013,Elderly Frail Homecare,Regular Respite Care,116.16,CAREWATCH (ISLE OF WIGHT)
Revenue,Community Wellbeing & Social Care,5105630449,16.10.2013,Elderly Frail Homecare,Regular Respite Care,87.12,CAREWATCH (ISLE OF WIGHT)
Revenue,Community Wellbeing & Social Care,5105630452,16.10.2013,Elderly Frail Homecare,Regular Respite Care,435.60,CAREWATCH (ISLE OF WIGHT)
Revenue,Community Wellbeing & Social Care,5105630438,16.10.2013,Elderly Frail Homecare,Regular Respite Care,116.16,CAREWATCH (ISLE OF WIGHT)
Revenue,Community Wellbeing & Social Care,5105630441,16.10.2013,Elderly Frail Homecare,Regular Respite Care,101.64,CAREWATCH (ISLE OF WIGHT)
Revenue,Community Wellbeing & Social Care,5105630437,16.10.2013,Elderly Frail Homecare,Regular Respite Care,58.08,CAREWATCH (ISLE OF WIGHT)
Revenue,Community Wellbeing & Social Care,5105630459,16.10.2013,Elderly Frail Homecare,Regular Respite Care,58.08,CAREWATCH (ISLE OF WIGHT)
Revenue,Community Wellbeing & Social Care,5105633620,30.10.2013,Elderly Frail Homecare,Regular Respite Care,0.00,CAREWATCH (ISLE OF WIGHT)
Revenue,Community Wellbeing & Social Care,5105629417,09.10.2013,Elderly Frail Homecare,Regular Respite Care,0.00,CAREWATCH (ISLE OF WIGHT)
Revenue,Community Wellbeing & Social Care,5105633619,30.10.2013,Elderly Frail Homecare,Charges from Independent Providers,0.00,CAREWATCH (ISLE OF WIGHT)
Revenue,Community Wellbeing & Social Care,5105633621,30.10.2013,Elderly Frail Homecare,Charges from Independent Providers,0.00,CAREWATCH (ISLE OF WIGHT)
Revenue,Community Wellbeing & Social Care,5105628530,04.10.2013,Elderly Frail Homecare,Charges from Independent Providers,0.00,CAREWATCH (ISLE OF WIGHT)
Revenue,Community Wellbeing & Social Care,5105631872,18.10.2013,Elderly Frail Homecare,Charges from Independent Providers,304.92,CAREWATCH (ISLE OF WIGHT)
Revenue,Community Wellbeing & Social Care,5105631036,16.10.2013,Elderly Frail Homecare,Charges from Independent Providers,508.20,CAREWATCH (ISLE OF WIGHT)
Revenue,Community Wellbeing & Social Care,5105631033,16.10.2013,Elderly Frail Homecare,Charges from Independent Providers,47.19,CAREWATCH (ISLE OF WIGHT)
Revenue,Community Wellbeing & Social Care,5105631040,16.10.2013,Elderly Frail Homecare,Charges from Independent Providers,326.70,CAREWATCH (ISLE OF WIGHT)
Revenue,Community Wellbeing & Social Care,5105631040,16.10.2013,Elderly Frail Homecare,Charges from Independent Providers,399.30,CAREWATCH (ISLE OF WIGHT)
Revenue,Community Wellbeing & Social Care,5105631035,16.10.2013,Elderly Frail Homecare,Charges from Independent Providers,87.12,CAREWATCH (ISLE OF WIGHT)
Revenue,Community Wellbeing & Social Care,5105631034,16.10.2013,Elderly Frail Homecare,Charges from Independent Providers,116.16,CAREWATCH (ISLE OF WIGHT)
Revenue,Community Wellbeing & Social Care,5105630409,16.10.2013,Elderly Frail Homecare,Charges from Independent Providers,"1,016.40",CAREWATCH (ISLE OF WIGHT)
Revenue,Community Wellbeing & Social Care,5105630417,16.10.2013,Elderly Frail Homecare,Charges from Independent Providers,813.12,CAREWATCH (ISLE OF WIGHT)
Revenue,Community Wellbeing & Social Care,5105630418,16.10.2013,Elderly Frail Homecare,Charges from Independent Providers,98.01,CAREWATCH (ISLE OF WIGHT)
Revenue,Community Wellbeing & Social Care,5105631689,18.10.2013,Elderly Frail Homecare,Charges from Independent Providers,0.00,CAREWATCH (ISLE OF WIGHT)
Revenue,Community Wellbeing & Social Care,5105632031,25.10.2013,Elderly Frail Homecare,Charges from Independent Providers,0.00,CAREWATCH (ISLE OF WIGHT)
Revenue,Community Wellbeing & Social Care,5105630458,16.10.2013,Elderly Frail Homecare,Charges from Independent Providers,203.28,CAREWATCH (ISLE OF WIGHT)
Revenue,Community Wellbeing & Social Care,5105630419,16.10.2013,Elderly Frail Homecare,Charges from Independent Providers,609.84,CAREWATCH (ISLE OF WIGHT)
Revenue,Community Wellbeing & Social Care,5105630435,16.10.2013,Elderly Frail Homecare,Charges from Independent Providers,203.28,CAREWATCH (ISLE OF WIGHT)
Revenue,Community Wellbeing & Social Care,5105630439,16.10.2013,Elderly Frail Homecare,Charges from Independent Providers,196.02,CAREWATCH (ISLE OF WIGHT)
Revenue,Community Wellbeing & Social Care,5105630412,16.10.2013,Elderly Frail Homecare,Charges from Independent Providers,598.95,CAREWATCH (ISLE OF WIGHT)
Revenue,Community Wellbeing & Social Care,5105630420,16.10.2013,Elderly Frail Homecare,Charges from Independent Providers,"1,219.68",CAREWATCH (ISLE OF WIGHT)
Revenue,Community Wellbeing & Social Care,5105630399,16.10.2013,Elderly Frail Homecare,Charges from Independent Providers,399.30,CAREWATCH (ISLE OF WIGHT)
Revenue,Community Wellbeing & Social Care,5105630400,16.10.2013,Elderly Frail Homecare,Charges from Independent Providers,537.24,CAREWATCH (ISLE OF WIGHT)
Revenue,Community Wellbeing & Social Care,5105630404,16.10.2013,Elderly Frail Homecare,Charges from Independent Providers,609.84,CAREWATCH (ISLE OF WIGHT)
Revenue,Community Wellbeing & Social Care,5105630389,16.10.2013,Elderly Frail Homecare,Charges from Independent Providers,798.60,CAREWATCH (ISLE OF WIGHT)
